Workbook

Sheet Market Data
B2: DAX Index
B4: Date | C4: Open | D4: High | E4: Low | F4: Close
B5: 19991230 | C5: 8863.5 | D5: 8935.5 | E5: 8853.5 | F5: 8930.5
B6: 20000103 | C6: 9091.5 | D6: 9113.5 | E6: 8670.5 | F6: 8708
B7: 20000104 | C7: 8703.5 | D7: 8703.5 | E7: 8459.5 | F7: 8533.5
B8: 20000105 | C8: 8370.5 | D8: 8525.5 | E8: 8366.5 | F8: 8435.5
B9: 20000106 | C9: 8427.5 | D9: 8480.5 | E9: 8341 | F9: 8409
B10: 20000107 | C10: 8463.5 | D10: 8738.5 | E10: 8452.5 | F10: 8733.5
B11: 20000110 | C11: 8833.5 | D11: 8922.5 | E11: 8805.5 | F11: 8863.5
B12: 20000111 | C12: 8843.5 | D12: 8884.5 | E12: 8764.5 | F12: 8842
B13: 20000112 | C13: 8763.5 | D13: 8850 | E13: 8732 | F13: 8841.5
B14: 20000113 | C14: 8843.5 | D14: 9048.5 | E14: 8827 | F14: 8912.5
B15: 20000114 | C15: 8953.5 | D15: 9149.5 | E15: 8953.5 | F15: 9132.5
B16: 20000117 | C16: 9166.5 | D16: 9229.5 | E16: 9050 | F16: 9210.5
B17: 20000118 | C17: 9210.5 | D17: 9241.5 | E17: 8993.5 | F17: 9026.5
B18: 20000119 | C18: 8993.5 | D18: 9052.5 | E18: 8918.5 | F18: 9031.5
B19: 20000120 | C19: 9119.5 | D19: 9131 | E19: 9011 | F19: 9043.5
B20: 20000121 | C20: 8973.5 | D20: 9036.5 | E20: 8866.5 | F20: 8916
B21: 20000124 | C21: 8963.5 | D21: 9023.5 | E21: 8850.5 | F21: 8853.5
B22: 20000125 | C22: 8784.5 | D22: 8836.5 | E22: 8745.5 | F22: 8794.5
B23: 20000126 | C23: 8819.5 | D23: 8908 | E23: 8762.5 | F23: 8893
B24: 20000127 | C24: 8927.5 | D24: 9100.5 | E24: 8866.5 | F24: 9064.5
B25: 20000128 | C25: 9043.5 | D25: 9148 | E25: 8968.5 | F25: 8998.5
B26: 20000131 | C26: 8932.5 | D26: 8936 | E26: 8737.5 | F26: 8761.5
B27: 20000201 | C27: 8864.5 | D27: 8958.5 | E27: 8822.5 | F27: 8944.5
B28: 20000202 | C28: 9002.5 | D28: 9084.5 | E28: 8954.5 | F28: 9083
B29: 20000203 | C29: 9103.5 | D29: 9271.5 | E29: 9056 | F29: 9261.5
B30: 20000204 | C30: 9321 | D30: 9377.5 | E30: 9249.5 | F30: 9303.5
B31: 20000207 | C31: 9304.5 | D31: 9331 | E31: 9171.5 | F31: 9219
B32: 20000208 | C32: 9211.5 | D32: 9481.5 | E32: 9203.5 | F32: 9445.5
B33: 20000209 | C33: 9466.5 | D33: 9589.5 | E33: 9439.5 | F33: 9562.5
B34: 20000210 | C34: 9449.5 | D34: 9596.5 | E34: 9432 | F34: 9574.5
B35: 20000211 | C35: 9651.5 | D35: 9738.5 | E35: 9499.5 | F35: 9613.5
B36: 20000214 | C36: 9504.5 | D36: 9587 | E36: 9468.5 | F36: 9551.5
B37: 20000215 | C37: 9562.5 | D37: 9610 | E37: 9333.5 | F37: 9340
B38: 20000216 | C38: 9466 | D38: 9488.5 | E38: 9268.5 | F38: 9430
B39: 20000217 | C39: 9427.5 | D39: 9555.5 | E39: 9309 | F39: 9540.5
B40: 20000218 | C40: 9511.5 | D40: 9580.5 | E40: 9467 | F40: 9499.5
B41: 20000221 | C41: 9386.5 | D41: 9476.5 | E41: 9363.5 | F41: 9470.5
B42: 20000222 | C42: 9463.5 | D42: 9636.5 | E42: 9454.5 | F42: 9533
B43: 20000223 | C43: 9563 | D43: 9689.5 | E43: 9552.5 | F43: 9615
B44: 20000224 | C44: 9693.5 | D44: 9727.5 | E44: 9491.5 | F44: 9543.5
B45: 20000225 | C45: 9656.5 | D45: 9696.5 | E45: 9568.5 | F45: 9689
B46: 20000228 | C46: 9643.5 | D46: 9668.5 | E46: 9404.5 | F46: 9493.5
B47: 20000229 | C47: 9553.5 | D47: 9620 | E47: 9527.5 | F47: 9591.5
B48: 20000301 | C48: 9639.5 | D48: 9681.5 | E48: 9530.5 | F48: 9630.5
B49: 20000302 | C49: 9643 | D49: 9863.5 | E49: 9539 | F49: 9858.5
B50: 20000303 | C50: 9843.5 | D50: 9936.5 | E50: 9794 | F50: 9874
B51: 20000306 | C51: 9878.5 | D51: 9915.5 | E51: 9838.5 | F51: 9882.5
B52: 20000307 | C52: 9942.5 | D52: 10039.5 | E52: 9829 | F52: 9966.5
B53: 20000308 | C53: 9906.5 | D53: 10019.5 | E53: 9858.5 | F53: 9883.5
B54: 20000309 | C54: 9960.5 | D54: 9978.5 | E54: 9785 | F54: 9870.5
B55: 20000310 | C55: 9953.5 | D55: 9962.5 | E55: 9860 | F55: 9892.5
B56: 20000313 | C56: 9843.5 | D56: 9843.5 | E56: 9548.5 | F56: 9596.5
B57: 20000314 | C57: 9633.5 | D57: 9658.5 | E57: 9549.5 | F57: 9563.5
B58: 20000315 | C58: 9457.5 | D58: 9494.5 | E58: 9314 | F58: 9344.5
B59: 20000316 | C59: 9416.5 | D59: 9539.5 | E59: 9368.5 | F59: 9495
B60: 20000317 | C60: 9679.5 | D60: 9722 | E60: 9462.5 | F60: 9623.5
B61: 20000320 | C61: 9661.5 | D61: 9775.5 | E61: 9627 | F61: 9763.5
B62: 20000321 | C62: 9744.5 | D62: 9751 | E62: 9631 | F62: 9702.5
B63: 20000322 | C63: 9765.5 | D63: 9842 | E63: 9676 | F63: 9692.5
B64: 20000323 | C64: 9731 | D64: 9754.5 | E64: 9561.5 | F64: 9645.5
B65: 20000324 | C65: 9697.5 | D65: 9807.5 | E65: 9639.5 | F65: 9796.5
B66: 20000327 | C66: 9804.5 | D66: 9824.5 | E66: 9722 | F66: 9791.5
B67: 20000328 | C67: 9784.5 | D67: 9927.5 | E67: 9776.5 | F67: 9817.5
B68: 20000329 | C68: 9806.5 | D68: 9856 | E68: 9751.5 | F68: 9780.5
B69: 20000330 | C69: 9674.5 | D69: 9686.5 | E69: 9505.5 | F69: 9542.5
B70: 20000331 | C70: 9519.5 | D70: 9597.5 | E70: 9409.5 | F70: 9449.5
B71: 20000403 | C71: 9455.5 | D71: 9527.5 | E71: 9288 | F71: 9319
B72: 20000404 | C72: 9364.5 | D72: 9452.5 | E72: 9344.5 | F72: 9426.5
B73: 20000405 | C73: 9366.5 | D73: 9422 | E73: 9089.5 | F73: 9190.5
B74: 20000406 | C74: 9251.5 | D74: 9358.5 | E74: 9196.5 | F74: 9330
B75: 20000407 | C75: 9364.5 | D75: 9404.5 | E75: 9271 | F75: 9392
B76: 20000410 | C76: 9444.5 | D76: 9484.5 | E76: 9382 | F76: 9409.5
B77: 20000411 | C77: 9259.5 | D77: 9357 | E77: 9249.5 | F77: 9319.5
B78: 20000412 | C78: 9346.5 | D78: 9392 | E78: 9286 | F78: 9294.5
B79: 20000413 | C79: 9194.5 | D79: 9322.5 | E79: 9167.5 | F79: 9318.5
B80: 20000414 | C80: 9224.5 | D80: 9279.5 | E80: 9033.5 | F80: 9069.5
B81: 20000417 | C81: 8824.5 | D81: 9059.5 | E81: 8781.5 | F81: 9048.5
B82: 20000418 | C82: 9118.5 | D82: 9130 | E82: 8963 | F82: 9091.5
B83: 20000419 | C83: 9164.5 | D83: 9169 | E83: 9009.5 | F83: 9077
B84: 20000420 | C84: 9076.5 | D84: 9101 | E84: 9036.5 | F84: 9064.5
B85: 20000425 | C85: 9035.5 | D85: 9225 | E85: 8960.5 | F85: 9167.5
B86: 20000426 | C86: 9214.5 | D86: 9317.5 | E86: 9178 | F86: 9245.5
B87: 20000427 | C87: 9249.5 | D87: 9289 | E87: 9017.5 | F87: 9064.5
B88: 20000428 | C88: 9164.5 | D88: 9305.5 | E88: 9135.5 | F88: 9305.5
B89: 20000502 | C89: 9339.5 | D89: 9436 | E89: 9334.5 | F89: 9424.5
B90: 20000503 | C90: 9367.5 | D90: 9443 | E90: 9219.5 | F90: 9224.5
B91: 20000504 | C91: 9229.5 | D91: 9293.5 | E91: 9185.5 | F91: 9253
B92: 20000505 | C92: 9274.5 | D92: 9374 | E92: 9199.5 | F92: 9370.5
B93: 20000508 | C93: 9375.5 | D93: 9396.5 | E93: 9247.5 | F93: 9267
B94: 20000509 | C94: 9254.5 | D94: 9270 | E94: 9092 | F94: 9121.5
B95: 20000510 | C95: 9094.5 | D95: 9196.5 | E95: 8962.5 | F95: 8986.5
B96: 20000511 | C96: 8927.5 | D96: 9143.5 | E96: 8876 | F96: 9137.5
B97: 20000512 | C97: 9135.5 | D97: 9194.5 | E97: 9064 | F97: 9125
B98: 20000515 | C98: 9138.5 | D98: 9138.5 | E98: 9053.5 | F98: 9064.5
B99: 20000516 | C99: 9125.5 | D99: 9264.5 | E99: 9113 | F99: 9247.5
B100: 20000517 | C100: 9210.5 | D100: 9210.5 | E100: 9054.5 | F100: 9073.5
B101: 20000518 | C101: 9049.5 | D101: 9121.5 | E101: 9014.5 | F101: 9019.5
B102: 20000519 | C102: 9012.5 | D102: 9012.5 | E102: 8813 | F102: 8855
B103: 20000522 | C103: 8847.5 | D103: 8899.5 | E103: 8680 | F103: 8780
B104: 20000523 | C104: 8836.5 | D104: 8878 | E104: 8737.5 | F104: 8791.5
B105: 20000524 | C105: 8675.5 | D105: 8728.5 | E105: 8656 | F105: 8708.5
B106: 20000525 | C106: 8757.5 | D106: 8857 | E106: 8742.5 | F106: 8806.5
B107: 20000526 | C107: 8726.5 | D107: 8833 | E107: 8685.5 | F107: 8802.5
B108: 20000529 | C108: 8858.5 | D108: 8887 | E108: 8839 | F108: 8880.5
B109: 20000530 | C109: 8896.5 | D109: 9012 | E109: 8891.5 | F109: 8973.5
B110: 20000531 | C110: 9054.5 | D110: 9059.5 | E110: 8956.5 | F110: 8974.5
B111: 20000601 | C111: 9014.5 | D111: 9134.5 | E111: 9004 | F111: 9122.5
B112: 20000602 | C112: 9110.5 | D112: 9314.5 | E112: 9099.5 | F112: 9289.5
B113: 20000605 | C113: 9290.5 | D113: 9300 | E113: 9205.5 | F113: 9255.5
B114: 20000606 | C114: 9264.5 | D114: 9319.5 | E114: 9150.5 | F114: 9206.5
B115: 20000607 | C115: 9164.5 | D115: 9178.5 | E115: 9096 | F115: 9141.5
B116: 20000608 | C116: 9178.5 | D116: 9242.5 | E116: 9060.5 | F116: 9117.5
B117: 20000609 | C117: 9142.5 | D117: 9209 | E117: 9077 | F117: 9081.5
B118: 20000612 | C118: 9124.5 | D118: 9165 | E118: 9068.5 | F118: 9085.5
B119: 20000613 | C119: 9080.5 | D119: 9159.5 | E119: 9017.5 | F119: 9116.5
B120: 20000614 | C120: 9147 | D120: 9223 | E120: 9096 | F120: 9204
B121: 20000615 | C121: 9198 | D121: 9236 | E121: 9168 | F121: 9195.5
B122: 20000616 | C122: 9224.5 | D122: 9228 | E122: 9083 | F122: 9105.5
B123: 20000619 | C123: 9033 | D123: 9073 | E123: 8974 | F123: 9068.5
B124: 20000620 | C124: 9079.5 | D124: 9110 | E124: 9040.5 | F124: 9060.5
B125: 20000621 | C125: 9043 | D125: 9081 | E125: 8929 | F125: 8976
B126: 20000622 | C126: 8988 | D126: 9013 | E126: 8859 | F126: 8898.5
B127: 20000623 | C127: 8898 | D127: 8919 | E127: 8817 | F127: 8818
B128: 20000626 | C128: 8813 | D128: 8926.5 | E128: 8800 | F128: 8868
B129: 20000627 | C129: 8873 | D129: 8901 | E129: 8795 | F129: 8876.5
B130: 20000628 | C130: 8901 | D130: 8904.5 | E130: 8835 | F130: 8893
B131: 20000629 | C131: 8883 | D131: 8883 | E131: 8671 | F131: 8705
B132: 20000630 | C132: 8738 | D132: 8783 | E132: 8696.5 | F132: 8713
B133: 20000703 | C133: 8733 | D133: 8791.5 | E133: 8664 | F133: 8791.5
B134: 20000704 | C134: 8748 | D134: 8806 | E134: 8730.5 | F134: 8773
B135: 20000705 | C135: 8782 | D135: 8917.5 | E135: 8768 | F135: 8799
B136: 20000706 | C136: 8778 | D136: 8805.5 | E136: 8718 | F136: 8783
B137: 20000707 | C137: 8804.5 | D137: 8879.5 | E137: 8733 | F137: 8871
B138: 20000710 | C138: 8887.5 | D138: 8951 | E138: 8851 | F138: 8889
B139: 20000711 | C139: 8873 | D139: 8884.5 | E139: 8776.5 | F139: 8819
B140: 20000712 | C140: 8849.5 | D140: 8922 | E140: 8836 | F140: 8888.5
B141: 20000713 | C141: 8884 | D141: 9011.5 | E141: 8823 | F141: 9007
B142: 20000714 | C142: 9014 | D142: 9161 | E142: 8985 | F142: 9142
B143: 20000717 | C143: 9168.5 | D143: 9243 | E143: 9140.5 | F143: 9236
B144: 20000718 | C144: 9208 | D144: 9273 | E144: 9173 | F144: 9207
B145: 20000719 | C145: 9207 | D145: 9213.5 | E145: 9137 | F145: 9178
B146: 20000720 | C146: 9148 | D146: 9308 | E146: 9143 | F146: 9303
B147: 20000721 | C147: 9294 | D147: 9312.5 | E147: 9188 | F147: 9197.5
B148: 20000724 | C148: 9168.5 | D148: 9243.5 | E148: 9120 | F148: 9122
B149: 20000725 | C149: 9114 | D149: 9170 | E149: 9105.5 | F149: 9148
B150: 20000726 | C150: 9159 | D150: 9168 | E150: 9061.5 | F150: 9083
B151: 20000727 | C151: 9082 | D151: 9141 | E151: 8975.5 | F151: 8990.5
B152: 20000728 | C152: 8994 | D152: 9034 | E152: 8878 | F152: 8933
B153: 20000731 | C153: 8933 | D153: 9060 | E153: 8914 | F153: 9035
B154: 20000801 | C154: 9034 | D154: 9039 | E154: 8898.5 | F154: 8957
B155: 20000802 | C155: 8978 | D155: 9004 | E155: 8872 | F155: 8926
B156: 20000803 | C156: 8879 | D156: 8898.5 | E156: 8757 | F156: 8803
B157: 20000804 | C157: 8834 | D157: 8908 | E157: 8805 | F157: 8823
B158: 20000807 | C158: 8848 | D158: 8937 | E158: 8837 | F158: 8933
B159: 20000808 | C159: 8918 | D159: 8992.5 | E159: 8883 | F159: 8944
B160: 20000809 | C160: 8972 | D160: 9063.5 | E160: 8971 | F160: 9038
B161: 20000810 | C161: 9013 | D161: 9108.5 | E161: 9010 | F161: 9069.5
B162: 20000811 | C162: 9063 | D162: 9125 | E162: 9019 | F162: 9114
B163: 20000814 | C163: 9129 | D163: 9162 | E163: 9090 | F163: 9111
B164: 20000815 | C164: 9157 | D164: 9167.5 | E164: 9071 | F164: 9083
B165: 20000816 | C165: 9103 | D165: 9156 | E165: 9082.5 | F165: 9119
B166: 20000817 | C166: 9118 | D166: 9126 | E166: 8998 | F166: 9060
B167: 20000818 | C167: 9063 | D167: 9112 | E167: 9007 | F167: 9010.5
B168: 20000821 | C168: 9038 | D168: 9038 | E168: 8933.5 | F168: 8976
B169: 20000822 | C169: 8998 | D169: 9074 | E169: 8991.5 | F169: 9037
B170: 20000823 | C170: 9043 | D170: 9043 | E170: 8938 | F170: 9002
B171: 20000824 | C171: 9058 | D171: 9063.5 | E171: 8994 | F171: 8998
B172: 20000825 | C172: 9024 | D172: 9120 | E172: 9015 | F172: 9108
B173: 20000828 | C173: 9119 | D173: 9182 | E173: 9088.5 | F173: 9126
B174: 20000829 | C174: 9105.5 | D174: 9109.5 | E174: 9049 | F174: 9068
B175: 20000830 | C175: 9055 | D175: 9057 | E175: 8954 | F175: 8959
B176: 20000831 | C176: 8976 | D176: 9031 | E176: 8943 | F176: 9023
B177: 20000901 | C177: 9005 | D177: 9175.5 | E177: 9005 | F177: 9133.5
B178: 20000904 | C178: 9138 | D178: 9231 | E178: 9137 | F178: 9222
B179: 20000905 | C179: 9221.5 | D179: 9221.5 | E179: 9146 | F179: 9169
B180: 20000906 | C180: 9163 | D180: 9209 | E180: 9088 | F180: 9091
B181: 20000907 | C181: 9070 | D181: 9157 | E181: 9059.5 | F181: 9143
B182: 20000908 | C182: 9151.5 | D182: 9163 | E182: 9019 | F182: 9029.5
B183: 20000911 | C183: 9022 | D183: 9041 | E183: 8964.5 | F183: 8987.5
B184: 20000912 | C184: 8948 | D184: 8970 | E184: 8896 | F184: 8908.5
B185: 20000913 | C185: 8919.5 | D185: 8930 | E185: 8757 | F185: 8773
B186: 20000914 | C186: 8788.5 | D186: 8859 | E186: 8762 | F186: 8811.5
B187: 20000915 | C187: 8794.5 | D187: 8837.5 | E187: 8727.5 | F187: 8776.5
B188: 20000918 | C188: 8704.5 | D188: 8736.5 | E188: 8625.5 | F188: 8640
B189: 20000919 | C189: 8629.5 | D189: 8685 | E189: 8601 | F189: 8683.5
B190: 20000920 | C190: 8710.5 | D190: 8719 | E190: 8475.5 | F190: 8498
B191: 20000921 | C191: 8552.5 | D191: 8563 | E191: 8330 | F191: 8413.5
B192: 20000922 | C192: 8239.5 | D192: 8481 | E192: 8239 | F192: 8466.5
B193: 20000925 | C193: 8519.5 | D193: 8569.5 | E193: 8489.5 | F193: 8519.5
B194: 20000926 | C194: 8499 | D194: 8589.5 | E194: 8475.5 | F194: 8499
B195: 20000927 | C195: 8469.5 | D195: 8607 | E195: 8460.5 | F195: 8526.5
B196: 20000928 | C196: 8536.5 | D196: 8594.5 | E196: 8462 | F196: 8587.5
B197: 20000929 | C197: 8569.5 | D197: 8630.5 | E197: 8516 | F197: 8548.5
B198: 20001002 | C198: 8524.5 | D198: 8651.5 | E198: 8510 | F198: 8619.5
B199: 20001004 | C199: 8599.5 | D199: 8636 | E199: 8497 | F199: 8568
B200: 20001005 | C200: 8583.5 | D200: 8652.5 | E200: 8570 | F200: 8615
B201: 20001006 | C201: 8634.5 | D201: 8661.5 | E201: 8444.5 | F201: 8468
B202: 20001009 | C202: 8471.5 | D202: 8492.5 | E202: 8357.5 | F202: 8419
... 3113 more rows

Sheet Long or Short
B2: Simple : Go Long or Short Strategy | H2: Indicator for period | P2: Market details for Daxindix
Q3: Unit move = | R3: 35
H4: Long or short? | I4: Long | Q4: Transaction cost = | R4: 90.96
Q5: Maximum position size = | R5: 1
B8: Market data showing Open, High, Low and Close for Daxindx for trading day. | H8: Signal is produced telling the system to go Long (buy) or Short (sell). This model can either go long or short for the period. | L8: Signal translates into potential position and order instruction for Next Day. Model assumes all orders get filled on the Next day Open. | P8: This shows Position, Profit / Loss (PL) and Cumulative PL for End of day. It assumes appropriate transaction costs for market.
I16: Proprietary | J16: End of day | L16: Next day | M16: Next day | N16: Next day | P16: End of day | R16: End of day | S16: End of day
B17: Date | C17: Open | D17: High | E17: Low | F17: Close | H17: Day | I17: Signal | J17: Signal | L17: Potential Position | M17: Order quantity | N17: Order status | P17: Position | Q17: Action | R17: PL | S17: Cumulative P/L
B18: ='Market Data'!B5 -> 19991230 | C18: ='Market Data'!C5 -> 8863.5 | D18: ='Market Data'!D5 -> 8935.5 | E18: ='Market Data'!E5 -> 8853.5 | F18: ='Market Data'!F5 -> 8930.5 | H18: =ROW()-ROW(H$17) -> 1 | I18: Hidden | J18: =$I$4 -> Long
B19: ='Market Data'!B6 -> 20000103 | C19: ='Market Data'!C6 -> 9091.5 | D19: ='Market Data'!D6 -> 9113.5 | E19: ='Market Data'!E6 -> 8670.5 | F19: ='Market Data'!F6 -> 8708 | H19: 2 | I19: Hidden | J19: Long
B20: ='Market Data'!B7 -> 20000104 | C20: ='Market Data'!C7 -> 8703.5 | D20: ='Market Data'!D7 -> 8703.5 | E20: ='Market Data'!E7 -> 8459.5 | F20: ='Market Data'!F7 -> 8533.5 | H20: 3 | I20: Hidden | J20: Long
B21: ='Market Data'!B8 -> 20000105 | C21: ='Market Data'!C8 -> 8370.5 | D21: ='Market Data'!D8 -> 8525.5 | E21: ='Market Data'!E8 -> 8366.5 | F21: ='Market Data'!F8 -> 8435.5 | H21: 4 | I21: Hidden | J21: Long
B22: ='Market Data'!B9 -> 20000106 | C22: ='Market Data'!C9 -> 8427.5 | D22: ='Market Data'!D9 -> 8480.5 | E22: ='Market Data'!E9 -> 8341 | F22: ='Market Data'!F9 -> 8409 | H22: 5 | I22: Hidden | J22: Long
B23: ='Market Data'!B10 -> 20000107 | C23: ='Market Data'!C10 -> 8463.5 | D23: ='Market Data'!D10 -> 8738.5 | E23: ='Market Data'!E10 -> 8452.5 | F23: ='Market Data'!F10 -> 8733.5 | H23: 6 | I23: Hidden | J23: Long
B24: ='Market Data'!B11 -> 20000110 | C24: ='Market Data'!C11 -> 8833.5 | D24: ='Market Data'!D11 -> 8922.5 | E24: ='Market Data'!E11 -> 8805.5 | F24: ='Market Data'!F11 -> 8863.5 | H24: 7 | I24: Hidden | J24: Long
B25: ='Market Data'!B12 -> 20000111 | C25: ='Market Data'!C12 -> 8843.5 | D25: ='Market Data'!D12 -> 8884.5 | E25: ='Market Data'!E12 -> 8764.5 | F25: ='Market Data'!F12 -> 8842 | H25: 8 | I25: Hidden | J25: Long
B26: ='Market Data'!B13 -> 20000112 | C26: ='Market Data'!C13 -> 8763.5 | D26: ='Market Data'!D13 -> 8850 | E26: ='Market Data'!E13 -> 8732 | F26: ='Market Data'!F13 -> 8841.5 | H26: 9 | I26: Hidden | J26: Long
B27: ='Market Data'!B14 -> 20000113 | C27: ='Market Data'!C14 -> 8843.5 | D27: ='Market Data'!D14 -> 9048.5 | E27: ='Market Data'!E14 -> 8827 | F27: ='Market Data'!F14 -> 8912.5 | H27: 10 | I27: Hidden | J27: Long
B28: ='Market Data'!B15 -> 20000114 | C28: ='Market Data'!C15 -> 8953.5 | D28: ='Market Data'!D15 -> 9149.5 | E28: ='Market Data'!E15 -> 8953.5 | F28: ='Market Data'!F15 -> 9132.5 | H28: 11 | I28: Hidden | J28: Long
B29: ='Market Data'!B16 -> 20000117 | C29: ='Market Data'!C16 -> 9166.5 | D29: ='Market Data'!D16 -> 9229.5 | E29: ='Market Data'!E16 -> 9050 | F29: ='Market Data'!F16 -> 9210.5 | H29: 12 | I29: Hidden | J29: Long
B30: ='Market Data'!B17 -> 20000118 | C30: ='Market Data'!C17 -> 9210.5 | D30: ='Market Data'!D17 -> 9241.5 | E30: ='Market Data'!E17 -> 8993.5 | F30: ='Market Data'!F17 -> 9026.5 | H30: 13 | I30: Hidden | J30: Long
B31: ='Market Data'!B18 -> 20000119 | C31: ='Market Data'!C18 -> 8993.5 | D31: ='Market Data'!D18 -> 9052.5 | E31: ='Market Data'!E18 -> 8918.5 | F31: ='Market Data'!F18 -> 9031.5 | H31: 14 | I31: Hidden | J31: Long
B32: ='Market Data'!B19 -> 20000120 | C32: ='Market Data'!C19 -> 9119.5 | D32: ='Market Data'!D19 -> 9131 | E32: ='Market Data'!E19 -> 9011 | F32: ='Market Data'!F19 -> 9043.5 | H32: 15 | I32: Hidden | J32: Long
B33: ='Market Data'!B20 -> 20000121 | C33: ='Market Data'!C20 -> 8973.5 | D33: ='Market Data'!D20 -> 9036.5 | E33: ='Market Data'!E20 -> 8866.5 | F33: ='Market Data'!F20 -> 8916 | H33: 16 | I33: Hidden | J33: Long
B34: ='Market Data'!B21 -> 20000124 | C34: ='Market Data'!C21 -> 8963.5 | D34: ='Market Data'!D21 -> 9023.5 | E34: ='Market Data'!E21 -> 8850.5 | F34: ='Market Data'!F21 -> 8853.5 | H34: 17 | I34: Hidden | J34: Long
B35: ='Market Data'!B22 -> 20000125 | C35: ='Market Data'!C22 -> 8784.5 | D35: ='Market Data'!D22 -> 8836.5 | E35: ='Market Data'!E22 -> 8745.5 | F35: ='Market Data'!F22 -> 8794.5 | H35: 18 | I35: Hidden | J35: Long
B36: ='Market Data'!B23 -> 20000126 | C36: ='Market Data'!C23 -> 8819.5 | D36: ='Market Data'!D23 -> 8908 | E36: ='Market Data'!E23 -> 8762.5 | F36: ='Market Data'!F23 -> 8893 | H36: 19 | I36: Hidden | J36: Long
B37: ='Market Data'!B24 -> 20000127 | C37: ='Market Data'!C24 -> 8927.5 | D37: ='Market Data'!D24 -> 9100.5 | E37: ='Market Data'!E24 -> 8866.5 | F37: ='Market Data'!F24 -> 9064.5 | H37: 20 | I37: Hidden | J37: Long
B38: ='Market Data'!B25 -> 20000128 | C38: ='Market Data'!C25 -> 9043.5 | D38: ='Market Data'!D25 -> 9148 | E38: ='Market Data'!E25 -> 8968.5 | F38: ='Market Data'!F25 -> 8998.5 | H38: 21 | I38: Hidden | J38: Long
B39: ='Market Data'!B26 -> 20000131 | C39: ='Market Data'!C26 -> 8932.5 | D39: ='Market Data'!D26 -> 8936 | E39: ='Market Data'!E26 -> 8737.5 | F39: ='Market Data'!F26 -> 8761.5 | H39: 22 | I39: Hidden | J39: Long
B40: ='Market Data'!B27 -> 20000201 | C40: ='Market Data'!C27 -> 8864.5 | D40: ='Market Data'!D27 -> 8958.5 | E40: ='Market Data'!E27 -> 8822.5 | F40: ='Market Data'!F27 -> 8944.5 | H40: 23 | I40: Hidden | J40: Long
B41: ='Market Data'!B28 -> 20000202 | C41: ='Market Data'!C28 -> 9002.5 | D41: ='Market Data'!D28 -> 9084.5 | E41: ='Market Data'!E28 -> 8954.5 | F41: ='Market Data'!F28 -> 9083 | H41: 24 | I41: Hidden | J41: Long
B42: ='Market Data'!B29 -> 20000203 | C42: ='Market Data'!C29 -> 9103.5 | D42: ='Market Data'!D29 -> 9271.5 | E42: ='Market Data'!E29 -> 9056 | F42: ='Market Data'!F29 -> 9261.5 | H42: 25 | I42: Hidden | J42: Long
B43: ='Market Data'!B30 -> 20000204 | C43: ='Market Data'!C30 -> 9321 | D43: ='Market Data'!D30 -> 9377.5 | E43: ='Market Data'!E30 -> 9249.5 | F43: ='Market Data'!F30 -> 9303.5 | H43: 26 | I43: Hidden | J43: Long
B44: ='Market Data'!B31 -> 20000207 | C44: ='Market Data'!C31 -> 9304.5 | D44: ='Market Data'!D31 -> 9331 | E44: ='Market Data'!E31 -> 9171.5 | F44: ='Market Data'!F31 -> 9219 | H44: 27 | I44: Hidden | J44: Long
B45: ='Market Data'!B32 -> 20000208 | C45: ='Market Data'!C32 -> 9211.5 | D45: ='Market Data'!D32 -> 9481.5 | E45: ='Market Data'!E32 -> 9203.5 | F45: ='Market Data'!F32 -> 9445.5 | H45: 28 | I45: Hidden | J45: Long
B46: ='Market Data'!B33 -> 20000209 | C46: ='Market Data'!C33 -> 9466.5 | D46: ='Market Data'!D33 -> 9589.5 | E46: ='Market Data'!E33 -> 9439.5 | F46: ='Market Data'!F33 -> 9562.5 | H46: 29 | I46: Hidden | J46: Long
B47: ='Market Data'!B34 -> 20000210 | C47: ='Market Data'!C34 -> 9449.5 | D47: ='Market Data'!D34 -> 9596.5 | E47: ='Market Data'!E34 -> 9432 | F47: ='Market Data'!F34 -> 9574.5 | H47: 30 | I47: Hidden | J47: Long
B48: ='Market Data'!B35 -> 20000211 | C48: ='Market Data'!C35 -> 9651.5 | D48: ='Market Data'!D35 -> 9738.5 | E48: ='Market Data'!E35 -> 9499.5 | F48: ='Market Data'!F35 -> 9613.5 | H48: 31 | I48: Hidden | J48: Long
B49: ='Market Data'!B36 -> 20000214 | C49: ='Market Data'!C36 -> 9504.5 | D49: ='Market Data'!D36 -> 9587 | E49: ='Market Data'!E36 -> 9468.5 | F49: ='Market Data'!F36 -> 9551.5 | H49: 32 | I49: Hidden | J49: Long
B50: ='Market Data'!B37 -> 20000215 | C50: ='Market Data'!C37 -> 9562.5 | D50: ='Market Data'!D37 -> 9610 | E50: ='Market Data'!E37 -> 9333.5 | F50: ='Market Data'!F37 -> 9340 | H50: 33 | I50: Hidden | J50: Long
B51: ='Market Data'!B38 -> 20000216 | C51: ='Market Data'!C38 -> 9466 | D51: ='Market Data'!D38 -> 9488.5 | E51: ='Market Data'!E38 -> 9268.5 | F51: ='Market Data'!F38 -> 9430 | H51: 34 | I51: Hidden | J51: Long
B52: ='Market Data'!B39 -> 20000217 | C52: ='Market Data'!C39 -> 9427.5 | D52: ='Market Data'!D39 -> 9555.5 | E52: ='Market Data'!E39 -> 9309 | F52: ='Market Data'!F39 -> 9540.5 | H52: 35 | I52: Hidden | J52: Long
B53: ='Market Data'!B40 -> 20000218 | C53: ='Market Data'!C40 -> 9511.5 | D53: ='Market Data'!D40 -> 9580.5 | E53: ='Market Data'!E40 -> 9467 | F53: ='Market Data'!F40 -> 9499.5 | H53: 36 | I53: Hidden | J53: Long
B54: ='Market Data'!B41 -> 20000221 | C54: ='Market Data'!C41 -> 9386.5 | D54: ='Market Data'!D41 -> 9476.5 | E54: ='Market Data'!E41 -> 9363.5 | F54: ='Market Data'!F41 -> 9470.5 | H54: 37 | I54: Hidden | J54: Long
B55: ='Market Data'!B42 -> 20000222 | C55: ='Market Data'!C42 -> 9463.5 | D55: ='Market Data'!D42 -> 9636.5 | E55: ='Market Data'!E42 -> 9454.5 | F55: ='Market Data'!F42 -> 9533 | H55: 38 | I55: Hidden | J55: Long
B56: ='Market Data'!B43 -> 20000223 | C56: ='Market Data'!C43 -> 9563 | D56: ='Market Data'!D43 -> 9689.5 | E56: ='Market Data'!E43 -> 9552.5 | F56: ='Market Data'!F43 -> 9615 | H56: 39 | I56: Hidden | J56: Long
B57: ='Market Data'!B44 -> 20000224 | C57: ='Market Data'!C44 -> 9693.5 | D57: ='Market Data'!D44 -> 9727.5 | E57: ='Market Data'!E44 -> 9491.5 | F57: ='Market Data'!F44 -> 9543.5 | H57: 40 | I57: Hidden | J57: Long
B58: ='Market Data'!B45 -> 20000225 | C58: ='Market Data'!C45 -> 9656.5 | D58: ='Market Data'!D45 -> 9696.5 | E58: ='Market Data'!E45 -> 9568.5 | F58: ='Market Data'!F45 -> 9689 | H58: 41 | I58: Hidden | J58: Long
B59: ='Market Data'!B46 -> 20000228 | C59: ='Market Data'!C46 -> 9643.5 | D59: ='Market Data'!D46 -> 9668.5 | E59: ='Market Data'!E46 -> 9404.5 | F59: ='Market Data'!F46 -> 9493.5 | H59: 42 | I59: Hidden | J59: Long
B60: ='Market Data'!B47 -> 20000229 | C60: ='Market Data'!C47 -> 9553.5 | D60: ='Market Data'!D47 -> 9620 | E60: ='Market Data'!E47 -> 9527.5 | F60: ='Market Data'!F47 -> 9591.5 | H60: 43 | I60: Hidden | J60: Long
B61: ='Market Data'!B48 -> 20000301 | C61: ='Market Data'!C48 -> 9639.5 | D61: ='Market Data'!D48 -> 9681.5 | E61: ='Market Data'!E48 -> 9530.5 | F61: ='Market Data'!F48 -> 9630.5 | H61: 44 | I61: Hidden | J61: Long
B62: ='Market Data'!B49 -> 20000302 | C62: ='Market Data'!C49 -> 9643 | D62: ='Market Data'!D49 -> 9863.5 | E62: ='Market Data'!E49 -> 9539 | F62: ='Market Data'!F49 -> 9858.5 | H62: 45 | I62: Hidden | J62: Long
B63: ='Market Data'!B50 -> 20000303 | C63: ='Market Data'!C50 -> 9843.5 | D63: ='Market Data'!D50 -> 9936.5 | E63: ='Market Data'!E50 -> 9794 | F63: ='Market Data'!F50 -> 9874 | H63: 46 | I63: Hidden | J63: Long
B64: ='Market Data'!B51 -> 20000306 | C64: ='Market Data'!C51 -> 9878.5 | D64: ='Market Data'!D51 -> 9915.5 | E64: ='Market Data'!E51 -> 9838.5 | F64: ='Market Data'!F51 -> 9882.5 | H64: 47 | I64: Hidden | J64: Long
B65: ='Market Data'!B52 -> 20000307 | C65: ='Market Data'!C52 -> 9942.5 | D65: ='Market Data'!D52 -> 10039.5 | E65: ='Market Data'!E52 -> 9829 | F65: ='Market Data'!F52 -> 9966.5 | H65: 48 | I65: Hidden | J65: Long
B66: ='Market Data'!B53 -> 20000308 | C66: ='Market Data'!C53 -> 9906.5 | D66: ='Market Data'!D53 -> 10019.5 | E66: ='Market Data'!E53 -> 9858.5 | F66: ='Market Data'!F53 -> 9883.5 | H66: 49 | I66: Hidden | J66: Long
B67: ='Market Data'!B54 -> 20000309 | C67: ='Market Data'!C54 -> 9960.5 | D67: ='Market Data'!D54 -> 9978.5 | E67: ='Market Data'!E54 -> 9785 | F67: ='Market Data'!F54 -> 9870.5 | H67: 50 | I67: Hidden | J67: Long
B68: ='Market Data'!B55 -> 20000310 | C68: ='Market Data'!C55 -> 9953.5 | D68: ='Market Data'!D55 -> 9962.5 | E68: ='Market Data'!E55 -> 9860 | F68: ='Market Data'!F55 -> 9892.5 | H68: 51 | I68: Hidden | J68: Long
B69: ='Market Data'!B56 -> 20000313 | C69: ='Market Data'!C56 -> 9843.5 | D69: ='Market Data'!D56 -> 9843.5 | E69: ='Market Data'!E56 -> 9548.5 | F69: ='Market Data'!F56 -> 9596.5 | H69: 52 | I69: Hidden | J69: Long
B70: ='Market Data'!B57 -> 20000314 | C70: ='Market Data'!C57 -> 9633.5 | D70: ='Market Data'!D57 -> 9658.5 | E70: ='Market Data'!E57 -> 9549.5 | F70: ='Market Data'!F57 -> 9563.5 | H70: 53 | I70: Hidden | J70: Long
B71: ='Market Data'!B58 -> 20000315 | C71: ='Market Data'!C58 -> 9457.5 | D71: ='Market Data'!D58 -> 9494.5 | E71: ='Market Data'!E58 -> 9314 | F71: ='Market Data'!F58 -> 9344.5 | H71: 54 | I71: Hidden | J71: Long
B72: ='Market Data'!B59 -> 20000316 | C72: ='Market Data'!C59 -> 9416.5 | D72: ='Market Data'!D59 -> 9539.5 | E72: ='Market Data'!E59 -> 9368.5 | F72: ='Market Data'!F59 -> 9495 | H72: 55 | I72: Hidden | J72: Long
B73: ='Market Data'!B60 -> 20000317 | C73: ='Market Data'!C60 -> 9679.5 | D73: ='Market Data'!D60 -> 9722 | E73: ='Market Data'!E60 -> 9462.5 | F73: ='Market Data'!F60 -> 9623.5 | H73: 56 | I73: Hidden | J73: Long
B74: ='Market Data'!B61 -> 20000320 | C74: ='Market Data'!C61 -> 9661.5 | D74: ='Market Data'!D61 -> 9775.5 | E74: ='Market Data'!E61 -> 9627 | F74: ='Market Data'!F61 -> 9763.5 | H74: 57 | I74: Hidden | J74: Long
B75: ='Market Data'!B62 -> 20000321 | C75: ='Market Data'!C62 -> 9744.5 | D75: ='Market Data'!D62 -> 9751 | E75: ='Market Data'!E62 -> 9631 | F75: ='Market Data'!F62 -> 9702.5 | H75: 58 | I75: Hidden | J75: Long
B76: ='Market Data'!B63 -> 20000322 | C76: ='Market Data'!C63 -> 9765.5 | D76: ='Market Data'!D63 -> 9842 | E76: ='Market Data'!E63 -> 9676 | F76: ='Market Data'!F63 -> 9692.5 | H76: 59 | I76: Hidden | J76: Long
B77: ='Market Data'!B64 -> 20000323 | C77: ='Market Data'!C64 -> 9731 | D77: ='Market Data'!D64 -> 9754.5 | E77: ='Market Data'!E64 -> 9561.5 | F77: ='Market Data'!F64 -> 9645.5 | H77: 60 | I77: Hidden | J77: Long
B78: ='Market Data'!B65 -> 20000324 | C78: ='Market Data'!C65 -> 9697.5 | D78: ='Market Data'!D65 -> 9807.5 | E78: ='Market Data'!E65 -> 9639.5 | F78: ='Market Data'!F65 -> 9796.5 | H78: 61 | I78: Hidden | J78: Long
B79: ='Market Data'!B66 -> 20000327 | C79: ='Market Data'!C66 -> 9804.5 | D79: ='Market Data'!D66 -> 9824.5 | E79: ='Market Data'!E66 -> 9722 | F79: ='Market Data'!F66 -> 9791.5 | H79: 62 | I79: Hidden | J79: Long
B80: ='Market Data'!B67 -> 20000328 | C80: ='Market Data'!C67 -> 9784.5 | D80: ='Market Data'!D67 -> 9927.5 | E80: ='Market Data'!E67 -> 9776.5 | F80: ='Market Data'!F67 -> 9817.5 | H80: 63 | I80: Hidden | J80: Long
B81: ='Market Data'!B68 -> 20000329 | C81: ='Market Data'!C68 -> 9806.5 | D81: ='Market Data'!D68 -> 9856 | E81: ='Market Data'!E68 -> 9751.5 | F81: ='Market Data'!F68 -> 9780.5 | H81: 64 | I81: Hidden | J81: Long
B82: ='Market Data'!B69 -> 20000330 | C82: ='Market Data'!C69 -> 9674.5 | D82: ='Market Data'!D69 -> 9686.5 | E82: ='Market Data'!E69 -> 9505.5 | F82: ='Market Data'!F69 -> 9542.5 | H82: =ROW()-ROW(H$17) -> 65 | I82: Hidden | J82: =$I$4 -> Long
B83: ='Market Data'!B70 -> 20000331 | C83: ='Market Data'!C70 -> 9519.5 | D83: ='Market Data'!D70 -> 9597.5 | E83: ='Market Data'!E70 -> 9409.5 | F83: ='Market Data'!F70 -> 9449.5 | H83: 66 | I83: Hidden | J83: Long
B84: ='Market Data'!B71 -> 20000403 | C84: ='Market Data'!C71 -> 9455.5 | D84: ='Market Data'!D71 -> 9527.5 | E84: ='Market Data'!E71 -> 9288 | F84: ='Market Data'!F71 -> 9319 | H84: 67 | I84: Hidden | J84: Long
B85: ='Market Data'!B72 -> 20000404 | C85: ='Market Data'!C72 -> 9364.5 | D85: ='Market Data'!D72 -> 9452.5 | E85: ='Market Data'!E72 -> 9344.5 | F85: ='Market Data'!F72 -> 9426.5 | H85: 68 | I85: Hidden | J85: Long
B86: ='Market Data'!B73 -> 20000405 | C86: ='Market Data'!C73 -> 9366.5 | D86: ='Market Data'!D73 -> 9422 | E86: ='Market Data'!E73 -> 9089.5 | F86: ='Market Data'!F73 -> 9190.5 | H86: 69 | I86: Hidden | J86: Long
B87: ='Market Data'!B74 -> 20000406 | C87: ='Market Data'!C74 -> 9251.5 | D87: ='Market Data'!D74 -> 9358.5 | E87: ='Market Data'!E74 -> 9196.5 | F87: ='Market Data'!F74 -> 9330 | H87: 70 | I87: Hidden | J87: Long
B88: ='Market Data'!B75 -> 20000407 | C88: ='Market Data'!C75 -> 9364.5 | D88: ='Market Data'!D75 -> 9404.5 | E88: ='Market Data'!E75 -> 9271 | F88: ='Market Data'!F75 -> 9392 | H88: 71 | I88: Hidden | J88: Long
B89: ='Market Data'!B76 -> 20000410 | C89: ='Market Data'!C76 -> 9444.5 | D89: ='Market Data'!D76 -> 9484.5 | E89: ='Market Data'!E76 -> 9382 | F89: ='Market Data'!F76 -> 9409.5 | H89: 72 | I89: Hidden | J89: Long
B90: ='Market Data'!B77 -> 20000411 | C90: ='Market Data'!C77 -> 9259.5 | D90: ='Market Data'!D77 -> 9357 | E90: ='Market Data'!E77 -> 9249.5 | F90: ='Market Data'!F77 -> 9319.5 | H90: 73 | I90: Hidden | J90: Long
B91: ='Market Data'!B78 -> 20000412 | C91: ='Market Data'!C78 -> 9346.5 | D91: ='Market Data'!D78 -> 9392 | E91: ='Market Data'!E78 -> 9286 | F91: ='Market Data'!F78 -> 9294.5 | H91: 74 | I91: Hidden | J91: Long
B92: ='Market Data'!B79 -> 20000413 | C92: ='Market Data'!C79 -> 9194.5 | D92: ='Market Data'!D79 -> 9322.5 | E92: ='Market Data'!E79 -> 9167.5 | F92: ='Market Data'!F79 -> 9318.5 | H92: 75 | I92: Hidden | J92: Long
B93: ='Market Data'!B80 -> 20000414 | C93: ='Market Data'!C80 -> 9224.5 | D93: ='Market Data'!D80 -> 9279.5 | E93: ='Market Data'!E80 -> 9033.5 | F93: ='Market Data'!F80 -> 9069.5 | H93: 76 | I93: Hidden | J93: Long
B94: ='Market Data'!B81 -> 20000417 | C94: ='Market Data'!C81 -> 8824.5 | D94: ='Market Data'!D81 -> 9059.5 | E94: ='Market Data'!E81 -> 8781.5 | F94: ='Market Data'!F81 -> 9048.5 | H94: 77 | I94: Hidden | J94: Long
B95: ='Market Data'!B82 -> 20000418 | C95: ='Market Data'!C82 -> 9118.5 | D95: ='Market Data'!D82 -> 9130 | E95: ='Market Data'!E82 -> 8963 | F95: ='Market Data'!F82 -> 9091.5 | H95: 78 | I95: Hidden | J95: Long
B96: ='Market Data'!B83 -> 20000419 | C96: ='Market Data'!C83 -> 9164.5 | D96: ='Market Data'!D83 -> 9169 | E96: ='Market Data'!E83 -> 9009.5 | F96: ='Market Data'!F83 -> 9077 | H96: 79 | I96: Hidden | J96: Long
B97: ='Market Data'!B84 -> 20000420 | C97: ='Market Data'!C84 -> 9076.5 | D97: ='Market Data'!D84 -> 9101 | E97: ='Market Data'!E84 -> 9036.5 | F97: ='Market Data'!F84 -> 9064.5 | H97: 80 | I97: Hidden | J97: Long
B98: ='Market Data'!B85 -> 20000425 | C98: ='Market Data'!C85 -> 9035.5 | D98: ='Market Data'!D85 -> 9225 | E98: ='Market Data'!E85 -> 8960.5 | F98: ='Market Data'!F85 -> 9167.5 | H98: 81 | I98: Hidden | J98: Long
B99: ='Market Data'!B86 -> 20000426 | C99: ='Market Data'!C86 -> 9214.5 | D99: ='Market Data'!D86 -> 9317.5 | E99: ='Market Data'!E86 -> 9178 | F99: ='Market Data'!F86 -> 9245.5 | H99: 82 | I99: Hidden | J99: Long
B100: ='Market Data'!B87 -> 20000427 | C100: ='Market Data'!C87 -> 9249.5 | D100: ='Market Data'!D87 -> 9289 | E100: ='Market Data'!E87 -> 9017.5 | F100: ='Market Data'!F87 -> 9064.5 | H100: 83 | I100: Hidden | J100: Long
B101: ='Market Data'!B88 -> 20000428 | C101: ='Market Data'!C88 -> 9164.5 | D101: ='Market Data'!D88 -> 9305.5 | E101: ='Market Data'!E88 -> 9135.5 | F101: ='Market Data'!F88 -> 9305.5 | H101: 84 | I101: Hidden | J101: Long
B102: ='Market Data'!B89 -> 20000502 | C102: ='Market Data'!C89 -> 9339.5 | D102: ='Market Data'!D89 -> 9436 | E102: ='Market Data'!E89 -> 9334.5 | F102: ='Market Data'!F89 -> 9424.5 | H102: 85 | I102: Hidden | J102: Long
B103: ='Market Data'!B90 -> 20000503 | C103: ='Market Data'!C90 -> 9367.5 | D103: ='Market Data'!D90 -> 9443 | E103: ='Market Data'!E90 -> 9219.5 | F103: ='Market Data'!F90 -> 9224.5 | H103: 86 | I103: Hidden | J103: Long
B104: ='Market Data'!B91 -> 20000504 | C104: ='Market Data'!C91 -> 9229.5 | D104: ='Market Data'!D91 -> 9293.5 | E104: ='Market Data'!E91 -> 9185.5 | F104: ='Market Data'!F91 -> 9253 | H104: 87 | I104: Hidden | J104: Long
B105: ='Market Data'!B92 -> 20000505 | C105: ='Market Data'!C92 -> 9274.5 | D105: ='Market Data'!D92 -> 9374 | E105: ='Market Data'!E92 -> 9199.5 | F105: ='Market Data'!F92 -> 9370.5 | H105: 88 | I105: Hidden | J105: Long
B106: ='Market Data'!B93 -> 20000508 | C106: ='Market Data'!C93 -> 9375.5 | D106: ='Market Data'!D93 -> 9396.5 | E106: ='Market Data'!E93 -> 9247.5 | F106: ='Market Data'!F93 -> 9267 | H106: 89 | I106: Hidden | J106: Long
B107: ='Market Data'!B94 -> 20000509 | C107: ='Market Data'!C94 -> 9254.5 | D107: ='Market Data'!D94 -> 9270 | E107: ='Market Data'!E94 -> 9092 | F107: ='Market Data'!F94 -> 9121.5 | H107: 90 | I107: Hidden | J107: Long
B108: ='Market Data'!B95 -> 20000510 | C108: ='Market Data'!C95 -> 9094.5 | D108: ='Market Data'!D95 -> 9196.5 | E108: ='Market Data'!E95 -> 8962.5 | F108: ='Market Data'!F95 -> 8986.5 | H108: 91 | I108: Hidden | J108: Long
B109: ='Market Data'!B96 -> 20000511 | C109: ='Market Data'!C96 -> 8927.5 | D109: ='Market Data'!D96 -> 9143.5 | E109: ='Market Data'!E96 -> 8876 | F109: ='Market Data'!F96 -> 9137.5 | H109: 92 | I109: Hidden | J109: Long
B110: ='Market Data'!B97 -> 20000512 | C110: ='Market Data'!C97 -> 9135.5 | D110: ='Market Data'!D97 -> 9194.5 | E110: ='Market Data'!E97 -> 9064 | F110: ='Market Data'!F97 -> 9125 | H110: 93 | I110: Hidden | J110: Long
B111: ='Market Data'!B98 -> 20000515 | C111: ='Market Data'!C98 -> 9138.5 | D111: ='Market Data'!D98 -> 9138.5 | E111: ='Market Data'!E98 -> 9053.5 | F111: ='Market Data'!F98 -> 9064.5 | H111: 94 | I111: Hidden | J111: Long
B112: ='Market Data'!B99 -> 20000516 | C112: ='Market Data'!C99 -> 9125.5 | D112: ='Market Data'!D99 -> 9264.5 | E112: ='Market Data'!E99 -> 9113 | F112: ='Market Data'!F99 -> 9247.5 | H112: 95 | I112: Hidden | J112: Long
B113: ='Market Data'!B100 -> 20000517 | C113: ='Market Data'!C100 -> 9210.5 | D113: ='Market Data'!D100 -> 9210.5 | E113: ='Market Data'!E100 -> 9054.5 | F113: ='Market Data'!F100 -> 9073.5 | H113: 96 | I113: Hidden | J113: Long
B114: ='Market Data'!B101 -> 20000518 | C114: ='Market Data'!C101 -> 9049.5 | D114: ='Market Data'!D101 -> 9121.5 | E114: ='Market Data'!E101 -> 9014.5 | F114: ='Market Data'!F101 -> 9019.5 | H114: 97 | I114: Hidden | J114: Long
B115: ='Market Data'!B102 -> 20000519 | C115: ='Market Data'!C102 -> 9012.5 | D115: ='Market Data'!D102 -> 9012.5 | E115: ='Market Data'!E102 -> 8813 | F115: ='Market Data'!F102 -> 8855 | H115: 98 | I115: Hidden | J115: Long
B116: ='Market Data'!B103 -> 20000522 | C116: ='Market Data'!C103 -> 8847.5 | D116: ='Market Data'!D103 -> 8899.5 | E116: ='Market Data'!E103 -> 8680 | F116: ='Market Data'!F103 -> 8780 | H116: 99 | I116: Hidden | J116: Long
B117: ='Market Data'!B104 -> 20000523 | C117: ='Market Data'!C104 -> 8836.5 | D117: ='Market Data'!D104 -> 8878 | E117: ='Market Data'!E104 -> 8737.5 | F117: ='Market Data'!F104 -> 8791.5 | H117: 100 | I117: Hidden | J117: Long
B118: ='Market Data'!B105 -> 20000524 | C118: ='Market Data'!C105 -> 8675.5 | D118: ='Market Data'!D105 -> 8728.5 | E118: ='Market Data'!E105 -> 8656 | F118: ='Market Data'!F105 -> 8708.5 | H118: 101 | I118: Hidden | J118: Long
B119: ='Market Data'!B106 -> 20000525 | C119: ='Market Data'!C106 -> 8757.5 | D119: ='Market Data'!D106 -> 8857 | E119: ='Market Data'!E106 -> 8742.5 | F119: ='Market Data'!F106 -> 8806.5 | H119: 102 | I119: Hidden | J119: Long
B120: ='Market Data'!B107 -> 20000526 | C120: ='Market Data'!C107 -> 8726.5 | D120: ='Market Data'!D107 -> 8833 | E120: ='Market Data'!E107 -> 8685.5 | F120: ='Market Data'!F107 -> 8802.5 | H120: 103 | I120: Hidden | J120: Long
B121: ='Market Data'!B108 -> 20000529 | C121: ='Market Data'!C108 -> 8858.5 | D121: ='Market Data'!D108 -> 8887 | E121: ='Market Data'!E108 -> 8839 | F121: ='Market Data'!F108 -> 8880.5 | H121: 104 | I121: Hidden | J121: Long
B122: ='Market Data'!B109 -> 20000530 | C122: ='Market Data'!C109 -> 8896.5 | D122: ='Market Data'!D109 -> 9012 | E122: ='Market Data'!E109 -> 8891.5 | F122: ='Market Data'!F109 -> 8973.5 | H122: 105 | I122: Hidden | J122: Long
B123: ='Market Data'!B110 -> 20000531 | C123: ='Market Data'!C110 -> 9054.5 | D123: ='Market Data'!D110 -> 9059.5 | E123: ='Market Data'!E110 -> 8956.5 | F123: ='Market Data'!F110 -> 8974.5 | H123: 106 | I123: Hidden | J123: Long
B124: ='Market Data'!B111 -> 20000601 | C124: ='Market Data'!C111 -> 9014.5 | D124: ='Market Data'!D111 -> 9134.5 | E124: ='Market Data'!E111 -> 9004 | F124: ='Market Data'!F111 -> 9122.5 | H124: 107 | I124: Hidden | J124: Long
B125: ='Market Data'!B112 -> 20000602 | C125: ='Market Data'!C112 -> 9110.5 | D125: ='Market Data'!D112 -> 9314.5 | E125: ='Market Data'!E112 -> 9099.5 | F125: ='Market Data'!F112 -> 9289.5 | H125: 108 | I125: Hidden | J125: Long
B126: ='Market Data'!B113 -> 20000605 | C126: ='Market Data'!C113 -> 9290.5 | D126: ='Market Data'!D113 -> 9300 | E126: ='Market Data'!E113 -> 9205.5 | F126: ='Market Data'!F113 -> 9255.5 | H126: 109 | I126: Hidden | J126: Long
B127: ='Market Data'!B114 -> 20000606 | C127: ='Market Data'!C114 -> 9264.5 | D127: ='Market Data'!D114 -> 9319.5 | E127: ='Market Data'!E114 -> 9150.5 | F127: ='Market Data'!F114 -> 9206.5 | H127: 110 | I127: Hidden | J127: Long
B128: ='Market Data'!B115 -> 20000607 | C128: ='Market Data'!C115 -> 9164.5 | D128: ='Market Data'!D115 -> 9178.5 | E128: ='Market Data'!E115 -> 9096 | F128: ='Market Data'!F115 -> 9141.5 | H128: 111 | I128: Hidden | J128: Long
B129: ='Market Data'!B116 -> 20000608 | C129: ='Market Data'!C116 -> 9178.5 | D129: ='Market Data'!D116 -> 9242.5 | E129: ='Market Data'!E116 -> 9060.5 | F129: ='Market Data'!F116 -> 9117.5 | H129: 112 | I129: Hidden | J129: Long
B130: ='Market Data'!B117 -> 20000609 | C130: ='Market Data'!C117 -> 9142.5 | D130: ='Market Data'!D117 -> 9209 | E130: ='Market Data'!E117 -> 9077 | F130: ='Market Data'!F117 -> 9081.5 | H130: 113 | I130: Hidden | J130: Long
B131: ='Market Data'!B118 -> 20000612 | C131: ='Market Data'!C118 -> 9124.5 | D131: ='Market Data'!D118 -> 9165 | E131: ='Market Data'!E118 -> 9068.5 | F131: ='Market Data'!F118 -> 9085.5 | H131: 114 | I131: Hidden | J131: Long
B132: ='Market Data'!B119 -> 20000613 | C132: ='Market Data'!C119 -> 9080.5 | D132: ='Market Data'!D119 -> 9159.5 | E132: ='Market Data'!E119 -> 9017.5 | F132: ='Market Data'!F119 -> 9116.5 | H132: 115 | I132: Hidden | J132: Long
B133: ='Market Data'!B120 -> 20000614 | C133: ='Market Data'!C120 -> 9147 | D133: ='Market Data'!D120 -> 9223 | E133: ='Market Data'!E120 -> 9096 | F133: ='Market Data'!F120 -> 9204 | H133: 116 | I133: Hidden | J133: Long
B134: ='Market Data'!B121 -> 20000615 | C134: ='Market Data'!C121 -> 9198 | D134: ='Market Data'!D121 -> 9236 | E134: ='Market Data'!E121 -> 9168 | F134: ='Market Data'!F121 -> 9195.5 | H134: 117 | I134: Hidden | J134: Long
B135: ='Market Data'!B122 -> 20000616 | C135: ='Market Data'!C122 -> 9224.5 | D135: ='Market Data'!D122 -> 9228 | E135: ='Market Data'!E122 -> 9083 | F135: ='Market Data'!F122 -> 9105.5 | H135: 118 | I135: Hidden | J135: Long
B136: ='Market Data'!B123 -> 20000619 | C136: ='Market Data'!C123 -> 9033 | D136: ='Market Data'!D123 -> 9073 | E136: ='Market Data'!E123 -> 8974 | F136: ='Market Data'!F123 -> 9068.5 | H136: 119 | I136: Hidden | J136: Long
B137: ='Market Data'!B124 -> 20000620 | C137: ='Market Data'!C124 -> 9079.5 | D137: ='Market Data'!D124 -> 9110 | E137: ='Market Data'!E124 -> 9040.5 | F137: ='Market Data'!F124 -> 9060.5 | H137: 120 | I137: Hidden | J137: Long
B138: ='Market Data'!B125 -> 20000621 | C138: ='Market Data'!C125 -> 9043 | D138: ='Market Data'!D125 -> 9081 | E138: ='Market Data'!E125 -> 8929 | F138: ='Market Data'!F125 -> 8976 | H138: 121 | I138: Hidden | J138: Long
B139: ='Market Data'!B126 -> 20000622 | C139: ='Market Data'!C126 -> 8988 | D139: ='Market Data'!D126 -> 9013 | E139: ='Market Data'!E126 -> 8859 | F139: ='Market Data'!F126 -> 8898.5 | H139: 122 | I139: Hidden | J139: Long
B140: ='Market Data'!B127 -> 20000623 | C140: ='Market Data'!C127 -> 8898 | D140: ='Market Data'!D127 -> 8919 | E140: ='Market Data'!E127 -> 8817 | F140: ='Market Data'!F127 -> 8818 | H140: 123 | I140: Hidden | J140: Long
B141: ='Market Data'!B128 -> 20000626 | C141: ='Market Data'!C128 -> 8813 | D141: ='Market Data'!D128 -> 8926.5 | E141: ='Market Data'!E128 -> 8800 | F141: ='Market Data'!F128 -> 8868 | H141: 124 | I141: Hidden | J141: Long
B142: ='Market Data'!B129 -> 20000627 | C142: ='Market Data'!C129 -> 8873 | D142: ='Market Data'!D129 -> 8901 | E142: ='Market Data'!E129 -> 8795 | F142: ='Market Data'!F129 -> 8876.5 | H142: 125 | I142: Hidden | J142: Long
B143: ='Market Data'!B130 -> 20000628 | C143: ='Market Data'!C130 -> 8901 | D143: ='Market Data'!D130 -> 8904.5 | E143: ='Market Data'!E130 -> 8835 | F143: ='Market Data'!F130 -> 8893 | H143: 126 | I143: Hidden | J143: Long
B144: ='Market Data'!B131 -> 20000629 | C144: ='Market Data'!C131 -> 8883 | D144: ='Market Data'!D131 -> 8883 | E144: ='Market Data'!E131 -> 8671 | F144: ='Market Data'!F131 -> 8705 | H144: 127 | I144: Hidden | J144: Long
B145: ='Market Data'!B132 -> 20000630 | C145: ='Market Data'!C132 -> 8738 | D145: ='Market Data'!D132 -> 8783 | E145: ='Market Data'!E132 -> 8696.5 | F145: ='Market Data'!F132 -> 8713 | H145: 128 | I145: Hidden | J145: Long
B146: ='Market Data'!B133 -> 20000703 | C146: ='Market Data'!C133 -> 8733 | D146: ='Market Data'!D133 -> 8791.5 | E146: ='Market Data'!E133 -> 8664 | F146: ='Market Data'!F133 -> 8791.5 | H146: =ROW()-ROW(H$17) -> 129 | I146: Hidden | J146: =$I$4 -> Long
B147: ='Market Data'!B134 -> 20000704 | C147: ='Market Data'!C134 -> 8748 | D147: ='Market Data'!D134 -> 8806 | E147: ='Market Data'!E134 -> 8730.5 | F147: ='Market Data'!F134 -> 8773 | H147: 130 | I147: Hidden | J147: Long
B148: ='Market Data'!B135 -> 20000705 | C148: ='Market Data'!C135 -> 8782 | D148: ='Market Data'!D135 -> 8917.5 | E148: ='Market Data'!E135 -> 8768 | F148: ='Market Data'!F135 -> 8799 | H148: 131 | I148: Hidden | J148: Long
B149: ='Market Data'!B136 -> 20000706 | C149: ='Market Data'!C136 -> 8778 | D149: ='Market Data'!D136 -> 8805.5 | E149: ='Market Data'!E136 -> 8718 | F149: ='Market Data'!F136 -> 8783 | H149: 132 | I149: Hidden | J149: Long
B150: ='Market Data'!B137 -> 20000707 | C150: ='Market Data'!C137 -> 8804.5 | D150: ='Market Data'!D137 -> 8879.5 | E150: ='Market Data'!E137 -> 8733 | F150: ='Market Data'!F137 -> 8871 | H150: 133 | I150: Hidden | J150: Long
B151: ='Market Data'!B138 -> 20000710 | C151: ='Market Data'!C138 -> 8887.5 | D151: ='Market Data'!D138 -> 8951 | E151: ='Market Data'!E138 -> 8851 | F151: ='Market Data'!F138 -> 8889 | H151: 134 | I151: Hidden | J151: Long
B152: ='Market Data'!B139 -> 20000711 | C152: ='Market Data'!C139 -> 8873 | D152: ='Market Data'!D139 -> 8884.5 | E152: ='Market Data'!E139 -> 8776.5 | F152: ='Market Data'!F139 -> 8819 | H152: 135 | I152: Hidden | J152: Long
B153: ='Market Data'!B140 -> 20000712 | C153: ='Market Data'!C140 -> 8849.5 | D153: ='Market Data'!D140 -> 8922 | E153: ='Market Data'!E140 -> 8836 | F153: ='Market Data'!F140 -> 8888.5 | H153: 136 | I153: Hidden | J153: Long
B154: ='Market Data'!B141 -> 20000713 | C154: ='Market Data'!C141 -> 8884 | D154: ='Market Data'!D141 -> 9011.5 | E154: ='Market Data'!E141 -> 8823 | F154: ='Market Data'!F141 -> 9007 | H154: 137 | I154: Hidden | J154: Long
B155: ='Market Data'!B142 -> 20000714 | C155: ='Market Data'!C142 -> 9014 | D155: ='Market Data'!D142 -> 9161 | E155: ='Market Data'!E142 -> 8985 | F155: ='Market Data'!F142 -> 9142 | H155: 138 | I155: Hidden | J155: Long
B156: ='Market Data'!B143 -> 20000717 | C156: ='Market Data'!C143 -> 9168.5 | D156: ='Market Data'!D143 -> 9243 | E156: ='Market Data'!E143 -> 9140.5 | F156: ='Market Data'!F143 -> 9236 | H156: 139 | I156: Hidden | J156: Long
B157: ='Market Data'!B144 -> 20000718 | C157: ='Market Data'!C144 -> 9208 | D157: ='Market Data'!D144 -> 9273 | E157: ='Market Data'!E144 -> 9173 | F157: ='Market Data'!F144 -> 9207 | H157: 140 | I157: Hidden | J157: Long
B158: ='Market Data'!B145 -> 20000719 | C158: ='Market Data'!C145 -> 9207 | D158: ='Market Data'!D145 -> 9213.5 | E158: ='Market Data'!E145 -> 9137 | F158: ='Market Data'!F145 -> 9178 | H158: 141 | I158: Hidden | J158: Long
B159: ='Market Data'!B146 -> 20000720 | C159: ='Market Data'!C146 -> 9148 | D159: ='Market Data'!D146 -> 9308 | E159: ='Market Data'!E146 -> 9143 | F159: ='Market Data'!F146 -> 9303 | H159: 142 | I159: Hidden | J159: Long
B160: ='Market Data'!B147 -> 20000721 | C160: ='Market Data'!C147 -> 9294 | D160: ='Market Data'!D147 -> 9312.5 | E160: ='Market Data'!E147 -> 9188 | F160: ='Market Data'!F147 -> 9197.5 | H160: 143 | I160: Hidden | J160: Long
B161: ='Market Data'!B148 -> 20000724 | C161: ='Market Data'!C148 -> 9168.5 | D161: ='Market Data'!D148 -> 9243.5 | E161: ='Market Data'!E148 -> 9120 | F161: ='Market Data'!F148 -> 9122 | H161: 144 | I161: Hidden | J161: Long
B162: ='Market Data'!B149 -> 20000725 | C162: ='Market Data'!C149 -> 9114 | D162: ='Market Data'!D149 -> 9170 | E162: ='Market Data'!E149 -> 9105.5 | F162: ='Market Data'!F149 -> 9148 | H162: 145 | I162: Hidden | J162: Long
B163: ='Market Data'!B150 -> 20000726 | C163: ='Market Data'!C150 -> 9159 | D163: ='Market Data'!D150 -> 9168 | E163: ='Market Data'!E150 -> 9061.5 | F163: ='Market Data'!F150 -> 9083 | H163: 146 | I163: Hidden | J163: Long
B164: ='Market Data'!B151 -> 20000727 | C164: ='Market Data'!C151 -> 9082 | D164: ='Market Data'!D151 -> 9141 | E164: ='Market Data'!E151 -> 8975.5 | F164: ='Market Data'!F151 -> 8990.5 | H164: 147 | I164: Hidden | J164: Long
B165: ='Market Data'!B152 -> 20000728 | C165: ='Market Data'!C152 -> 8994 | D165: ='Market Data'!D152 -> 9034 | E165: ='Market Data'!E152 -> 8878 | F165: ='Market Data'!F152 -> 8933 | H165: 148 | I165: Hidden | J165: Long
B166: ='Market Data'!B153 -> 20000731 | C166: ='Market Data'!C153 -> 8933 | D166: ='Market Data'!D153 -> 9060 | E166: ='Market Data'!E153 -> 8914 | F166: ='Market Data'!F153 -> 9035 | H166: 149 | I166: Hidden | J166: Long
B167: ='Market Data'!B154 -> 20000801 | C167: ='Market Data'!C154 -> 9034 | D167: ='Market Data'!D154 -> 9039 | E167: ='Market Data'!E154 -> 8898.5 | F167: ='Market Data'!F154 -> 8957 | H167: 150 | I167: Hidden | J167: Long
B168: ='Market Data'!B155 -> 20000802 | C168: ='Market Data'!C155 -> 8978 | D168: ='Market Data'!D155 -> 9004 | E168: ='Market Data'!E155 -> 8872 | F168: ='Market Data'!F155 -> 8926 | H168: 151 | I168: Hidden | J168: Long
B169: ='Market Data'!B156 -> 20000803 | C169: ='Market Data'!C156 -> 8879 | D169: ='Market Data'!D156 -> 8898.5 | E169: ='Market Data'!E156 -> 8757 | F169: ='Market Data'!F156 -> 8803 | H169: 152 | I169: Hidden | J169: Long
B170: ='Market Data'!B157 -> 20000804 | C170: ='Market Data'!C157 -> 8834 | D170: ='Market Data'!D157 -> 8908 | E170: ='Market Data'!E157 -> 8805 | F170: ='Market Data'!F157 -> 8823 | H170: 153 | I170: Hidden | J170: Long
B171: ='Market Data'!B158 -> 20000807 | C171: ='Market Data'!C158 -> 8848 | D171: ='Market Data'!D158 -> 8937 | E171: ='Market Data'!E158 -> 8837 | F171: ='Market Data'!F158 -> 8933 | H171: 154 | I171: Hidden | J171: Long
B172: ='Market Data'!B159 -> 20000808 | C172: ='Market Data'!C159 -> 8918 | D172: ='Market Data'!D159 -> 8992.5 | E172: ='Market Data'!E159 -> 8883 | F172: ='Market Data'!F159 -> 8944 | H172: 155 | I172: Hidden | J172: Long
B173: ='Market Data'!B160 -> 20000809 | C173: ='Market Data'!C160 -> 8972 | D173: ='Market Data'!D160 -> 9063.5 | E173: ='Market Data'!E160 -> 8971 | F173: ='Market Data'!F160 -> 9038 | H173: 156 | I173: Hidden | J173: Long
B174: ='Market Data'!B161 -> 20000810 | C174: ='Market Data'!C161 -> 9013 | D174: ='Market Data'!D161 -> 9108.5 | E174: ='Market Data'!E161 -> 9010 | F174: ='Market Data'!F161 -> 9069.5 | H174: 157 | I174: Hidden | J174: Long
B175: ='Market Data'!B162 -> 20000811 | C175: ='Market Data'!C162 -> 9063 | D175: ='Market Data'!D162 -> 9125 | E175: ='Market Data'!E162 -> 9019 | F175: ='Market Data'!F162 -> 9114 | H175: 158 | I175: Hidden | J175: Long
B176: ='Market Data'!B163 -> 20000814 | C176: ='Market Data'!C163 -> 9129 | D176: ='Market Data'!D163 -> 9162 | E176: ='Market Data'!E163 -> 9090 | F176: ='Market Data'!F163 -> 9111 | H176: 159 | I176: Hidden | J176: Long
B177: ='Market Data'!B164 -> 20000815 | C177: ='Market Data'!C164 -> 9157 | D177: ='Market Data'!D164 -> 9167.5 | E177: ='Market Data'!E164 -> 9071 | F177: ='Market Data'!F164 -> 9083 | H177: 160 | I177: Hidden | J177: Long
B178: ='Market Data'!B165 -> 20000816 | C178: ='Market Data'!C165 -> 9103 | D178: ='Market Data'!D165 -> 9156 | E178: ='Market Data'!E165 -> 9082.5 | F178: ='Market Data'!F165 -> 9119 | H178: 161 | I178: Hidden | J178: Long
B179: ='Market Data'!B166 -> 20000817 | C179: ='Market Data'!C166 -> 9118 | D179: ='Market Data'!D166 -> 9126 | E179: ='Market Data'!E166 -> 8998 | F179: ='Market Data'!F166 -> 9060 | H179: 162 | I179: Hidden | J179: Long
B180: ='Market Data'!B167 -> 20000818 | C180: ='Market Data'!C167 -> 9063 | D180: ='Market Data'!D167 -> 9112 | E180: ='Market Data'!E167 -> 9007 | F180: ='Market Data'!F167 -> 9010.5 | H180: 163 | I180: Hidden | J180: Long
B181: ='Market Data'!B168 -> 20000821 | C181: ='Market Data'!C168 -> 9038 | D181: ='Market Data'!D168 -> 9038 | E181: ='Market Data'!E168 -> 8933.5 | F181: ='Market Data'!F168 -> 8976 | H181: 164 | I181: Hidden | J181: Long
B182: ='Market Data'!B169 -> 20000822 | C182: ='Market Data'!C169 -> 8998 | D182: ='Market Data'!D169 -> 9074 | E182: ='Market Data'!E169 -> 8991.5 | F182: ='Market Data'!F169 -> 9037 | H182: 165 | I182: Hidden | J182: Long
B183: ='Market Data'!B170 -> 20000823 | C183: ='Market Data'!C170 -> 9043 | D183: ='Market Data'!D170 -> 9043 | E183: ='Market Data'!E170 -> 8938 | F183: ='Market Data'!F170 -> 9002 | H183: 166 | I183: Hidden | J183: Long
B184: ='Market Data'!B171 -> 20000824 | C184: ='Market Data'!C171 -> 9058 | D184: ='Market Data'!D171 -> 9063.5 | E184: ='Market Data'!E171 -> 8994 | F184: ='Market Data'!F171 -> 8998 | H184: 167 | I184: Hidden | J184: Long
B185: ='Market Data'!B172 -> 20000825 | C185: ='Market Data'!C172 -> 9024 | D185: ='Market Data'!D172 -> 9120 | E185: ='Market Data'!E172 -> 9015 | F185: ='Market Data'!F172 -> 9108 | H185: 168 | I185: Hidden | J185: Long
B186: ='Market Data'!B173 -> 20000828 | C186: ='Market Data'!C173 -> 9119 | D186: ='Market Data'!D173 -> 9182 | E186: ='Market Data'!E173 -> 9088.5 | F186: ='Market Data'!F173 -> 9126 | H186: 169 | I186: Hidden | J186: Long
B187: ='Market Data'!B174 -> 20000829 | C187: ='Market Data'!C174 -> 9105.5 | D187: ='Market Data'!D174 -> 9109.5 | E187: ='Market Data'!E174 -> 9049 | F187: ='Market Data'!F174 -> 9068 | H187: 170 | I187: Hidden | J187: Long
B188: ='Market Data'!B175 -> 20000830 | C188: ='Market Data'!C175 -> 9055 | D188: ='Market Data'!D175 -> 9057 | E188: ='Market Data'!E175 -> 8954 | F188: ='Market Data'!F175 -> 8959 | H188: 171 | I188: Hidden | J188: Long
B189: ='Market Data'!B176 -> 20000831 | C189: ='Market Data'!C176 -> 8976 | D189: ='Market Data'!D176 -> 9031 | E189: ='Market Data'!E176 -> 8943 | F189: ='Market Data'!F176 -> 9023 | H189: 172 | I189: Hidden | J189: Long
B190: ='Market Data'!B177 -> 20000901 | C190: ='Market Data'!C177 -> 9005 | D190: ='Market Data'!D177 -> 9175.5 | E190: ='Market Data'!E177 -> 9005 | F190: ='Market Data'!F177 -> 9133.5 | H190: 173 | I190: Hidden | J190: Long
B191: ='Market Data'!B178 -> 20000904 | C191: ='Market Data'!C178 -> 9138 | D191: ='Market Data'!D178 -> 9231 | E191: ='Market Data'!E178 -> 9137 | F191: ='Market Data'!F178 -> 9222 | H191: 174 | I191: Hidden | J191: Long
B192: ='Market Data'!B179 -> 20000905 | C192: ='Market Data'!C179 -> 9221.5 | D192: ='Market Data'!D179 -> 9221.5 | E192: ='Market Data'!E179 -> 9146 | F192: ='Market Data'!F179 -> 9169 | H192: 175 | I192: Hidden | J192: Long
B193: ='Market Data'!B180 -> 20000906 | C193: ='Market Data'!C180 -> 9163 | D193: ='Market Data'!D180 -> 9209 | E193: ='Market Data'!E180 -> 9088 | F193: ='Market Data'!F180 -> 9091 | H193: 176 | I193: Hidden | J193: Long
B194: ='Market Data'!B181 -> 20000907 | C194: ='Market Data'!C181 -> 9070 | D194: ='Market Data'!D181 -> 9157 | E194: ='Market Data'!E181 -> 9059.5 | F194: ='Market Data'!F181 -> 9143 | H194: 177 | I194: Hidden | J194: Long
B195: ='Market Data'!B182 -> 20000908 | C195: ='Market Data'!C182 -> 9151.5 | D195: ='Market Data'!D182 -> 9163 | E195: ='Market Data'!E182 -> 9019 | F195: ='Market Data'!F182 -> 9029.5 | H195: 178 | I195: Hidden | J195: Long
B196: ='Market Data'!B183 -> 20000911 | C196: ='Market Data'!C183 -> 9022 | D196: ='Market Data'!D183 -> 9041 | E196: ='Market Data'!E183 -> 8964.5 | F196: ='Market Data'!F183 -> 8987.5 | H196: 179 | I196: Hidden | J196: Long
B197: ='Market Data'!B184 -> 20000912 | C197: ='Market Data'!C184 -> 8948 | D197: ='Market Data'!D184 -> 8970 | E197: ='Market Data'!E184 -> 8896 | F197: ='Market Data'!F184 -> 8908.5 | H197: 180 | I197: Hidden | J197: Long
B198: ='Market Data'!B185 -> 20000913 | C198: ='Market Data'!C185 -> 8919.5 | D198: ='Market Data'!D185 -> 8930 | E198: ='Market Data'!E185 -> 8757 | F198: ='Market Data'!F185 -> 8773 | H198: 181 | I198: Hidden | J198: Long
B199: ='Market Data'!B186 -> 20000914 | C199: ='Market Data'!C186 -> 8788.5 | D199: ='Market Data'!D186 -> 8859 | E199: ='Market Data'!E186 -> 8762 | F199: ='Market Data'!F186 -> 8811.5 | H199: 182 | I199: Hidden | J199: Long
B200: ='Market Data'!B187 -> 20000915 | C200: ='Market Data'!C187 -> 8794.5 | D200: ='Market Data'!D187 -> 8837.5 | E200: ='Market Data'!E187 -> 8727.5 | F200: ='Market Data'!F187 -> 8776.5 | H200: 183 | I200: Hidden | J200: Long
B201: ='Market Data'!B188 -> 20000918 | C201: ='Market Data'!C188 -> 8704.5 | D201: ='Market Data'!D188 -> 8736.5 | E201: ='Market Data'!E188 -> 8625.5 | F201: ='Market Data'!F188 -> 8640 | H201: 184 | I201: Hidden | J201: Long
B202: ='Market Data'!B189 -> 20000919 | C202: ='Market Data'!C189 -> 8629.5 | D202: ='Market Data'!D189 -> 8685 | E202: ='Market Data'!E189 -> 8601 | F202: ='Market Data'!F189 -> 8683.5 | H202: 185 | I202: Hidden | J202: Long
B203: ='Market Data'!B190 -> 20000920 | C203: ='Market Data'!C190 -> 8710.5 | D203: ='Market Data'!D190 -> 8719 | E203: ='Market Data'!E190 -> 8475.5 | F203: ='Market Data'!F190 -> 8498 | H203: 186 | I203: Hidden | J203: Long
B204: ='Market Data'!B191 -> 20000921 | C204: ='Market Data'!C191 -> 8552.5 | D204: ='Market Data'!D191 -> 8563 | E204: ='Market Data'!E191 -> 8330 | F204: ='Market Data'!F191 -> 8413.5 | H204: 187 | I204: Hidden | J204: Long
B205: ='Market Data'!B192 -> 20000922 | C205: ='Market Data'!C192 -> 8239.5 | D205: ='Market Data'!D192 -> 8481 | E205: ='Market Data'!E192 -> 8239 | F205: ='Market Data'!F192 -> 8466.5 | H205: 188 | I205: Hidden | J205: Long
B206: ='Market Data'!B193 -> 20000925 | C206: ='Market Data'!C193 -> 8519.5 | D206: ='Market Data'!D193 -> 8569.5 | E206: ='Market Data'!E193 -> 8489.5 | F206: ='Market Data'!F193 -> 8519.5 | H206: 189 | I206: Hidden | J206: Long
B207: ='Market Data'!B194 -> 20000926 | C207: ='Market Data'!C194 -> 8499 | D207: ='Market Data'!D194 -> 8589.5 | E207: ='Market Data'!E194 -> 8475.5 | F207: ='Market Data'!F194 -> 8499 | H207: 190 | I207: Hidden | J207: Long
B208: ='Market Data'!B195 -> 20000927 | C208: ='Market Data'!C195 -> 8469.5 | D208: ='Market Data'!D195 -> 8607 | E208: ='Market Data'!E195 -> 8460.5 | F208: ='Market Data'!F195 -> 8526.5 | H208: 191 | I208: Hidden | J208: Long
B209: ='Market Data'!B196 -> 20000928 | C209: ='Market Data'!C196 -> 8536.5 | D209: ='Market Data'!D196 -> 8594.5 | E209: ='Market Data'!E196 -> 8462 | F209: ='Market Data'!F196 -> 8587.5 | H209: 192 | I209: Hidden | J209: Long
B210: ='Market Data'!B197 -> 20000929 | C210: ='Market Data'!C197 -> 8569.5 | D210: ='Market Data'!D197 -> 8630.5 | E210: ='Market Data'!E197 -> 8516 | F210: ='Market Data'!F197 -> 8548.5 | H210: =ROW()-ROW(H$17) -> 193 | I210: Hidden | J210: =$I$4 -> Long
... 3118 more rows

Sheet Trading Rule
B1: Introducing a Trading Rule | Z1: … OPEN THE BOX | AU1: Sample Year Static Data
B3: Polarised Fractal Efficiency (PFE) | O3: Number of Transactions | S3: Market details for Daxindix
B4: If PFE (n) > constant then buy (i.e. go long) | I4: buy constant = | J4: 0 | O4: Long | P4: =COUNTIF(L273:L3329,"<>#N/A") -> 58 | U4: Unit move = | V4: 35
B5: If PFE (n) < constant then sell (i.e. go short) | I5: sell constant = | J5: 0 | O5: Short | P5: =COUNTIF(M273:M3329,"<>#N/A") -> 57 | U5: Transaction cost = | V5: 90.96
B6: where n = look back window | I6: n = | J6: 84 | O6: Total | P6: =P4+P5 -> 115 | U6: Maximum position size = | V6: 1
B9: Market data showing Open, High, Low and Close for Daxindx for trading day. | H9: Signal is produced telling the system to go Long (buy) or Short (sell). This model uses Polarised Fractal Efficiency (PFE) as the indicator. | O9: Signal translates into potential position and order instruction for Next Day. Model assumes all orders get filled on the Next day Open. | S9: This shows Position, Profit / Loss (PL) and Cumulative PL for End of day on basis of previous day's order and/or position. It assumes appropriate transaction costs for market. | X9: Model calculates Sharpe ratio for sample period. | AB9: Sample years
A10: Sample | AA10: Year | AB10: 2001 | AC10: 2002 | AD10: 2003 | AE10: 2004 | AF10: 2005 | AG10: 2006 | AH10: 2007 | AI10: 2008 | AJ10: 2009 | AK10: 2010 | AL10: 2011 | AM10: 2012 | AN10: 2013
AB11: =TEXT(AB$10,"0") -> 2001 | AC11: 2002 | AD11: 2003 | AE11: 2004 | AF11: 2005 | AG11: 2006 | AH11: 2007 | AI11: 2008 | AJ11: 2009 | AK11: 2010 | AL11: 2011 | AM11: 2012 | AN11: =TEXT(AN$10,"0") -> 2013
AB12: =CHAR(64+COLUMN($V$18))&INDEX($AP:$AP,MATCH(AB$11,$AQ:$AQ,0)) -> V273 | AC12: =CHAR(64+COLUMN($V$18))&INDEX($AP:$AP,MATCH(AC$11,$AQ:$AQ,0)) -> V526 | AD12: =CHAR(64+COLUMN($V$18))&INDEX($AP:$AP,MATCH(AD$11,$AQ:$AQ,0)) -> V779 | AE12: =CHAR(64+COLUMN($V$18))&INDEX($AP:$AP,MATCH(AE$11,$AQ:$AQ,0)) -> V1032 | AF12: =CHAR(64+COLUMN($V$18))&INDEX($AP:$AP,MATCH(AF$11,$AQ:$AQ,0)) -> V1289 | AG12: =CHAR(64+COLUMN($V$18))&INDEX($AP:$AP,MATCH(AG$11,$AQ:$AQ,0)) -> V1546 | AH12: =CHAR(64+COLUMN($V$18))&INDEX($AP:$AP,MATCH(AH$11,$AQ:$AQ,0)) -> V1801 | AI12: =CHAR(64+COLUMN($V$18))&INDEX($AP:$AP,MATCH(AI$11,$AQ:$AQ,0)) -> V2053 | AJ12: =CHAR(64+COLUMN($V$18))&INDEX($AP:$AP,MATCH(AJ$11,$AQ:$AQ,0)) -> V2307 | AK12: =CHAR(64+COLUMN($V$18))&INDEX($AP:$AP,MATCH(AK$11,$AQ:$AQ,0)) -> V2561 | AL12: =CHAR(64+COLUMN($V$18))&INDEX($AP:$AP,MATCH(AL$11,$AQ:$AQ,0)) -> V2817 | AM12: =CHAR(64+COLUMN($V$18))&INDEX($AP:$AP,MATCH(AM$11,$AQ:$AQ,0)) -> V3074
AB13: =CHAR(64+COLUMN($V$18))&INDEX($AP:$AP,MATCH(AC$11,$AQ:$AQ,0)) -> V526 | AC13: =CHAR(64+COLUMN($V$18))&INDEX($AP:$AP,MATCH(AD$11,$AQ:$AQ,0)) -> V779 | AD13: =CHAR(64+COLUMN($V$18))&INDEX($AP:$AP,MATCH(AE$11,$AQ:$AQ,0)) -> V1032 | AE13: =CHAR(64+COLUMN($V$18))&INDEX($AP:$AP,MATCH(AF$11,$AQ:$AQ,0)) -> V1289 | AF13: =CHAR(64+COLUMN($V$18))&INDEX($AP:$AP,MATCH(AG$11,$AQ:$AQ,0)) -> V1546 | AG13: =CHAR(64+COLUMN($V$18))&INDEX($AP:$AP,MATCH(AH$11,$AQ:$AQ,0)) -> V1801 | AH13: =CHAR(64+COLUMN($V$18))&INDEX($AP:$AP,MATCH(AI$11,$AQ:$AQ,0)) -> V2053 | AI13: =CHAR(64+COLUMN($V$18))&INDEX($AP:$AP,MATCH(AJ$11,$AQ:$AQ,0)) -> V2307 | AJ13: =CHAR(64+COLUMN($V$18))&INDEX($AP:$AP,MATCH(AK$11,$AQ:$AQ,0)) -> V2561 | AK13: =CHAR(64+COLUMN($V$18))&INDEX($AP:$AP,MATCH(AL$11,$AQ:$AQ,0)) -> V2817 | AL13: =CHAR(64+COLUMN($V$18))&INDEX($AP:$AP,MATCH(AM$11,$AQ:$AQ,0)) -> V3074 | AM13: =CHAR(64+COLUMN($V$18))&INDEX($AP:$AP,MATCH(AN$11,$AQ:$AQ,0)) -> V3328
A14: Static | AA14: Sharpe Ratio | AB14: =sharpe(INDIRECT(AB$12&":"&AB$13)) -> 0.5356267055 | AC14: =sharpe(INDIRECT(AC$12&":"&AC$13)) -> 0.9870272545 | AD14: 1.291924917 | AE14: 0.09480461228 | AF14: 1.265304392 | AG14: 0.6426949178 | AH14: -0.08239686791 | AI14: 0.7063326489 | AJ14: 0.7197617166 | AK14: 0.4156827214 | AL14: -0.02755645425 | AM14: 0.3219598972
A15: Data | AA15: in/out of Sample | AB15: in | AC15: in | AD15: in | AE15: in | AF15: in | AG15: out | AH15: in | AI15: out | AJ15: in | AK15: out | AL15: in | AM15: out | AN15: <-- Set 'in' and 'out' of Sample Years
I17: End of day | J17: End of day | L17: Trading Signal | O17: Next day | P17: Next day | Q17: Next day | S17: End of day | U17: End of day | V17: End of day | X17: in-sample sharpe | Y17: out-of-sample sharpe | AP17: Row No. Last Date in Year | AQ17: New Year | AR17: Sample | AS17: YYYY | AT17: YYYYMM
B18: Date | C18: Open | D18: High | E18: Low | F18: Close | H18: Day | I18: PFE(n) | K18: Signal | L18: Go Long | M18: Go Short | O18: Potential Position | P18: Order quantity | Q18: Order status | S18: Position | U18: PL | V18: Cumulative PL | X18: =SUMIF($AB$15:$AM$15,"in",$AB$14:$AM$14)/COUNTIF($AB$15:$AM$15,"in") -> 0.5980620345 | Y18: =SUMIF($AB$15:$AM$15,"out",$AB$14:$AM$14)/COUNTIF($AB$15:$AM$15,"out") -> 0.5216675463
B19: ='Market Data'!B5 -> 19991230 | C19: ='Market Data'!C5 -> 8863.5 | D19: ='Market Data'!D5 -> 8935.5 | E19: ='Market Data'!E5 -> 8853.5 | F19: ='Market Data'!F5 -> 8930.5 | H19: =ROW()-ROW(H$18) -> 1 | I19: =IF($H19<($J$6+1),"",PFE(OFFSET($F19,0,0,-$J$6))) ->  | K19: =IF($I19="","",IF($I19>$J$4,"Long",IF($I19<$J$5,"Short",""))) ->  | L19: =IF(AND($K19="Long",$K18<>"Long"),$F19,NA()) ->  | M19: =IF(AND($K19="Short",$K18<>"Short"),$F19,NA()) ->  | AP19: =IF(NOT($AS19=$AS20),ROW(),"") -> 19 | AQ19: =IF(NOT(AS19=AS20),AS20,"") -> 2000 | AR19: =INDEX($AB$15:$AM$15,MATCH($AS19,$AB$11:$AM$11,0)) ->  | AS19: =LEFT(AT19,4) -> 1999 | AT19: =LEFT(B19,6) -> 199912
B20: ='Market Data'!B6 -> 20000103 | C20: ='Market Data'!C6 -> 9091.5 | D20: ='Market Data'!D6 -> 9113.5 | E20: ='Market Data'!E6 -> 8670.5 | F20: ='Market Data'!F6 -> 8708 | H20: =ROW()-ROW(H$18) -> 2 | I20: =IF($H20<($J$6+1),"",PFE(OFFSET($F20,0,0,-$J$6))) ->  | K20: =IF($I20="","",IF($I20>$J$4,"Long",IF($I20<$J$5,"Short",""))) ->  | AP20: =IF(NOT($AS20=$AS21),ROW(),"") ->  | AQ20: =IF(NOT(AS20=AS21),AS21,"") ->  | AR20: =INDEX($AB$15:$AM$15,MATCH($AS20,$AB$11:$AM$11,0)) ->  | AS20: =LEFT(AT20,4) -> 2000 | AT20: =LEFT(B20,6) -> 200001
B21: ='Market Data'!B7 -> 20000104 | C21: ='Market Data'!C7 -> 8703.5 | D21: ='Market Data'!D7 -> 8703.5 | E21: ='Market Data'!E7 -> 8459.5 | F21: ='Market Data'!F7 -> 8533.5 | H21: 3 | I21: =IF($H21<($J$6+1),"",PFE(OFFSET($F21,0,0,-$J$6))) ->  | AP21: =IF(NOT($AS21=$AS22),ROW(),"") ->  | AQ21: =IF(NOT(AS21=AS22),AS22,"") ->  | AR21: =INDEX($AB$15:$AM$15,MATCH($AS21,$AB$11:$AM$11,0)) ->  | AS21: =LEFT(AT21,4) -> 2000 | AT21: =LEFT(B21,6) -> 200001
B22: ='Market Data'!B8 -> 20000105 | C22: ='Market Data'!C8 -> 8370.5 | D22: ='Market Data'!D8 -> 8525.5 | E22: ='Market Data'!E8 -> 8366.5 | F22: ='Market Data'!F8 -> 8435.5 | H22: 4 | I22: =IF($H22<($J$6+1),"",PFE(OFFSET($F22,0,0,-$J$6))) ->  | AP22: =IF(NOT($AS22=$AS23),ROW(),"") ->  | AQ22: =IF(NOT(AS22=AS23),AS23,"") ->  | AR22: =INDEX($AB$15:$AM$15,MATCH($AS22,$AB$11:$AM$11,0)) ->  | AS22: =LEFT(AT22,4) -> 2000 | AT22: =LEFT(B22,6) -> 200001
B23: ='Market Data'!B9 -> 20000106 | C23: ='Market Data'!C9 -> 8427.5 | D23: ='Market Data'!D9 -> 8480.5 | E23: ='Market Data'!E9 -> 8341 | F23: ='Market Data'!F9 -> 8409 | H23: 5 | I23: =IF($H23<($J$6+1),"",PFE(OFFSET($F23,0,0,-$J$6))) ->  | AP23: =IF(NOT($AS23=$AS24),ROW(),"") ->  | AQ23: =IF(NOT(AS23=AS24),AS24,"") ->  | AR23: =INDEX($AB$15:$AM$15,MATCH($AS23,$AB$11:$AM$11,0)) ->  | AS23: =LEFT(AT23,4) -> 2000 | AT23: =LEFT(B23,6) -> 200001
B24: ='Market Data'!B10 -> 20000107 | C24: ='Market Data'!C10 -> 8463.5 | D24: ='Market Data'!D10 -> 8738.5 | E24: ='Market Data'!E10 -> 8452.5 | F24: ='Market Data'!F10 -> 8733.5 | H24: 6 | I24: =IF($H24<($J$6+1),"",PFE(OFFSET($F24,0,0,-$J$6))) ->  | AP24: =IF(NOT($AS24=$AS25),ROW(),"") ->  | AQ24: =IF(NOT(AS24=AS25),AS25,"") ->  | AR24: =INDEX($AB$15:$AM$15,MATCH($AS24,$AB$11:$AM$11,0)) ->  | AS24: =LEFT(AT24,4) -> 2000 | AT24: =LEFT(B24,6) -> 200001
B25: ='Market Data'!B11 -> 20000110 | C25: ='Market Data'!C11 -> 8833.5 | D25: ='Market Data'!D11 -> 8922.5 | E25: ='Market Data'!E11 -> 8805.5 | F25: ='Market Data'!F11 -> 8863.5 | H25: 7 | I25: =IF($H25<($J$6+1),"",PFE(OFFSET($F25,0,0,-$J$6))) ->  | AP25: =IF(NOT($AS25=$AS26),ROW(),"") ->  | AQ25: =IF(NOT(AS25=AS26),AS26,"") ->  | AR25: =INDEX($AB$15:$AM$15,MATCH($AS25,$AB$11:$AM$11,0)) ->  | AS25: =LEFT(AT25,4) -> 2000 | AT25: =LEFT(B25,6) -> 200001
B26: ='Market Data'!B12 -> 20000111 | C26: ='Market Data'!C12 -> 8843.5 | D26: ='Market Data'!D12 -> 8884.5 | E26: ='Market Data'!E12 -> 8764.5 | F26: ='Market Data'!F12 -> 8842 | H26: 8 | I26: =IF($H26<($J$6+1),"",PFE(OFFSET($F26,0,0,-$J$6))) ->  | AP26: =IF(NOT($AS26=$AS27),ROW(),"") ->  | AQ26: =IF(NOT(AS26=AS27),AS27,"") ->  | AR26: =INDEX($AB$15:$AM$15,MATCH($AS26,$AB$11:$AM$11,0)) ->  | AS26: =LEFT(AT26,4) -> 2000 | AT26: =LEFT(B26,6) -> 200001
B27: ='Market Data'!B13 -> 20000112 | C27: ='Market Data'!C13 -> 8763.5 | D27: ='Market Data'!D13 -> 8850 | E27: ='Market Data'!E13 -> 8732 | F27: ='Market Data'!F13 -> 8841.5 | H27: 9 | I27: =IF($H27<($J$6+1),"",PFE(OFFSET($F27,0,0,-$J$6))) ->  | AP27: =IF(NOT($AS27=$AS28),ROW(),"") ->  | AQ27: =IF(NOT(AS27=AS28),AS28,"") ->  | AR27: =INDEX($AB$15:$AM$15,MATCH($AS27,$AB$11:$AM$11,0)) ->  | AS27: =LEFT(AT27,4) -> 2000 | AT27: =LEFT(B27,6) -> 200001
B28: ='Market Data'!B14 -> 20000113 | C28: ='Market Data'!C14 -> 8843.5 | D28: ='Market Data'!D14 -> 9048.5 | E28: ='Market Data'!E14 -> 8827 | F28: ='Market Data'!F14 -> 8912.5 | H28: 10 | I28: =IF($H28<($J$6+1),"",PFE(OFFSET($F28,0,0,-$J$6))) ->  | AP28: =IF(NOT($AS28=$AS29),ROW(),"") ->  | AQ28: =IF(NOT(AS28=AS29),AS29,"") ->  | AR28: =INDEX($AB$15:$AM$15,MATCH($AS28,$AB$11:$AM$11,0)) ->  | AS28: =LEFT(AT28,4) -> 2000 | AT28: =LEFT(B28,6) -> 200001
B29: ='Market Data'!B15 -> 20000114 | C29: ='Market Data'!C15 -> 8953.5 | D29: ='Market Data'!D15 -> 9149.5 | E29: ='Market Data'!E15 -> 8953.5 | F29: ='Market Data'!F15 -> 9132.5 | H29: 11 | I29: =IF($H29<($J$6+1),"",PFE(OFFSET($F29,0,0,-$J$6))) ->  | AP29: =IF(NOT($AS29=$AS30),ROW(),"") ->  | AQ29: =IF(NOT(AS29=AS30),AS30,"") ->  | AR29: =INDEX($AB$15:$AM$15,MATCH($AS29,$AB$11:$AM$11,0)) ->  | AS29: =LEFT(AT29,4) -> 2000 | AT29: =LEFT(B29,6) -> 200001
B30: ='Market Data'!B16 -> 20000117 | C30: ='Market Data'!C16 -> 9166.5 | D30: ='Market Data'!D16 -> 9229.5 | E30: ='Market Data'!E16 -> 9050 | F30: ='Market Data'!F16 -> 9210.5 | H30: 12 | I30: =IF($H30<($J$6+1),"",PFE(OFFSET($F30,0,0,-$J$6))) ->  | AP30: =IF(NOT($AS30=$AS31),ROW(),"") ->  | AQ30: =IF(NOT(AS30=AS31),AS31,"") ->  | AR30: =INDEX($AB$15:$AM$15,MATCH($AS30,$AB$11:$AM$11,0)) ->  | AS30: =LEFT(AT30,4) -> 2000 | AT30: =LEFT(B30,6) -> 200001
B31: ='Market Data'!B17 -> 20000118 | C31: ='Market Data'!C17 -> 9210.5 | D31: ='Market Data'!D17 -> 9241.5 | E31: ='Market Data'!E17 -> 8993.5 | F31: ='Market Data'!F17 -> 9026.5 | H31: 13 | I31: =IF($H31<($J$6+1),"",PFE(OFFSET($F31,0,0,-$J$6))) ->  | AP31: =IF(NOT($AS31=$AS32),ROW(),"") ->  | AQ31: =IF(NOT(AS31=AS32),AS32,"") ->  | AR31: =INDEX($AB$15:$AM$15,MATCH($AS31,$AB$11:$AM$11,0)) ->  | AS31: =LEFT(AT31,4) -> 2000 | AT31: =LEFT(B31,6) -> 200001
B32: ='Market Data'!B18 -> 20000119 | C32: ='Market Data'!C18 -> 8993.5 | D32: ='Market Data'!D18 -> 9052.5 | E32: ='Market Data'!E18 -> 8918.5 | F32: ='Market Data'!F18 -> 9031.5 | H32: 14 | I32: =IF($H32<($J$6+1),"",PFE(OFFSET($F32,0,0,-$J$6))) ->  | AP32: =IF(NOT($AS32=$AS33),ROW(),"") ->  | AQ32: =IF(NOT(AS32=AS33),AS33,"") ->  | AR32: =INDEX($AB$15:$AM$15,MATCH($AS32,$AB$11:$AM$11,0)) ->  | AS32: =LEFT(AT32,4) -> 2000 | AT32: =LEFT(B32,6) -> 200001
B33: ='Market Data'!B19 -> 20000120 | C33: ='Market Data'!C19 -> 9119.5 | D33: ='Market Data'!D19 -> 9131 | E33: ='Market Data'!E19 -> 9011 | F33: ='Market Data'!F19 -> 9043.5 | H33: 15 | I33: =IF($H33<($J$6+1),"",PFE(OFFSET($F33,0,0,-$J$6))) ->  | AP33: =IF(NOT($AS33=$AS34),ROW(),"") ->  | AQ33: =IF(NOT(AS33=AS34),AS34,"") ->  | AR33: =INDEX($AB$15:$AM$15,MATCH($AS33,$AB$11:$AM$11,0)) ->  | AS33: =LEFT(AT33,4) -> 2000 | AT33: =LEFT(B33,6) -> 200001
B34: ='Market Data'!B20 -> 20000121 | C34: ='Market Data'!C20 -> 8973.5 | D34: ='Market Data'!D20 -> 9036.5 | E34: ='Market Data'!E20 -> 8866.5 | F34: ='Market Data'!F20 -> 8916 | H34: 16 | I34: =IF($H34<($J$6+1),"",PFE(OFFSET($F34,0,0,-$J$6))) ->  | AP34: =IF(NOT($AS34=$AS35),ROW(),"") ->  | AQ34: =IF(NOT(AS34=AS35),AS35,"") ->  | AR34: =INDEX($AB$15:$AM$15,MATCH($AS34,$AB$11:$AM$11,0)) ->  | AS34: =LEFT(AT34,4) -> 2000 | AT34: =LEFT(B34,6) -> 200001
B35: ='Market Data'!B21 -> 20000124 | C35: ='Market Data'!C21 -> 8963.5 | D35: ='Market Data'!D21 -> 9023.5 | E35: ='Market Data'!E21 -> 8850.5 | F35: ='Market Data'!F21 -> 8853.5 | H35: 17 | I35: =IF($H35<($J$6+1),"",PFE(OFFSET($F35,0,0,-$J$6))) ->  | AP35: =IF(NOT($AS35=$AS36),ROW(),"") ->  | AQ35: =IF(NOT(AS35=AS36),AS36,"") ->  | AR35: =INDEX($AB$15:$AM$15,MATCH($AS35,$AB$11:$AM$11,0)) ->  | AS35: =LEFT(AT35,4) -> 2000 | AT35: =LEFT(B35,6) -> 200001
B36: ='Market Data'!B22 -> 20000125 | C36: ='Market Data'!C22 -> 8784.5 | D36: ='Market Data'!D22 -> 8836.5 | E36: ='Market Data'!E22 -> 8745.5 | F36: ='Market Data'!F22 -> 8794.5 | H36: 18 | I36: =IF($H36<($J$6+1),"",PFE(OFFSET($F36,0,0,-$J$6))) ->  | AP36: =IF(NOT($AS36=$AS37),ROW(),"") ->  | AQ36: =IF(NOT(AS36=AS37),AS37,"") ->  | AR36: =INDEX($AB$15:$AM$15,MATCH($AS36,$AB$11:$AM$11,0)) ->  | AS36: =LEFT(AT36,4) -> 2000 | AT36: =LEFT(B36,6) -> 200001
B37: ='Market Data'!B23 -> 20000126 | C37: ='Market Data'!C23 -> 8819.5 | D37: ='Market Data'!D23 -> 8908 | E37: ='Market Data'!E23 -> 8762.5 | F37: ='Market Data'!F23 -> 8893 | H37: 19 | I37: =IF($H37<($J$6+1),"",PFE(OFFSET($F37,0,0,-$J$6))) ->  | AP37: =IF(NOT($AS37=$AS38),ROW(),"") ->  | AQ37: =IF(NOT(AS37=AS38),AS38,"") ->  | AR37: =INDEX($AB$15:$AM$15,MATCH($AS37,$AB$11:$AM$11,0)) ->  | AS37: =LEFT(AT37,4) -> 2000 | AT37: =LEFT(B37,6) -> 200001
B38: ='Market Data'!B24 -> 20000127 | C38: ='Market Data'!C24 -> 8927.5 | D38: ='Market Data'!D24 -> 9100.5 | E38: ='Market Data'!E24 -> 8866.5 | F38: ='Market Data'!F24 -> 9064.5 | H38: 20 | I38: =IF($H38<($J$6+1),"",PFE(OFFSET($F38,0,0,-$J$6))) ->  | AP38: =IF(NOT($AS38=$AS39),ROW(),"") ->  | AQ38: =IF(NOT(AS38=AS39),AS39,"") ->  | AR38: =INDEX($AB$15:$AM$15,MATCH($AS38,$AB$11:$AM$11,0)) ->  | AS38: =LEFT(AT38,4) -> 2000 | AT38: =LEFT(B38,6) -> 200001
B39: ='Market Data'!B25 -> 20000128 | C39: ='Market Data'!C25 -> 9043.5 | D39: ='Market Data'!D25 -> 9148 | E39: ='Market Data'!E25 -> 8968.5 | F39: ='Market Data'!F25 -> 8998.5 | H39: 21 | I39: =IF($H39<($J$6+1),"",PFE(OFFSET($F39,0,0,-$J$6))) ->  | AP39: =IF(NOT($AS39=$AS40),ROW(),"") ->  | AQ39: =IF(NOT(AS39=AS40),AS40,"") ->  | AR39: =INDEX($AB$15:$AM$15,MATCH($AS39,$AB$11:$AM$11,0)) ->  | AS39: =LEFT(AT39,4) -> 2000 | AT39: =LEFT(B39,6) -> 200001
B40: ='Market Data'!B26 -> 20000131 | C40: ='Market Data'!C26 -> 8932.5 | D40: ='Market Data'!D26 -> 8936 | E40: ='Market Data'!E26 -> 8737.5 | F40: ='Market Data'!F26 -> 8761.5 | H40: 22 | I40: =IF($H40<($J$6+1),"",PFE(OFFSET($F40,0,0,-$J$6))) ->  | AP40: =IF(NOT($AS40=$AS41),ROW(),"") ->  | AQ40: =IF(NOT(AS40=AS41),AS41,"") ->  | AR40: =INDEX($AB$15:$AM$15,MATCH($AS40,$AB$11:$AM$11,0)) ->  | AS40: =LEFT(AT40,4) -> 2000 | AT40: =LEFT(B40,6) -> 200001
B41: ='Market Data'!B27 -> 20000201 | C41: ='Market Data'!C27 -> 8864.5 | D41: ='Market Data'!D27 -> 8958.5 | E41: ='Market Data'!E27 -> 8822.5 | F41: ='Market Data'!F27 -> 8944.5 | H41: 23 | I41: =IF($H41<($J$6+1),"",PFE(OFFSET($F41,0,0,-$J$6))) ->  | AP41: =IF(NOT($AS41=$AS42),ROW(),"") ->  | AQ41: =IF(NOT(AS41=AS42),AS42,"") ->  | AR41: =INDEX($AB$15:$AM$15,MATCH($AS41,$AB$11:$AM$11,0)) ->  | AS41: =LEFT(AT41,4) -> 2000 | AT41: =LEFT(B41,6) -> 200002
B42: ='Market Data'!B28 -> 20000202 | C42: ='Market Data'!C28 -> 9002.5 | D42: ='Market Data'!D28 -> 9084.5 | E42: ='Market Data'!E28 -> 8954.5 | F42: ='Market Data'!F28 -> 9083 | H42: 24 | I42: =IF($H42<($J$6+1),"",PFE(OFFSET($F42,0,0,-$J$6))) ->  | AP42: =IF(NOT($AS42=$AS43),ROW(),"") ->  | AQ42: =IF(NOT(AS42=AS43),AS43,"") ->  | AR42: =INDEX($AB$15:$AM$15,MATCH($AS42,$AB$11:$AM$11,0)) ->  | AS42: =LEFT(AT42,4) -> 2000 | AT42: =LEFT(B42,6) -> 200002
B43: ='Market Data'!B29 -> 20000203 | C43: ='Market Data'!C29 -> 9103.5 | D43: ='Market Data'!D29 -> 9271.5 | E43: ='Market Data'!E29 -> 9056 | F43: ='Market Data'!F29 -> 9261.5 | H43: 25 | I43: =IF($H43<($J$6+1),"",PFE(OFFSET($F43,0,0,-$J$6))) ->  | AP43: =IF(NOT($AS43=$AS44),ROW(),"") ->  | AQ43: =IF(NOT(AS43=AS44),AS44,"") ->  | AR43: =INDEX($AB$15:$AM$15,MATCH($AS43,$AB$11:$AM$11,0)) ->  | AS43: =LEFT(AT43,4) -> 2000 | AT43: =LEFT(B43,6) -> 200002
B44: ='Market Data'!B30 -> 20000204 | C44: ='Market Data'!C30 -> 9321 | D44: ='Market Data'!D30 -> 9377.5 | E44: ='Market Data'!E30 -> 9249.5 | F44: ='Market Data'!F30 -> 9303.5 | H44: 26 | I44: =IF($H44<($J$6+1),"",PFE(OFFSET($F44,0,0,-$J$6))) ->  | AP44: =IF(NOT($AS44=$AS45),ROW(),"") ->  | AQ44: =IF(NOT(AS44=AS45),AS45,"") ->  | AR44: =INDEX($AB$15:$AM$15,MATCH($AS44,$AB$11:$AM$11,0)) ->  | AS44: =LEFT(AT44,4) -> 2000 | AT44: =LEFT(B44,6) -> 200002
B45: ='Market Data'!B31 -> 20000207 | C45: ='Market Data'!C31 -> 9304.5 | D45: ='Market Data'!D31 -> 9331 | E45: ='Market Data'!E31 -> 9171.5 | F45: ='Market Data'!F31 -> 9219 | H45: 27 | I45: =IF($H45<($J$6+1),"",PFE(OFFSET($F45,0,0,-$J$6))) ->  | AP45: =IF(NOT($AS45=$AS46),ROW(),"") ->  | AQ45: =IF(NOT(AS45=AS46),AS46,"") ->  | AR45: =INDEX($AB$15:$AM$15,MATCH($AS45,$AB$11:$AM$11,0)) ->  | AS45: =LEFT(AT45,4) -> 2000 | AT45: =LEFT(B45,6) -> 200002
B46: ='Market Data'!B32 -> 20000208 | C46: ='Market Data'!C32 -> 9211.5 | D46: ='Market Data'!D32 -> 9481.5 | E46: ='Market Data'!E32 -> 9203.5 | F46: ='Market Data'!F32 -> 9445.5 | H46: 28 | I46: =IF($H46<($J$6+1),"",PFE(OFFSET($F46,0,0,-$J$6))) ->  | AP46: =IF(NOT($AS46=$AS47),ROW(),"") ->  | AQ46: =IF(NOT(AS46=AS47),AS47,"") ->  | AR46: =INDEX($AB$15:$AM$15,MATCH($AS46,$AB$11:$AM$11,0)) ->  | AS46: =LEFT(AT46,4) -> 2000 | AT46: =LEFT(B46,6) -> 200002
B47: ='Market Data'!B33 -> 20000209 | C47: ='Market Data'!C33 -> 9466.5 | D47: ='Market Data'!D33 -> 9589.5 | E47: ='Market Data'!E33 -> 9439.5 | F47: ='Market Data'!F33 -> 9562.5 | H47: 29 | I47: =IF($H47<($J$6+1),"",PFE(OFFSET($F47,0,0,-$J$6))) ->  | AP47: =IF(NOT($AS47=$AS48),ROW(),"") ->  | AQ47: =IF(NOT(AS47=AS48),AS48,"") ->  | AR47: =INDEX($AB$15:$AM$15,MATCH($AS47,$AB$11:$AM$11,0)) ->  | AS47: =LEFT(AT47,4) -> 2000 | AT47: =LEFT(B47,6) -> 200002
B48: ='Market Data'!B34 -> 20000210 | C48: ='Market Data'!C34 -> 9449.5 | D48: ='Market Data'!D34 -> 9596.5 | E48: ='Market Data'!E34 -> 9432 | F48: ='Market Data'!F34 -> 9574.5 | H48: 30 | I48: =IF($H48<($J$6+1),"",PFE(OFFSET($F48,0,0,-$J$6))) ->  | AP48: =IF(NOT($AS48=$AS49),ROW(),"") ->  | AQ48: =IF(NOT(AS48=AS49),AS49,"") ->  | AR48: =INDEX($AB$15:$AM$15,MATCH($AS48,$AB$11:$AM$11,0)) ->  | AS48: =LEFT(AT48,4) -> 2000 | AT48: =LEFT(B48,6) -> 200002
B49: ='Market Data'!B35 -> 20000211 | C49: ='Market Data'!C35 -> 9651.5 | D49: ='Market Data'!D35 -> 9738.5 | E49: ='Market Data'!E35 -> 9499.5 | F49: ='Market Data'!F35 -> 9613.5 | H49: 31 | I49: =IF($H49<($J$6+1),"",PFE(OFFSET($F49,0,0,-$J$6))) ->  | AP49: =IF(NOT($AS49=$AS50),ROW(),"") ->  | AQ49: =IF(NOT(AS49=AS50),AS50,"") ->  | AR49: =INDEX($AB$15:$AM$15,MATCH($AS49,$AB$11:$AM$11,0)) ->  | AS49: =LEFT(AT49,4) -> 2000 | AT49: =LEFT(B49,6) -> 200002
B50: ='Market Data'!B36 -> 20000214 | C50: ='Market Data'!C36 -> 9504.5 | D50: ='Market Data'!D36 -> 9587 | E50: ='Market Data'!E36 -> 9468.5 | F50: ='Market Data'!F36 -> 9551.5 | H50: 32 | I50: =IF($H50<($J$6+1),"",PFE(OFFSET($F50,0,0,-$J$6))) ->  | AP50: =IF(NOT($AS50=$AS51),ROW(),"") ->  | AQ50: =IF(NOT(AS50=AS51),AS51,"") ->  | AR50: =INDEX($AB$15:$AM$15,MATCH($AS50,$AB$11:$AM$11,0)) ->  | AS50: =LEFT(AT50,4) -> 2000 | AT50: =LEFT(B50,6) -> 200002
B51: ='Market Data'!B37 -> 20000215 | C51: ='Market Data'!C37 -> 9562.5 | D51: ='Market Data'!D37 -> 9610 | E51: ='Market Data'!E37 -> 9333.5 | F51: ='Market Data'!F37 -> 9340 | H51: 33 | I51: =IF($H51<($J$6+1),"",PFE(OFFSET($F51,0,0,-$J$6))) ->  | AP51: =IF(NOT($AS51=$AS52),ROW(),"") ->  | AQ51: =IF(NOT(AS51=AS52),AS52,"") ->  | AR51: =INDEX($AB$15:$AM$15,MATCH($AS51,$AB$11:$AM$11,0)) ->  | AS51: =LEFT(AT51,4) -> 2000 | AT51: =LEFT(B51,6) -> 200002
B52: ='Market Data'!B38 -> 20000216 | C52: ='Market Data'!C38 -> 9466 | D52: ='Market Data'!D38 -> 9488.5 | E52: ='Market Data'!E38 -> 9268.5 | F52: ='Market Data'!F38 -> 9430 | H52: 34 | I52: =IF($H52<($J$6+1),"",PFE(OFFSET($F52,0,0,-$J$6))) ->  | AP52: =IF(NOT($AS52=$AS53),ROW(),"") ->  | AQ52: =IF(NOT(AS52=AS53),AS53,"") ->  | AR52: =INDEX($AB$15:$AM$15,MATCH($AS52,$AB$11:$AM$11,0)) ->  | AS52: =LEFT(AT52,4) -> 2000 | AT52: =LEFT(B52,6) -> 200002
B53: ='Market Data'!B39 -> 20000217 | C53: ='Market Data'!C39 -> 9427.5 | D53: ='Market Data'!D39 -> 9555.5 | E53: ='Market Data'!E39 -> 9309 | F53: ='Market Data'!F39 -> 9540.5 | H53: 35 | I53: =IF($H53<($J$6+1),"",PFE(OFFSET($F53,0,0,-$J$6))) ->  | AP53: =IF(NOT($AS53=$AS54),ROW(),"") ->  | AQ53: =IF(NOT(AS53=AS54),AS54,"") ->  | AR53: =INDEX($AB$15:$AM$15,MATCH($AS53,$AB$11:$AM$11,0)) ->  | AS53: =LEFT(AT53,4) -> 2000 | AT53: =LEFT(B53,6) -> 200002
B54: ='Market Data'!B40 -> 20000218 | C54: ='Market Data'!C40 -> 9511.5 | D54: ='Market Data'!D40 -> 9580.5 | E54: ='Market Data'!E40 -> 9467 | F54: ='Market Data'!F40 -> 9499.5 | H54: 36 | I54: =IF($H54<($J$6+1),"",PFE(OFFSET($F54,0,0,-$J$6))) ->  | AP54: =IF(NOT($AS54=$AS55),ROW(),"") ->  | AQ54: =IF(NOT(AS54=AS55),AS55,"") ->  | AR54: =INDEX($AB$15:$AM$15,MATCH($AS54,$AB$11:$AM$11,0)) ->  | AS54: =LEFT(AT54,4) -> 2000 | AT54: =LEFT(B54,6) -> 200002
B55: ='Market Data'!B41 -> 20000221 | C55: ='Market Data'!C41 -> 9386.5 | D55: ='Market Data'!D41 -> 9476.5 | E55: ='Market Data'!E41 -> 9363.5 | F55: ='Market Data'!F41 -> 9470.5 | H55: 37 | I55: =IF($H55<($J$6+1),"",PFE(OFFSET($F55,0,0,-$J$6))) ->  | AP55: =IF(NOT($AS55=$AS56),ROW(),"") ->  | AQ55: =IF(NOT(AS55=AS56),AS56,"") ->  | AR55: =INDEX($AB$15:$AM$15,MATCH($AS55,$AB$11:$AM$11,0)) ->  | AS55: =LEFT(AT55,4) -> 2000 | AT55: =LEFT(B55,6) -> 200002
B56: ='Market Data'!B42 -> 20000222 | C56: ='Market Data'!C42 -> 9463.5 | D56: ='Market Data'!D42 -> 9636.5 | E56: ='Market Data'!E42 -> 9454.5 | F56: ='Market Data'!F42 -> 9533 | H56: 38 | I56: =IF($H56<($J$6+1),"",PFE(OFFSET($F56,0,0,-$J$6))) ->  | AP56: =IF(NOT($AS56=$AS57),ROW(),"") ->  | AQ56: =IF(NOT(AS56=AS57),AS57,"") ->  | AR56: =INDEX($AB$15:$AM$15,MATCH($AS56,$AB$11:$AM$11,0)) ->  | AS56: =LEFT(AT56,4) -> 2000 | AT56: =LEFT(B56,6) -> 200002
B57: ='Market Data'!B43 -> 20000223 | C57: ='Market Data'!C43 -> 9563 | D57: ='Market Data'!D43 -> 9689.5 | E57: ='Market Data'!E43 -> 9552.5 | F57: ='Market Data'!F43 -> 9615 | H57: 39 | I57: =IF($H57<($J$6+1),"",PFE(OFFSET($F57,0,0,-$J$6))) ->  | AP57: =IF(NOT($AS57=$AS58),ROW(),"") ->  | AQ57: =IF(NOT(AS57=AS58),AS58,"") ->  | AR57: =INDEX($AB$15:$AM$15,MATCH($AS57,$AB$11:$AM$11,0)) ->  | AS57: =LEFT(AT57,4) -> 2000 | AT57: =LEFT(B57,6) -> 200002
B58: ='Market Data'!B44 -> 20000224 | C58: ='Market Data'!C44 -> 9693.5 | D58: ='Market Data'!D44 -> 9727.5 | E58: ='Market Data'!E44 -> 9491.5 | F58: ='Market Data'!F44 -> 9543.5 | H58: 40 | I58: =IF($H58<($J$6+1),"",PFE(OFFSET($F58,0,0,-$J$6))) ->  | AP58: =IF(NOT($AS58=$AS59),ROW(),"") ->  | AQ58: =IF(NOT(AS58=AS59),AS59,"") ->  | AR58: =INDEX($AB$15:$AM$15,MATCH($AS58,$AB$11:$AM$11,0)) ->  | AS58: =LEFT(AT58,4) -> 2000 | AT58: =LEFT(B58,6) -> 200002
B59: ='Market Data'!B45 -> 20000225 | C59: ='Market Data'!C45 -> 9656.5 | D59: ='Market Data'!D45 -> 9696.5 | E59: ='Market Data'!E45 -> 9568.5 | F59: ='Market Data'!F45 -> 9689 | H59: 41 | I59: =IF($H59<($J$6+1),"",PFE(OFFSET($F59,0,0,-$J$6))) ->  | AP59: =IF(NOT($AS59=$AS60),ROW(),"") ->  | AQ59: =IF(NOT(AS59=AS60),AS60,"") ->  | AR59: =INDEX($AB$15:$AM$15,MATCH($AS59,$AB$11:$AM$11,0)) ->  | AS59: =LEFT(AT59,4) -> 2000 | AT59: =LEFT(B59,6) -> 200002
B60: ='Market Data'!B46 -> 20000228 | C60: ='Market Data'!C46 -> 9643.5 | D60: ='Market Data'!D46 -> 9668.5 | E60: ='Market Data'!E46 -> 9404.5 | F60: ='Market Data'!F46 -> 9493.5 | H60: 42 | I60: =IF($H60<($J$6+1),"",PFE(OFFSET($F60,0,0,-$J$6))) ->  | AP60: =IF(NOT($AS60=$AS61),ROW(),"") ->  | AQ60: =IF(NOT(AS60=AS61),AS61,"") ->  | AR60: =INDEX($AB$15:$AM$15,MATCH($AS60,$AB$11:$AM$11,0)) ->  | AS60: =LEFT(AT60,4) -> 2000 | AT60: =LEFT(B60,6) -> 200002
B61: ='Market Data'!B47 -> 20000229 | C61: ='Market Data'!C47 -> 9553.5 | D61: ='Market Data'!D47 -> 9620 | E61: ='Market Data'!E47 -> 9527.5 | F61: ='Market Data'!F47 -> 9591.5 | H61: 43 | I61: =IF($H61<($J$6+1),"",PFE(OFFSET($F61,0,0,-$J$6))) ->  | AP61: =IF(NOT($AS61=$AS62),ROW(),"") ->  | AQ61: =IF(NOT(AS61=AS62),AS62,"") ->  | AR61: =INDEX($AB$15:$AM$15,MATCH($AS61,$AB$11:$AM$11,0)) ->  | AS61: =LEFT(AT61,4) -> 2000 | AT61: =LEFT(B61,6) -> 200002
B62: ='Market Data'!B48 -> 20000301 | C62: ='Market Data'!C48 -> 9639.5 | D62: ='Market Data'!D48 -> 9681.5 | E62: ='Market Data'!E48 -> 9530.5 | F62: ='Market Data'!F48 -> 9630.5 | H62: 44 | I62: =IF($H62<($J$6+1),"",PFE(OFFSET($F62,0,0,-$J$6))) ->  | AP62: =IF(NOT($AS62=$AS63),ROW(),"") ->  | AQ62: =IF(NOT(AS62=AS63),AS63,"") ->  | AR62: =INDEX($AB$15:$AM$15,MATCH($AS62,$AB$11:$AM$11,0)) ->  | AS62: =LEFT(AT62,4) -> 2000 | AT62: =LEFT(B62,6) -> 200003
B63: ='Market Data'!B49 -> 20000302 | C63: ='Market Data'!C49 -> 9643 | D63: ='Market Data'!D49 -> 9863.5 | E63: ='Market Data'!E49 -> 9539 | F63: ='Market Data'!F49 -> 9858.5 | H63: 45 | I63: =IF($H63<($J$6+1),"",PFE(OFFSET($F63,0,0,-$J$6))) ->  | AP63: =IF(NOT($AS63=$AS64),ROW(),"") ->  | AQ63: =IF(NOT(AS63=AS64),AS64,"") ->  | AR63: =INDEX($AB$15:$AM$15,MATCH($AS63,$AB$11:$AM$11,0)) ->  | AS63: =LEFT(AT63,4) -> 2000 | AT63: =LEFT(B63,6) -> 200003
B64: ='Market Data'!B50 -> 20000303 | C64: ='Market Data'!C50 -> 9843.5 | D64: ='Market Data'!D50 -> 9936.5 | E64: ='Market Data'!E50 -> 9794 | F64: ='Market Data'!F50 -> 9874 | H64: 46 | I64: =IF($H64<($J$6+1),"",PFE(OFFSET($F64,0,0,-$J$6))) ->  | AP64: =IF(NOT($AS64=$AS65),ROW(),"") ->  | AQ64: =IF(NOT(AS64=AS65),AS65,"") ->  | AR64: =INDEX($AB$15:$AM$15,MATCH($AS64,$AB$11:$AM$11,0)) ->  | AS64: =LEFT(AT64,4) -> 2000 | AT64: =LEFT(B64,6) -> 200003
B65: ='Market Data'!B51 -> 20000306 | C65: ='Market Data'!C51 -> 9878.5 | D65: ='Market Data'!D51 -> 9915.5 | E65: ='Market Data'!E51 -> 9838.5 | F65: ='Market Data'!F51 -> 9882.5 | H65: 47 | I65: =IF($H65<($J$6+1),"",PFE(OFFSET($F65,0,0,-$J$6))) ->  | AP65: =IF(NOT($AS65=$AS66),ROW(),"") ->  | AQ65: =IF(NOT(AS65=AS66),AS66,"") ->  | AR65: =INDEX($AB$15:$AM$15,MATCH($AS65,$AB$11:$AM$11,0)) ->  | AS65: =LEFT(AT65,4) -> 2000 | AT65: =LEFT(B65,6) -> 200003
B66: ='Market Data'!B52 -> 20000307 | C66: ='Market Data'!C52 -> 9942.5 | D66: ='Market Data'!D52 -> 10039.5 | E66: ='Market Data'!E52 -> 9829 | F66: ='Market Data'!F52 -> 9966.5 | H66: 48 | I66: =IF($H66<($J$6+1),"",PFE(OFFSET($F66,0,0,-$J$6))) ->  | AP66: =IF(NOT($AS66=$AS67),ROW(),"") ->  | AQ66: =IF(NOT(AS66=AS67),AS67,"") ->  | AR66: =INDEX($AB$15:$AM$15,MATCH($AS66,$AB$11:$AM$11,0)) ->  | AS66: =LEFT(AT66,4) -> 2000 | AT66: =LEFT(B66,6) -> 200003
B67: ='Market Data'!B53 -> 20000308 | C67: ='Market Data'!C53 -> 9906.5 | D67: ='Market Data'!D53 -> 10019.5 | E67: ='Market Data'!E53 -> 9858.5 | F67: ='Market Data'!F53 -> 9883.5 | H67: 49 | I67: =IF($H67<($J$6+1),"",PFE(OFFSET($F67,0,0,-$J$6))) ->  | AP67: =IF(NOT($AS67=$AS68),ROW(),"") ->  | AQ67: =IF(NOT(AS67=AS68),AS68,"") ->  | AR67: =INDEX($AB$15:$AM$15,MATCH($AS67,$AB$11:$AM$11,0)) ->  | AS67: =LEFT(AT67,4) -> 2000 | AT67: =LEFT(B67,6) -> 200003
B68: ='Market Data'!B54 -> 20000309 | C68: ='Market Data'!C54 -> 9960.5 | D68: ='Market Data'!D54 -> 9978.5 | E68: ='Market Data'!E54 -> 9785 | F68: ='Market Data'!F54 -> 9870.5 | H68: 50 | I68: =IF($H68<($J$6+1),"",PFE(OFFSET($F68,0,0,-$J$6))) ->  | AP68: =IF(NOT($AS68=$AS69),ROW(),"") ->  | AQ68: =IF(NOT(AS68=AS69),AS69,"") ->  | AR68: =INDEX($AB$15:$AM$15,MATCH($AS68,$AB$11:$AM$11,0)) ->  | AS68: =LEFT(AT68,4) -> 2000 | AT68: =LEFT(B68,6) -> 200003
B69: ='Market Data'!B55 -> 20000310 | C69: ='Market Data'!C55 -> 9953.5 | D69: ='Market Data'!D55 -> 9962.5 | E69: ='Market Data'!E55 -> 9860 | F69: ='Market Data'!F55 -> 9892.5 | H69: 51 | I69: =IF($H69<($J$6+1),"",PFE(OFFSET($F69,0,0,-$J$6))) ->  | AP69: =IF(NOT($AS69=$AS70),ROW(),"") ->  | AQ69: =IF(NOT(AS69=AS70),AS70,"") ->  | AR69: =INDEX($AB$15:$AM$15,MATCH($AS69,$AB$11:$AM$11,0)) ->  | AS69: =LEFT(AT69,4) -> 2000 | AT69: =LEFT(B69,6) -> 200003
B70: ='Market Data'!B56 -> 20000313 | C70: ='Market Data'!C56 -> 9843.5 | D70: ='Market Data'!D56 -> 9843.5 | E70: ='Market Data'!E56 -> 9548.5 | F70: ='Market Data'!F56 -> 9596.5 | H70: 52 | I70: =IF($H70<($J$6+1),"",PFE(OFFSET($F70,0,0,-$J$6))) ->  | AP70: =IF(NOT($AS70=$AS71),ROW(),"") ->  | AQ70: =IF(NOT(AS70=AS71),AS71,"") ->  | AR70: =INDEX($AB$15:$AM$15,MATCH($AS70,$AB$11:$AM$11,0)) ->  | AS70: =LEFT(AT70,4) -> 2000 | AT70: =LEFT(B70,6) -> 200003
B71: ='Market Data'!B57 -> 20000314 | C71: ='Market Data'!C57 -> 9633.5 | D71: ='Market Data'!D57 -> 9658.5 | E71: ='Market Data'!E57 -> 9549.5 | F71: ='Market Data'!F57 -> 9563.5 | H71: 53 | I71: =IF($H71<($J$6+1),"",PFE(OFFSET($F71,0,0,-$J$6))) ->  | AP71: =IF(NOT($AS71=$AS72),ROW(),"") ->  | AQ71: =IF(NOT(AS71=AS72),AS72,"") ->  | AR71: =INDEX($AB$15:$AM$15,MATCH($AS71,$AB$11:$AM$11,0)) ->  | AS71: =LEFT(AT71,4) -> 2000 | AT71: =LEFT(B71,6) -> 200003
B72: ='Market Data'!B58 -> 20000315 | C72: ='Market Data'!C58 -> 9457.5 | D72: ='Market Data'!D58 -> 9494.5 | E72: ='Market Data'!E58 -> 9314 | F72: ='Market Data'!F58 -> 9344.5 | H72: 54 | I72: =IF($H72<($J$6+1),"",PFE(OFFSET($F72,0,0,-$J$6))) ->  | AP72: =IF(NOT($AS72=$AS73),ROW(),"") ->  | AQ72: =IF(NOT(AS72=AS73),AS73,"") ->  | AR72: =INDEX($AB$15:$AM$15,MATCH($AS72,$AB$11:$AM$11,0)) ->  | AS72: =LEFT(AT72,4) -> 2000 | AT72: =LEFT(B72,6) -> 200003
B73: ='Market Data'!B59 -> 20000316 | C73: ='Market Data'!C59 -> 9416.5 | D73: ='Market Data'!D59 -> 9539.5 | E73: ='Market Data'!E59 -> 9368.5 | F73: ='Market Data'!F59 -> 9495 | H73: 55 | I73: =IF($H73<($J$6+1),"",PFE(OFFSET($F73,0,0,-$J$6))) ->  | AP73: =IF(NOT($AS73=$AS74),ROW(),"") ->  | AQ73: =IF(NOT(AS73=AS74),AS74,"") ->  | AR73: =INDEX($AB$15:$AM$15,MATCH($AS73,$AB$11:$AM$11,0)) ->  | AS73: =LEFT(AT73,4) -> 2000 | AT73: =LEFT(B73,6) -> 200003
B74: ='Market Data'!B60 -> 20000317 | C74: ='Market Data'!C60 -> 9679.5 | D74: ='Market Data'!D60 -> 9722 | E74: ='Market Data'!E60 -> 9462.5 | F74: ='Market Data'!F60 -> 9623.5 | H74: 56 | I74: =IF($H74<($J$6+1),"",PFE(OFFSET($F74,0,0,-$J$6))) ->  | AP74: =IF(NOT($AS74=$AS75),ROW(),"") ->  | AQ74: =IF(NOT(AS74=AS75),AS75,"") ->  | AR74: =INDEX($AB$15:$AM$15,MATCH($AS74,$AB$11:$AM$11,0)) ->  | AS74: =LEFT(AT74,4) -> 2000 | AT74: =LEFT(B74,6) -> 200003
B75: ='Market Data'!B61 -> 20000320 | C75: ='Market Data'!C61 -> 9661.5 | D75: ='Market Data'!D61 -> 9775.5 | E75: ='Market Data'!E61 -> 9627 | F75: ='Market Data'!F61 -> 9763.5 | H75: 57 | I75: =IF($H75<($J$6+1),"",PFE(OFFSET($F75,0,0,-$J$6))) ->  | AP75: =IF(NOT($AS75=$AS76),ROW(),"") ->  | AQ75: =IF(NOT(AS75=AS76),AS76,"") ->  | AR75: =INDEX($AB$15:$AM$15,MATCH($AS75,$AB$11:$AM$11,0)) ->  | AS75: =LEFT(AT75,4) -> 2000 | AT75: =LEFT(B75,6) -> 200003
B76: ='Market Data'!B62 -> 20000321 | C76: ='Market Data'!C62 -> 9744.5 | D76: ='Market Data'!D62 -> 9751 | E76: ='Market Data'!E62 -> 9631 | F76: ='Market Data'!F62 -> 9702.5 | H76: 58 | I76: =IF($H76<($J$6+1),"",PFE(OFFSET($F76,0,0,-$J$6))) ->  | AP76: =IF(NOT($AS76=$AS77),ROW(),"") ->  | AQ76: =IF(NOT(AS76=AS77),AS77,"") ->  | AR76: =INDEX($AB$15:$AM$15,MATCH($AS76,$AB$11:$AM$11,0)) ->  | AS76: =LEFT(AT76,4) -> 2000 | AT76: =LEFT(B76,6) -> 200003
B77: ='Market Data'!B63 -> 20000322 | C77: ='Market Data'!C63 -> 9765.5 | D77: ='Market Data'!D63 -> 9842 | E77: ='Market Data'!E63 -> 9676 | F77: ='Market Data'!F63 -> 9692.5 | H77: 59 | I77: =IF($H77<($J$6+1),"",PFE(OFFSET($F77,0,0,-$J$6))) ->  | AP77: =IF(NOT($AS77=$AS78),ROW(),"") ->  | AQ77: =IF(NOT(AS77=AS78),AS78,"") ->  | AR77: =INDEX($AB$15:$AM$15,MATCH($AS77,$AB$11:$AM$11,0)) ->  | AS77: =LEFT(AT77,4) -> 2000 | AT77: =LEFT(B77,6) -> 200003
B78: ='Market Data'!B64 -> 20000323 | C78: ='Market Data'!C64 -> 9731 | D78: ='Market Data'!D64 -> 9754.5 | E78: ='Market Data'!E64 -> 9561.5 | F78: ='Market Data'!F64 -> 9645.5 | H78: 60 | I78: =IF($H78<($J$6+1),"",PFE(OFFSET($F78,0,0,-$J$6))) ->  | AP78: =IF(NOT($AS78=$AS79),ROW(),"") ->  | AQ78: =IF(NOT(AS78=AS79),AS79,"") ->  | AR78: =INDEX($AB$15:$AM$15,MATCH($AS78,$AB$11:$AM$11,0)) ->  | AS78: =LEFT(AT78,4) -> 2000 | AT78: =LEFT(B78,6) -> 200003
B79: ='Market Data'!B65 -> 20000324 | C79: ='Market Data'!C65 -> 9697.5 | D79: ='Market Data'!D65 -> 9807.5 | E79: ='Market Data'!E65 -> 9639.5 | F79: ='Market Data'!F65 -> 9796.5 | H79: 61 | I79: =IF($H79<($J$6+1),"",PFE(OFFSET($F79,0,0,-$J$6))) ->  | AP79: =IF(NOT($AS79=$AS80),ROW(),"") ->  | AQ79: =IF(NOT(AS79=AS80),AS80,"") ->  | AR79: =INDEX($AB$15:$AM$15,MATCH($AS79,$AB$11:$AM$11,0)) ->  | AS79: =LEFT(AT79,4) -> 2000 | AT79: =LEFT(B79,6) -> 200003
B80: ='Market Data'!B66 -> 20000327 | C80: ='Market Data'!C66 -> 9804.5 | D80: ='Market Data'!D66 -> 9824.5 | E80: ='Market Data'!E66 -> 9722 | F80: ='Market Data'!F66 -> 9791.5 | H80: 62 | I80: =IF($H80<($J$6+1),"",PFE(OFFSET($F80,0,0,-$J$6))) ->  | AP80: =IF(NOT($AS80=$AS81),ROW(),"") ->  | AQ80: =IF(NOT(AS80=AS81),AS81,"") ->  | AR80: =INDEX($AB$15:$AM$15,MATCH($AS80,$AB$11:$AM$11,0)) ->  | AS80: =LEFT(AT80,4) -> 2000 | AT80: =LEFT(B80,6) -> 200003
B81: ='Market Data'!B67 -> 20000328 | C81: ='Market Data'!C67 -> 9784.5 | D81: ='Market Data'!D67 -> 9927.5 | E81: ='Market Data'!E67 -> 9776.5 | F81: ='Market Data'!F67 -> 9817.5 | H81: 63 | I81: =IF($H81<($J$6+1),"",PFE(OFFSET($F81,0,0,-$J$6))) ->  | AP81: =IF(NOT($AS81=$AS82),ROW(),"") ->  | AQ81: =IF(NOT(AS81=AS82),AS82,"") ->  | AR81: =INDEX($AB$15:$AM$15,MATCH($AS81,$AB$11:$AM$11,0)) ->  | AS81: =LEFT(AT81,4) -> 2000 | AT81: =LEFT(B81,6) -> 200003
B82: ='Market Data'!B68 -> 20000329 | C82: ='Market Data'!C68 -> 9806.5 | D82: ='Market Data'!D68 -> 9856 | E82: ='Market Data'!E68 -> 9751.5 | F82: ='Market Data'!F68 -> 9780.5 | H82: 64 | I82: =IF($H82<($J$6+1),"",PFE(OFFSET($F82,0,0,-$J$6))) ->  | AP82: =IF(NOT($AS82=$AS83),ROW(),"") ->  | AQ82: =IF(NOT(AS82=AS83),AS83,"") ->  | AR82: =INDEX($AB$15:$AM$15,MATCH($AS82,$AB$11:$AM$11,0)) ->  | AS82: =LEFT(AT82,4) -> 2000 | AT82: =LEFT(B82,6) -> 200003
B83: ='Market Data'!B69 -> 20000330 | C83: ='Market Data'!C69 -> 9674.5 | D83: ='Market Data'!D69 -> 9686.5 | E83: ='Market Data'!E69 -> 9505.5 | F83: ='Market Data'!F69 -> 9542.5 | H83: 65 | I83: =IF($H83<($J$6+1),"",PFE(OFFSET($F83,0,0,-$J$6))) ->  | L83: =IF(AND($K83="Long",$K82<>"Long"),$F83,NA()) ->  | M83: =IF(AND($K83="Short",$K82<>"Short"),$F83,NA()) ->  | AP83: =IF(NOT($AS83=$AS84),ROW(),"") ->  | AQ83: =IF(NOT(AS83=AS84),AS84,"") ->  | AR83: =INDEX($AB$15:$AM$15,MATCH($AS83,$AB$11:$AM$11,0)) ->  | AS83: =LEFT(AT83,4) -> 2000 | AT83: =LEFT(B83,6) -> 200003
B84: ='Market Data'!B70 -> 20000331 | C84: ='Market Data'!C70 -> 9519.5 | D84: ='Market Data'!D70 -> 9597.5 | E84: ='Market Data'!E70 -> 9409.5 | F84: ='Market Data'!F70 -> 9449.5 | H84: =ROW()-ROW(H$18) -> 66 | I84: =IF($H84<($J$6+1),"",PFE(OFFSET($F84,0,0,-$J$6))) ->  | K84: =IF($I84="","",IF($I84>$J$4,"Long",IF($I84<$J$5,"Short",""))) ->  | AP84: =IF(NOT($AS84=$AS85),ROW(),"") ->  | AQ84: =IF(NOT(AS84=AS85),AS85,"") ->  | AR84: =INDEX($AB$15:$AM$15,MATCH($AS84,$AB$11:$AM$11,0)) ->  | AS84: =LEFT(AT84,4) -> 2000 | AT84: =LEFT(B84,6) -> 200003
B85: ='Market Data'!B71 -> 20000403 | C85: ='Market Data'!C71 -> 9455.5 | D85: ='Market Data'!D71 -> 9527.5 | E85: ='Market Data'!E71 -> 9288 | F85: ='Market Data'!F71 -> 9319 | H85: 67 | I85: =IF($H85<($J$6+1),"",PFE(OFFSET($F85,0,0,-$J$6))) ->  | AP85: =IF(NOT($AS85=$AS86),ROW(),"") ->  | AQ85: =IF(NOT(AS85=AS86),AS86,"") ->  | AR85: =INDEX($AB$15:$AM$15,MATCH($AS85,$AB$11:$AM$11,0)) ->  | AS85: =LEFT(AT85,4) -> 2000 | AT85: =LEFT(B85,6) -> 200004
B86: ='Market Data'!B72 -> 20000404 | C86: ='Market Data'!C72 -> 9364.5 | D86: ='Market Data'!D72 -> 9452.5 | E86: ='Market Data'!E72 -> 9344.5 | F86: ='Market Data'!F72 -> 9426.5 | H86: 68 | I86: =IF($H86<($J$6+1),"",PFE(OFFSET($F86,0,0,-$J$6))) ->  | AP86: =IF(NOT($AS86=$AS87),ROW(),"") ->  | AQ86: =IF(NOT(AS86=AS87),AS87,"") ->  | AR86: =INDEX($AB$15:$AM$15,MATCH($AS86,$AB$11:$AM$11,0)) ->  | AS86: =LEFT(AT86,4) -> 2000 | AT86: =LEFT(B86,6) -> 200004
B87: ='Market Data'!B73 -> 20000405 | C87: ='Market Data'!C73 -> 9366.5 | D87: ='Market Data'!D73 -> 9422 | E87: ='Market Data'!E73 -> 9089.5 | F87: ='Market Data'!F73 -> 9190.5 | H87: 69 | I87: =IF($H87<($J$6+1),"",PFE(OFFSET($F87,0,0,-$J$6))) ->  | AP87: =IF(NOT($AS87=$AS88),ROW(),"") ->  | AQ87: =IF(NOT(AS87=AS88),AS88,"") ->  | AR87: =INDEX($AB$15:$AM$15,MATCH($AS87,$AB$11:$AM$11,0)) ->  | AS87: =LEFT(AT87,4) -> 2000 | AT87: =LEFT(B87,6) -> 200004
B88: ='Market Data'!B74 -> 20000406 | C88: ='Market Data'!C74 -> 9251.5 | D88: ='Market Data'!D74 -> 9358.5 | E88: ='Market Data'!E74 -> 9196.5 | F88: ='Market Data'!F74 -> 9330 | H88: 70 | I88: =IF($H88<($J$6+1),"",PFE(OFFSET($F88,0,0,-$J$6))) ->  | AP88: =IF(NOT($AS88=$AS89),ROW(),"") ->  | AQ88: =IF(NOT(AS88=AS89),AS89,"") ->  | AR88: =INDEX($AB$15:$AM$15,MATCH($AS88,$AB$11:$AM$11,0)) ->  | AS88: =LEFT(AT88,4) -> 2000 | AT88: =LEFT(B88,6) -> 200004
B89: ='Market Data'!B75 -> 20000407 | C89: ='Market Data'!C75 -> 9364.5 | D89: ='Market Data'!D75 -> 9404.5 | E89: ='Market Data'!E75 -> 9271 | F89: ='Market Data'!F75 -> 9392 | H89: 71 | I89: =IF($H89<($J$6+1),"",PFE(OFFSET($F89,0,0,-$J$6))) ->  | AP89: =IF(NOT($AS89=$AS90),ROW(),"") ->  | AQ89: =IF(NOT(AS89=AS90),AS90,"") ->  | AR89: =INDEX($AB$15:$AM$15,MATCH($AS89,$AB$11:$AM$11,0)) ->  | AS89: =LEFT(AT89,4) -> 2000 | AT89: =LEFT(B89,6) -> 200004
B90: ='Market Data'!B76 -> 20000410 | C90: ='Market Data'!C76 -> 9444.5 | D90: ='Market Data'!D76 -> 9484.5 | E90: ='Market Data'!E76 -> 9382 | F90: ='Market Data'!F76 -> 9409.5 | H90: 72 | I90: =IF($H90<($J$6+1),"",PFE(OFFSET($F90,0,0,-$J$6))) ->  | AP90: =IF(NOT($AS90=$AS91),ROW(),"") ->  | AQ90: =IF(NOT(AS90=AS91),AS91,"") ->  | AR90: =INDEX($AB$15:$AM$15,MATCH($AS90,$AB$11:$AM$11,0)) ->  | AS90: =LEFT(AT90,4) -> 2000 | AT90: =LEFT(B90,6) -> 200004
B91: ='Market Data'!B77 -> 20000411 | C91: ='Market Data'!C77 -> 9259.5 | D91: ='Market Data'!D77 -> 9357 | E91: ='Market Data'!E77 -> 9249.5 | F91: ='Market Data'!F77 -> 9319.5 | H91: 73 | I91: =IF($H91<($J$6+1),"",PFE(OFFSET($F91,0,0,-$J$6))) ->  | AP91: =IF(NOT($AS91=$AS92),ROW(),"") ->  | AQ91: =IF(NOT(AS91=AS92),AS92,"") ->  | AR91: =INDEX($AB$15:$AM$15,MATCH($AS91,$AB$11:$AM$11,0)) ->  | AS91: =LEFT(AT91,4) -> 2000 | AT91: =LEFT(B91,6) -> 200004
B92: ='Market Data'!B78 -> 20000412 | C92: ='Market Data'!C78 -> 9346.5 | D92: ='Market Data'!D78 -> 9392 | E92: ='Market Data'!E78 -> 9286 | F92: ='Market Data'!F78 -> 9294.5 | H92: 74 | I92: =IF($H92<($J$6+1),"",PFE(OFFSET($F92,0,0,-$J$6))) ->  | AP92: =IF(NOT($AS92=$AS93),ROW(),"") ->  | AQ92: =IF(NOT(AS92=AS93),AS93,"") ->  | AR92: =INDEX($AB$15:$AM$15,MATCH($AS92,$AB$11:$AM$11,0)) ->  | AS92: =LEFT(AT92,4) -> 2000 | AT92: =LEFT(B92,6) -> 200004
B93: ='Market Data'!B79 -> 20000413 | C93: ='Market Data'!C79 -> 9194.5 | D93: ='Market Data'!D79 -> 9322.5 | E93: ='Market Data'!E79 -> 9167.5 | F93: ='Market Data'!F79 -> 9318.5 | H93: 75 | I93: =IF($H93<($J$6+1),"",PFE(OFFSET($F93,0,0,-$J$6))) ->  | AP93: =IF(NOT($AS93=$AS94),ROW(),"") ->  | AQ93: =IF(NOT(AS93=AS94),AS94,"") ->  | AR93: =INDEX($AB$15:$AM$15,MATCH($AS93,$AB$11:$AM$11,0)) ->  | AS93: =LEFT(AT93,4) -> 2000 | AT93: =LEFT(B93,6) -> 200004
B94: ='Market Data'!B80 -> 20000414 | C94: ='Market Data'!C80 -> 9224.5 | D94: ='Market Data'!D80 -> 9279.5 | E94: ='Market Data'!E80 -> 9033.5 | F94: ='Market Data'!F80 -> 9069.5 | H94: 76 | I94: =IF($H94<($J$6+1),"",PFE(OFFSET($F94,0,0,-$J$6))) ->  | AP94: =IF(NOT($AS94=$AS95),ROW(),"") ->  | AQ94: =IF(NOT(AS94=AS95),AS95,"") ->  | AR94: =INDEX($AB$15:$AM$15,MATCH($AS94,$AB$11:$AM$11,0)) ->  | AS94: =LEFT(AT94,4) -> 2000 | AT94: =LEFT(B94,6) -> 200004
B95: ='Market Data'!B81 -> 20000417 | C95: ='Market Data'!C81 -> 8824.5 | D95: ='Market Data'!D81 -> 9059.5 | E95: ='Market Data'!E81 -> 8781.5 | F95: ='Market Data'!F81 -> 9048.5 | H95: 77 | I95: =IF($H95<($J$6+1),"",PFE(OFFSET($F95,0,0,-$J$6))) ->  | AP95: =IF(NOT($AS95=$AS96),ROW(),"") ->  | AQ95: =IF(NOT(AS95=AS96),AS96,"") ->  | AR95: =INDEX($AB$15:$AM$15,MATCH($AS95,$AB$11:$AM$11,0)) ->  | AS95: =LEFT(AT95,4) -> 2000 | AT95: =LEFT(B95,6) -> 200004
B96: ='Market Data'!B82 -> 20000418 | C96: ='Market Data'!C82 -> 9118.5 | D96: ='Market Data'!D82 -> 9130 | E96: ='Market Data'!E82 -> 8963 | F96: ='Market Data'!F82 -> 9091.5 | H96: 78 | I96: =IF($H96<($J$6+1),"",PFE(OFFSET($F96,0,0,-$J$6))) ->  | AP96: =IF(NOT($AS96=$AS97),ROW(),"") ->  | AQ96: =IF(NOT(AS96=AS97),AS97,"") ->  | AR96: =INDEX($AB$15:$AM$15,MATCH($AS96,$AB$11:$AM$11,0)) ->  | AS96: =LEFT(AT96,4) -> 2000 | AT96: =LEFT(B96,6) -> 200004
B97: ='Market Data'!B83 -> 20000419 | C97: ='Market Data'!C83 -> 9164.5 | D97: ='Market Data'!D83 -> 9169 | E97: ='Market Data'!E83 -> 9009.5 | F97: ='Market Data'!F83 -> 9077 | H97: 79 | I97: =IF($H97<($J$6+1),"",PFE(OFFSET($F97,0,0,-$J$6))) ->  | AP97: =IF(NOT($AS97=$AS98),ROW(),"") ->  | AQ97: =IF(NOT(AS97=AS98),AS98,"") ->  | AR97: =INDEX($AB$15:$AM$15,MATCH($AS97,$AB$11:$AM$11,0)) ->  | AS97: =LEFT(AT97,4) -> 2000 | AT97: =LEFT(B97,6) -> 200004
B98: ='Market Data'!B84 -> 20000420 | C98: ='Market Data'!C84 -> 9076.5 | D98: ='Market Data'!D84 -> 9101 | E98: ='Market Data'!E84 -> 9036.5 | F98: ='Market Data'!F84 -> 9064.5 | H98: 80 | I98: =IF($H98<($J$6+1),"",PFE(OFFSET($F98,0,0,-$J$6))) ->  | AP98: =IF(NOT($AS98=$AS99),ROW(),"") ->  | AQ98: =IF(NOT(AS98=AS99),AS99,"") ->  | AR98: =INDEX($AB$15:$AM$15,MATCH($AS98,$AB$11:$AM$11,0)) ->  | AS98: =LEFT(AT98,4) -> 2000 | AT98: =LEFT(B98,6) -> 200004
B99: ='Market Data'!B85 -> 20000425 | C99: ='Market Data'!C85 -> 9035.5 | D99: ='Market Data'!D85 -> 9225 | E99: ='Market Data'!E85 -> 8960.5 | F99: ='Market Data'!F85 -> 9167.5 | H99: 81 | I99: =IF($H99<($J$6+1),"",PFE(OFFSET($F99,0,0,-$J$6))) ->  | AP99: =IF(NOT($AS99=$AS100),ROW(),"") ->  | AQ99: =IF(NOT(AS99=AS100),AS100,"") ->  | AR99: =INDEX($AB$15:$AM$15,MATCH($AS99,$AB$11:$AM$11,0)) ->  | AS99: =LEFT(AT99,4) -> 2000 | AT99: =LEFT(B99,6) -> 200004
B100: ='Market Data'!B86 -> 20000426 | C100: ='Market Data'!C86 -> 9214.5 | D100: ='Market Data'!D86 -> 9317.5 | E100: ='Market Data'!E86 -> 9178 | F100: ='Market Data'!F86 -> 9245.5 | H100: 82 | I100: =IF($H100<($J$6+1),"",PFE(OFFSET($F100,0,0,-$J$6))) ->  | AP100: =IF(NOT($AS100=$AS101),ROW(),"") ->  | AQ100: =IF(NOT(AS100=AS101),AS101,"") ->  | AR100: =INDEX($AB$15:$AM$15,MATCH($AS100,$AB$11:$AM$11,0)) ->  | AS100: =LEFT(AT100,4) -> 2000 | AT100: =LEFT(B100,6) -> 200004
B101: ='Market Data'!B87 -> 20000427 | C101: ='Market Data'!C87 -> 9249.5 | D101: ='Market Data'!D87 -> 9289 | E101: ='Market Data'!E87 -> 9017.5 | F101: ='Market Data'!F87 -> 9064.5 | H101: 83 | I101: =IF($H101<($J$6+1),"",PFE(OFFSET($F101,0,0,-$J$6))) ->  | AP101: =IF(NOT($AS101=$AS102),ROW(),"") ->  | AQ101: =IF(NOT(AS101=AS102),AS102,"") ->  | AR101: =INDEX($AB$15:$AM$15,MATCH($AS101,$AB$11:$AM$11,0)) ->  | AS101: =LEFT(AT101,4) -> 2000 | AT101: =LEFT(B101,6) -> 200004
B102: ='Market Data'!B88 -> 20000428 | C102: ='Market Data'!C88 -> 9164.5 | D102: ='Market Data'!D88 -> 9305.5 | E102: ='Market Data'!E88 -> 9135.5 | F102: ='Market Data'!F88 -> 9305.5 | H102: 84 | I102: =IF($H102<($J$6+1),"",PFE(OFFSET($F102,0,0,-$J$6))) ->  | AP102: =IF(NOT($AS102=$AS103),ROW(),"") ->  | AQ102: =IF(NOT(AS102=AS103),AS103,"") ->  | AR102: =INDEX($AB$15:$AM$15,MATCH($AS102,$AB$11:$AM$11,0)) ->  | AS102: =LEFT(AT102,4) -> 2000 | AT102: =LEFT(B102,6) -> 200004
B103: ='Market Data'!B89 -> 20000502 | C103: ='Market Data'!C89 -> 9339.5 | D103: ='Market Data'!D89 -> 9436 | E103: ='Market Data'!E89 -> 9334.5 | F103: ='Market Data'!F89 -> 9424.5 | H103: 85 | I103: =IF($H103<($J$6+1),"",PFE(OFFSET($F103,0,0,-$J$6))) -> 0.08575378483 | K103: Long | L103: 9424.5 | AP103: =IF(NOT($AS103=$AS104),ROW(),"") ->  | AQ103: =IF(NOT(AS103=AS104),AS104,"") ->  | AR103: =INDEX($AB$15:$AM$15,MATCH($AS103,$AB$11:$AM$11,0)) ->  | AS103: =LEFT(AT103,4) -> 2000 | AT103: =LEFT(B103,6) -> 200005
B104: ='Market Data'!B90 -> 20000503 | C104: ='Market Data'!C90 -> 9367.5 | D104: ='Market Data'!D90 -> 9443 | E104: ='Market Data'!E90 -> 9219.5 | F104: ='Market Data'!F90 -> 9224.5 | H104: 86 | I104: =IF($H104<($J$6+1),"",PFE(OFFSET($F104,0,0,-$J$6))) -> 0.08249289521 | K104: =IF($I104="","",IF($I104>$J$4,"Long",IF($I104<$J$5,"Short",""))) -> Long | AP104: =IF(NOT($AS104=$AS105),ROW(),"") ->  | AQ104: =IF(NOT(AS104=AS105),AS105,"") ->  | AR104: =INDEX($AB$15:$AM$15,MATCH($AS104,$AB$11:$AM$11,0)) ->  | AS104: =LEFT(AT104,4) -> 2000 | AT104: =LEFT(B104,6) -> 200005
B105: ='Market Data'!B91 -> 20000504 | C105: ='Market Data'!C91 -> 9229.5 | D105: ='Market Data'!D91 -> 9293.5 | E105: ='Market Data'!E91 -> 9185.5 | F105: ='Market Data'!F91 -> 9253 | H105: 87 | I105: =IF($H105<($J$6+1),"",PFE(OFFSET($F105,0,0,-$J$6))) -> 0.09820518818 | K105: Long | AP105: =IF(NOT($AS105=$AS106),ROW(),"") ->  | AQ105: =IF(NOT(AS105=AS106),AS106,"") ->  | AR105: =INDEX($AB$15:$AM$15,MATCH($AS105,$AB$11:$AM$11,0)) ->  | AS105: =LEFT(AT105,4) -> 2000 | AT105: =LEFT(B105,6) -> 200005
B106: ='Market Data'!B92 -> 20000505 | C106: ='Market Data'!C92 -> 9274.5 | D106: ='Market Data'!D92 -> 9374 | E106: ='Market Data'!E92 -> 9199.5 | F106: ='Market Data'!F92 -> 9370.5 | H106: 88 | I106: =IF($H106<($J$6+1),"",PFE(OFFSET($F106,0,0,-$J$6))) -> 0.1140995963 | K106: Long | AP106: =IF(NOT($AS106=$AS107),ROW(),"") ->  | AQ106: =IF(NOT(AS106=AS107),AS107,"") ->  | AR106: =INDEX($AB$15:$AM$15,MATCH($AS106,$AB$11:$AM$11,0)) ->  | AS106: =LEFT(AT106,4) -> 2000 | AT106: =LEFT(B106,6) -> 200005
B107: ='Market Data'!B93 -> 20000508 | C107: ='Market Data'!C93 -> 9375.5 | D107: ='Market Data'!D93 -> 9396.5 | E107: ='Market Data'!E93 -> 9247.5 | F107: ='Market Data'!F93 -> 9267 | H107: 89 | I107: =IF($H107<($J$6+1),"",PFE(OFFSET($F107,0,0,-$J$6))) -> 0.06554635366 | K107: Long | AP107: =IF(NOT($AS107=$AS108),ROW(),"") ->  | AQ107: =IF(NOT(AS107=AS108),AS108,"") ->  | AR107: =INDEX($AB$15:$AM$15,MATCH($AS107,$AB$11:$AM$11,0)) ->  | AS107: =LEFT(AT107,4) -> 2000 | AT107: =LEFT(B107,6) -> 200005
B108: ='Market Data'!B94 -> 20000509 | C108: ='Market Data'!C94 -> 9254.5 | D108: ='Market Data'!D94 -> 9270 | E108: ='Market Data'!E94 -> 9092 | F108: ='Market Data'!F94 -> 9121.5 | H108: 90 | I108: =IF($H108<($J$6+1),"",PFE(OFFSET($F108,0,0,-$J$6))) -> 0.03284045908 | K108: Long | AP108: =IF(NOT($AS108=$AS109),ROW(),"") ->  | AQ108: =IF(NOT(AS108=AS109),AS109,"") ->  | AR108: =INDEX($AB$15:$AM$15,MATCH($AS108,$AB$11:$AM$11,0)) ->  | AS108: =LEFT(AT108,4) -> 2000 | AT108: =LEFT(B108,6) -> 200005
B109: ='Market Data'!B95 -> 20000510 | C109: ='Market Data'!C95 -> 9094.5 | D109: ='Market Data'!D95 -> 9196.5 | E109: ='Market Data'!E95 -> 8962.5 | F109: ='Market Data'!F95 -> 8986.5 | H109: 91 | I109: =IF($H109<($J$6+1),"",PFE(OFFSET($F109,0,0,-$J$6))) -> 0.01991844123 | K109: Long | AP109: =IF(NOT($AS109=$AS110),ROW(),"") ->  | AQ109: =IF(NOT(AS109=AS110),AS110,"") ->  | AR109: =INDEX($AB$15:$AM$15,MATCH($AS109,$AB$11:$AM$11,0)) ->  | AS109: =LEFT(AT109,4) -> 2000 | AT109: =LEFT(B109,6) -> 200005
B110: ='Market Data'!B96 -> 20000511 | C110: ='Market Data'!C96 -> 8927.5 | D110: ='Market Data'!D96 -> 9143.5 | E110: ='Market Data'!E96 -> 8876 | F110: ='Market Data'!F96 -> 9137.5 | H110: 92 | I110: =IF($H110<($J$6+1),"",PFE(OFFSET($F110,0,0,-$J$6))) -> 0.03609847712 | K110: Long | AP110: =IF(NOT($AS110=$AS111),ROW(),"") ->  | AQ110: =IF(NOT(AS110=AS111),AS111,"") ->  | AR110: =INDEX($AB$15:$AM$15,MATCH($AS110,$AB$11:$AM$11,0)) ->  | AS110: =LEFT(AT110,4) -> 2000 | AT110: =LEFT(B110,6) -> 200005
B111: ='Market Data'!B97 -> 20000512 | C111: ='Market Data'!C97 -> 9135.5 | D111: ='Market Data'!D97 -> 9194.5 | E111: ='Market Data'!E97 -> 9064 | F111: ='Market Data'!F97 -> 9125 | H111: 93 | I111: =IF($H111<($J$6+1),"",PFE(OFFSET($F111,0,0,-$J$6))) -> 0.02697391437 | K111: Long | AP111: =IF(NOT($AS111=$AS112),ROW(),"") ->  | AQ111: =IF(NOT(AS111=AS112),AS112,"") ->  | AR111: =INDEX($AB$15:$AM$15,MATCH($AS111,$AB$11:$AM$11,0)) ->  | AS111: =LEFT(AT111,4) -> 2000 | AT111: =LEFT(B111,6) -> 200005
B112: ='Market Data'!B98 -> 20000515 | C112: ='Market Data'!C98 -> 9138.5 | D112: ='Market Data'!D98 -> 9138.5 | E112: ='Market Data'!E98 -> 9053.5 | F112: ='Market Data'!F98 -> 9064.5 | H112: 94 | I112: =IF($H112<($J$6+1),"",PFE(OFFSET($F112,0,0,-$J$6))) -> -0.01293051588 | K112: Short | M112: 9064.5 | AP112: =IF(NOT($AS112=$AS113),ROW(),"") ->  | AQ112: =IF(NOT(AS112=AS113),AS113,"") ->  | AR112: =INDEX($AB$15:$AM$15,MATCH($AS112,$AB$11:$AM$11,0)) ->  | AS112: =LEFT(AT112,4) -> 2000 | AT112: =LEFT(B112,6) -> 200005
B113: ='Market Data'!B99 -> 20000516 | C113: ='Market Data'!C99 -> 9125.5 | D113: ='Market Data'!D99 -> 9264.5 | E113: ='Market Data'!E99 -> 9113 | F113: ='Market Data'!F99 -> 9247.5 | H113: 95 | I113: =IF($H113<($J$6+1),"",PFE(OFFSET($F113,0,0,-$J$6))) -> 0.01081429863 | K113: Long | L113: 9247.5 | AP113: =IF(NOT($AS113=$AS114),ROW(),"") ->  | AQ113: =IF(NOT(AS113=AS114),AS114,"") ->  | AR113: =INDEX($AB$15:$AM$15,MATCH($AS113,$AB$11:$AM$11,0)) ->  | AS113: =LEFT(AT113,4) -> 2000 | AT113: =LEFT(B113,6) -> 200005
B114: ='Market Data'!B100 -> 20000517 | C114: ='Market Data'!C100 -> 9210.5 | D114: ='Market Data'!D100 -> 9210.5 | E114: ='Market Data'!E100 -> 9054.5 | F114: ='Market Data'!F100 -> 9073.5 | H114: 96 | I114: =IF($H114<($J$6+1),"",PFE(OFFSET($F114,0,0,-$J$6))) -> 0.01136451776 | K114: Long | AP114: =IF(NOT($AS114=$AS115),ROW(),"") ->  | AQ114: =IF(NOT(AS114=AS115),AS115,"") ->  | AR114: =INDEX($AB$15:$AM$15,MATCH($AS114,$AB$11:$AM$11,0)) ->  | AS114: =LEFT(AT114,4) -> 2000 | AT114: =LEFT(B114,6) -> 200005
B115: ='Market Data'!B101 -> 20000518 | C115: ='Market Data'!C101 -> 9049.5 | D115: ='Market Data'!D101 -> 9121.5 | E115: ='Market Data'!E101 -> 9014.5 | F115: ='Market Data'!F101 -> 9019.5 | H115: 97 | I115: =IF($H115<($J$6+1),"",PFE(OFFSET($F115,0,0,-$J$6))) -> -0.009934016445 | K115: Short | M115: 9019.5 | AP115: =IF(NOT($AS115=$AS116),ROW(),"") ->  | AQ115: =IF(NOT(AS115=AS116),AS116,"") ->  | AR115: =INDEX($AB$15:$AM$15,MATCH($AS115,$AB$11:$AM$11,0)) ->  | AS115: =LEFT(AT115,4) -> 2000 | AT115: =LEFT(B115,6) -> 200005
B116: ='Market Data'!B102 -> 20000519 | C116: ='Market Data'!C102 -> 9012.5 | D116: ='Market Data'!D102 -> 9012.5 | E116: ='Market Data'!E102 -> 8813 | F116: ='Market Data'!F102 -> 8855 | H116: 98 | I116: =IF($H116<($J$6+1),"",PFE(OFFSET($F116,0,0,-$J$6))) -> -0.02396475417 | K116: Short | AP116: =IF(NOT($AS116=$AS117),ROW(),"") ->  | AQ116: =IF(NOT(AS116=AS117),AS117,"") ->  | AR116: =INDEX($AB$15:$AM$15,MATCH($AS116,$AB$11:$AM$11,0)) ->  | AS116: =LEFT(AT116,4) -> 2000 | AT116: =LEFT(B116,6) -> 200005
B117: ='Market Data'!B103 -> 20000522 | C117: ='Market Data'!C103 -> 8847.5 | D117: ='Market Data'!D103 -> 8899.5 | E117: ='Market Data'!E103 -> 8680 | F117: ='Market Data'!F103 -> 8780 | H117: 99 | I117: =IF($H117<($J$6+1),"",PFE(OFFSET($F117,0,0,-$J$6))) -> -0.01865222958 | K117: Short | AP117: =IF(NOT($AS117=$AS118),ROW(),"") ->  | AQ117: =IF(NOT(AS117=AS118),AS118,"") ->  | AR117: =INDEX($AB$15:$AM$15,MATCH($AS117,$AB$11:$AM$11,0)) ->  | AS117: =LEFT(AT117,4) -> 2000 | AT117: =LEFT(B117,6) -> 200005
B118: ='Market Data'!B104 -> 20000523 | C118: ='Market Data'!C104 -> 8836.5 | D118: ='Market Data'!D104 -> 8878 | E118: ='Market Data'!E104 -> 8737.5 | F118: ='Market Data'!F104 -> 8791.5 | H118: 100 | I118: =IF($H118<($J$6+1),"",PFE(OFFSET($F118,0,0,-$J$6))) -> -0.01220117508 | K118: Short | AP118: =IF(NOT($AS118=$AS119),ROW(),"") ->  | AQ118: =IF(NOT(AS118=AS119),AS119,"") ->  | AR118: =INDEX($AB$15:$AM$15,MATCH($AS118,$AB$11:$AM$11,0)) ->  | AS118: =LEFT(AT118,4) -> 2000 | AT118: =LEFT(B118,6) -> 200005
B119: ='Market Data'!B105 -> 20000524 | C119: ='Market Data'!C105 -> 8675.5 | D119: ='Market Data'!D105 -> 8728.5 | E119: ='Market Data'!E105 -> 8656 | F119: ='Market Data'!F105 -> 8708.5 | H119: 101 | I119: =IF($H119<($J$6+1),"",PFE(OFFSET($F119,0,0,-$J$6))) -> -0.01403639336 | K119: Short | AP119: =IF(NOT($AS119=$AS120),ROW(),"") ->  | AQ119: =IF(NOT(AS119=AS120),AS120,"") ->  | AR119: =INDEX($AB$15:$AM$15,MATCH($AS119,$AB$11:$AM$11,0)) ->  | AS119: =LEFT(AT119,4) -> 2000 | AT119: =LEFT(B119,6) -> 200005
B120: ='Market Data'!B106 -> 20000525 | C120: ='Market Data'!C106 -> 8757.5 | D120: ='Market Data'!D106 -> 8857 | E120: ='Market Data'!E106 -> 8742.5 | F120: ='Market Data'!F106 -> 8806.5 | H120: 102 | I120: =IF($H120<($J$6+1),"",PFE(OFFSET($F120,0,0,-$J$6))) -> -0.01407953078 | K120: Short | AP120: =IF(NOT($AS120=$AS121),ROW(),"") ->  | AQ120: =IF(NOT(AS120=AS121),AS121,"") ->  | AR120: =INDEX($AB$15:$AM$15,MATCH($AS120,$AB$11:$AM$11,0)) ->  | AS120: =LEFT(AT120,4) -> 2000 | AT120: =LEFT(B120,6) -> 200005
B121: ='Market Data'!B107 -> 20000526 | C121: ='Market Data'!C107 -> 8726.5 | D121: ='Market Data'!D107 -> 8833 | E121: ='Market Data'!E107 -> 8685.5 | F121: ='Market Data'!F107 -> 8802.5 | H121: 103 | I121: =IF($H121<($J$6+1),"",PFE(OFFSET($F121,0,0,-$J$6))) -> -0.03292545313 | K121: Short | AP121: =IF(NOT($AS121=$AS122),ROW(),"") ->  | AQ121: =IF(NOT(AS121=AS122),AS122,"") ->  | AR121: =INDEX($AB$15:$AM$15,MATCH($AS121,$AB$11:$AM$11,0)) ->  | AS121: =LEFT(AT121,4) -> 2000 | AT121: =LEFT(B121,6) -> 200005
B122: ='Market Data'!B108 -> 20000529 | C122: ='Market Data'!C108 -> 8858.5 | D122: ='Market Data'!D108 -> 8887 | E122: ='Market Data'!E108 -> 8839 | F122: ='Market Data'!F108 -> 8880.5 | H122: 104 | I122: =IF($H122<($J$6+1),"",PFE(OFFSET($F122,0,0,-$J$6))) -> -0.01725865285 | K122: Short | AP122: =IF(NOT($AS122=$AS123),ROW(),"") ->  | AQ122: =IF(NOT(AS122=AS123),AS123,"") ->  | AR122: =INDEX($AB$15:$AM$15,MATCH($AS122,$AB$11:$AM$11,0)) ->  | AS122: =LEFT(AT122,4) -> 2000 | AT122: =LEFT(B122,6) -> 200005
B123: ='Market Data'!B109 -> 20000530 | C123: ='Market Data'!C109 -> 8896.5 | D123: ='Market Data'!D109 -> 9012 | E123: ='Market Data'!E109 -> 8891.5 | F123: ='Market Data'!F109 -> 8973.5 | H123: 105 | I123: =IF($H123<($J$6+1),"",PFE(OFFSET($F123,0,0,-$J$6))) -> 0.02771336116 | K123: Long | L123: 8973.5 | AP123: =IF(NOT($AS123=$AS124),ROW(),"") ->  | AQ123: =IF(NOT(AS123=AS124),AS124,"") ->  | AR123: =INDEX($AB$15:$AM$15,MATCH($AS123,$AB$11:$AM$11,0)) ->  | AS123: =LEFT(AT123,4) -> 2000 | AT123: =LEFT(B123,6) -> 200005
B124: ='Market Data'!B110 -> 20000531 | C124: ='Market Data'!C110 -> 9054.5 | D124: ='Market Data'!D110 -> 9059.5 | E124: ='Market Data'!E110 -> 8956.5 | F124: ='Market Data'!F110 -> 8974.5 | H124: 106 | I124: =IF($H124<($J$6+1),"",PFE(OFFSET($F124,0,0,-$J$6))) -> 0.01098586583 | K124: Long | AP124: =IF(NOT($AS124=$AS125),ROW(),"") ->  | AQ124: =IF(NOT(AS124=AS125),AS125,"") ->  | AR124: =INDEX($AB$15:$AM$15,MATCH($AS124,$AB$11:$AM$11,0)) ->  | AS124: =LEFT(AT124,4) -> 2000 | AT124: =LEFT(B124,6) -> 200005
B125: ='Market Data'!B111 -> 20000601 | C125: ='Market Data'!C111 -> 9014.5 | D125: ='Market Data'!D111 -> 9134.5 | E125: ='Market Data'!E111 -> 9004 | F125: ='Market Data'!F111 -> 9122.5 | H125: 107 | I125: =IF($H125<($J$6+1),"",PFE(OFFSET($F125,0,0,-$J$6))) -> 0.0114285008 | K125: Long | AP125: =IF(NOT($AS125=$AS126),ROW(),"") ->  | AQ125: =IF(NOT(AS125=AS126),AS126,"") ->  | AR125: =INDEX($AB$15:$AM$15,MATCH($AS125,$AB$11:$AM$11,0)) ->  | AS125: =LEFT(AT125,4) -> 2000 | AT125: =LEFT(B125,6) -> 200006
B126: ='Market Data'!B112 -> 20000602 | C126: ='Market Data'!C112 -> 9110.5 | D126: ='Market Data'!D112 -> 9314.5 | E126: ='Market Data'!E112 -> 9099.5 | F126: ='Market Data'!F112 -> 9289.5 | H126: 108 | I126: =IF($H126<($J$6+1),"",PFE(OFFSET($F126,0,0,-$J$6))) -> 0.01090646912 | K126: Long | AP126: =IF(NOT($AS126=$AS127),ROW(),"") ->  | AQ126: =IF(NOT(AS126=AS127),AS127,"") ->  | AR126: =INDEX($AB$15:$AM$15,MATCH($AS126,$AB$11:$AM$11,0)) ->  | AS126: =LEFT(AT126,4) -> 2000 | AT126: =LEFT(B126,6) -> 200006
B127: ='Market Data'!B113 -> 20000605 | C127: ='Market Data'!C113 -> 9290.5 | D127: ='Market Data'!D113 -> 9300 | E127: ='Market Data'!E113 -> 9205.5 | F127: ='Market Data'!F113 -> 9255.5 | H127: 109 | I127: =IF($H127<($J$6+1),"",PFE(OFFSET($F127,0,0,-$J$6))) -> -0.01194986113 | K127: Short | M127: 9255.5 | AP127: =IF(NOT($AS127=$AS128),ROW(),"") ->  | AQ127: =IF(NOT(AS127=AS128),AS128,"") ->  | AR127: =INDEX($AB$15:$AM$15,MATCH($AS127,$AB$11:$AM$11,0)) ->  | AS127: =LEFT(AT127,4) -> 2000 | AT127: =LEFT(B127,6) -> 200006
B128: ='Market Data'!B114 -> 20000606 | C128: ='Market Data'!C114 -> 9264.5 | D128: ='Market Data'!D114 -> 9319.5 | E128: ='Market Data'!E114 -> 9150.5 | F128: ='Market Data'!F114 -> 9206.5 | H128: 110 | I128: =IF($H128<($J$6+1),"",PFE(OFFSET($F128,0,0,-$J$6))) -> -0.01050770791 | K128: Short | AP128: =IF(NOT($AS128=$AS129),ROW(),"") ->  | AQ128: =IF(NOT(AS128=AS129),AS129,"") ->  | AR128: =INDEX($AB$15:$AM$15,MATCH($AS128,$AB$11:$AM$11,0)) ->  | AS128: =LEFT(AT128,4) -> 2000 | AT128: =LEFT(B128,6) -> 200006
B129: ='Market Data'!B115 -> 20000607 | C129: ='Market Data'!C115 -> 9164.5 | D129: ='Market Data'!D115 -> 9178.5 | E129: ='Market Data'!E115 -> 9096 | F129: ='Market Data'!F115 -> 9141.5 | H129: 111 | I129: =IF($H129<($J$6+1),"",PFE(OFFSET($F129,0,0,-$J$6))) -> -0.04026386519 | K129: Short | AP129: =IF(NOT($AS129=$AS130),ROW(),"") ->  | AQ129: =IF(NOT(AS129=AS130),AS130,"") ->  | AR129: =INDEX($AB$15:$AM$15,MATCH($AS129,$AB$11:$AM$11,0)) ->  | AS129: =LEFT(AT129,4) -> 2000 | AT129: =LEFT(B129,6) -> 200006
B130: ='Market Data'!B116 -> 20000608 | C130: ='Market Data'!C116 -> 9178.5 | D130: ='Market Data'!D116 -> 9242.5 | E130: ='Market Data'!E116 -> 9060.5 | F130: ='Market Data'!F116 -> 9117.5 | H130: 112 | I130: =IF($H130<($J$6+1),"",PFE(OFFSET($F130,0,0,-$J$6))) -> -0.05853373823 | K130: Short | AP130: =IF(NOT($AS130=$AS131),ROW(),"") ->  | AQ130: =IF(NOT(AS130=AS131),AS131,"") ->  | AR130: =INDEX($AB$15:$AM$15,MATCH($AS130,$AB$11:$AM$11,0)) ->  | AS130: =LEFT(AT130,4) -> 2000 | AT130: =LEFT(B130,6) -> 200006
B131: ='Market Data'!B117 -> 20000609 | C131: ='Market Data'!C117 -> 9142.5 | D131: ='Market Data'!D117 -> 9209 | E131: ='Market Data'!E117 -> 9077 | F131: ='Market Data'!F117 -> 9081.5 | H131: 113 | I131: =IF($H131<($J$6+1),"",PFE(OFFSET($F131,0,0,-$J$6))) -> -0.06444547933 | K131: Short | AP131: =IF(NOT($AS131=$AS132),ROW(),"") ->  | AQ131: =IF(NOT(AS131=AS132),AS132,"") ->  | AR131: =INDEX($AB$15:$AM$15,MATCH($AS131,$AB$11:$AM$11,0)) ->  | AS131: =LEFT(AT131,4) -> 2000 | AT131: =LEFT(B131,6) -> 200006
B132: ='Market Data'!B118 -> 20000612 | C132: ='Market Data'!C118 -> 9124.5 | D132: ='Market Data'!D118 -> 9165 | E132: ='Market Data'!E118 -> 9068.5 | F132: ='Market Data'!F118 -> 9085.5 | H132: 114 | I132: =IF($H132<($J$6+1),"",PFE(OFFSET($F132,0,0,-$J$6))) -> -0.06920995507 | K132: Short | AP132: =IF(NOT($AS132=$AS133),ROW(),"") ->  | AQ132: =IF(NOT(AS132=AS133),AS133,"") ->  | AR132: =INDEX($AB$15:$AM$15,MATCH($AS132,$AB$11:$AM$11,0)) ->  | AS132: =LEFT(AT132,4) -> 2000 | AT132: =LEFT(B132,6) -> 200006
B133: ='Market Data'!B119 -> 20000613 | C133: ='Market Data'!C119 -> 9080.5 | D133: ='Market Data'!D119 -> 9159.5 | E133: ='Market Data'!E119 -> 9017.5 | F133: ='Market Data'!F119 -> 9116.5 | H133: 115 | I133: =IF($H133<($J$6+1),"",PFE(OFFSET($F133,0,0,-$J$6))) -> -0.05757509367 | K133: Short | AP133: =IF(NOT($AS133=$AS134),ROW(),"") ->  | AQ133: =IF(NOT(AS133=AS134),AS134,"") ->  | AR133: =INDEX($AB$15:$AM$15,MATCH($AS133,$AB$11:$AM$11,0)) ->  | AS133: =LEFT(AT133,4) -> 2000 | AT133: =LEFT(B133,6) -> 200006
B134: ='Market Data'!B120 -> 20000614 | C134: ='Market Data'!C120 -> 9147 | D134: ='Market Data'!D120 -> 9223 | E134: ='Market Data'!E120 -> 9096 | F134: ='Market Data'!F120 -> 9204 | H134: 116 | I134: =IF($H134<($J$6+1),"",PFE(OFFSET($F134,0,0,-$J$6))) -> -0.02105364132 | K134: Short | AP134: =IF(NOT($AS134=$AS135),ROW(),"") ->  | AQ134: =IF(NOT(AS134=AS135),AS135,"") ->  | AR134: =INDEX($AB$15:$AM$15,MATCH($AS134,$AB$11:$AM$11,0)) ->  | AS134: =LEFT(AT134,4) -> 2000 | AT134: =LEFT(B134,6) -> 200006
B135: ='Market Data'!B121 -> 20000615 | C135: ='Market Data'!C121 -> 9198 | D135: ='Market Data'!D121 -> 9236 | E135: ='Market Data'!E121 -> 9168 | F135: ='Market Data'!F121 -> 9195.5 | H135: 117 | I135: =IF($H135<($J$6+1),"",PFE(OFFSET($F135,0,0,-$J$6))) -> -0.03322848858 | K135: Short | AP135: =IF(NOT($AS135=$AS136),ROW(),"") ->  | AQ135: =IF(NOT(AS135=AS136),AS136,"") ->  | AR135: =INDEX($AB$15:$AM$15,MATCH($AS135,$AB$11:$AM$11,0)) ->  | AS135: =LEFT(AT135,4) -> 2000 | AT135: =LEFT(B135,6) -> 200006
B136: ='Market Data'!B122 -> 20000616 | C136: ='Market Data'!C122 -> 9224.5 | D136: ='Market Data'!D122 -> 9228 | E136: ='Market Data'!E122 -> 9083 | F136: ='Market Data'!F122 -> 9105.5 | H136: 118 | I136: =IF($H136<($J$6+1),"",PFE(OFFSET($F136,0,0,-$J$6))) -> -0.05931754871 | K136: Short | AP136: =IF(NOT($AS136=$AS137),ROW(),"") ->  | AQ136: =IF(NOT(AS136=AS137),AS137,"") ->  | AR136: =INDEX($AB$15:$AM$15,MATCH($AS136,$AB$11:$AM$11,0)) ->  | AS136: =LEFT(AT136,4) -> 2000 | AT136: =LEFT(B136,6) -> 200006
B137: ='Market Data'!B123 -> 20000619 | C137: ='Market Data'!C123 -> 9033 | D137: ='Market Data'!D123 -> 9073 | E137: ='Market Data'!E123 -> 8974 | F137: ='Market Data'!F123 -> 9068.5 | H137: 119 | I137: =IF($H137<($J$6+1),"",PFE(OFFSET($F137,0,0,-$J$6))) -> -0.05882285191 | K137: Short | AP137: =IF(NOT($AS137=$AS138),ROW(),"") ->  | AQ137: =IF(NOT(AS137=AS138),AS138,"") ->  | AR137: =INDEX($AB$15:$AM$15,MATCH($AS137,$AB$11:$AM$11,0)) ->  | AS137: =LEFT(AT137,4) -> 2000 | AT137: =LEFT(B137,6) -> 200006
B138: ='Market Data'!B124 -> 20000620 | C138: ='Market Data'!C124 -> 9079.5 | D138: ='Market Data'!D124 -> 9110 | E138: ='Market Data'!E124 -> 9040.5 | F138: ='Market Data'!F124 -> 9060.5 | H138: 120 | I138: =IF($H138<($J$6+1),"",PFE(OFFSET($F138,0,0,-$J$6))) -> -0.0562196716 | K138: Short | AP138: =IF(NOT($AS138=$AS139),ROW(),"") ->  | AQ138: =IF(NOT(AS138=AS139),AS139,"") ->  | AR138: =INDEX($AB$15:$AM$15,MATCH($AS138,$AB$11:$AM$11,0)) ->  | AS138: =LEFT(AT138,4) -> 2000 | AT138: =LEFT(B138,6) -> 200006
B139: ='Market Data'!B125 -> 20000621 | C139: ='Market Data'!C125 -> 9043 | D139: ='Market Data'!D125 -> 9081 | E139: ='Market Data'!E125 -> 8929 | F139: ='Market Data'!F125 -> 8976 | H139: 121 | I139: =IF($H139<($J$6+1),"",PFE(OFFSET($F139,0,0,-$J$6))) -> -0.07546142697 | K139: Short | AP139: =IF(NOT($AS139=$AS140),ROW(),"") ->  | AQ139: =IF(NOT(AS139=AS140),AS140,"") ->  | AR139: =INDEX($AB$15:$AM$15,MATCH($AS139,$AB$11:$AM$11,0)) ->  | AS139: =LEFT(AT139,4) -> 2000 | AT139: =LEFT(B139,6) -> 200006
B140: ='Market Data'!B126 -> 20000622 | C140: ='Market Data'!C126 -> 8988 | D140: ='Market Data'!D126 -> 9013 | E140: ='Market Data'!E126 -> 8859 | F140: ='Market Data'!F126 -> 8898.5 | H140: 122 | I140: =IF($H140<($J$6+1),"",PFE(OFFSET($F140,0,0,-$J$6))) -> -0.09671048194 | K140: Short | AP140: =IF(NOT($AS140=$AS141),ROW(),"") ->  | AQ140: =IF(NOT(AS140=AS141),AS141,"") ->  | AR140: =INDEX($AB$15:$AM$15,MATCH($AS140,$AB$11:$AM$11,0)) ->  | AS140: =LEFT(AT140,4) -> 2000 | AT140: =LEFT(B140,6) -> 200006
B141: ='Market Data'!B127 -> 20000623 | C141: ='Market Data'!C127 -> 8898 | D141: ='Market Data'!D127 -> 8919 | E141: ='Market Data'!E127 -> 8817 | F141: ='Market Data'!F127 -> 8818 | H141: 123 | I141: =IF($H141<($J$6+1),"",PFE(OFFSET($F141,0,0,-$J$6))) -> -0.09779128502 | K141: Short | AP141: =IF(NOT($AS141=$AS142),ROW(),"") ->  | AQ141: =IF(NOT(AS141=AS142),AS142,"") ->  | AR141: =INDEX($AB$15:$AM$15,MATCH($AS141,$AB$11:$AM$11,0)) ->  | AS141: =LEFT(AT141,4) -> 2000 | AT141: =LEFT(B141,6) -> 200006
B142: ='Market Data'!B128 -> 20000626 | C142: ='Market Data'!C128 -> 8813 | D142: ='Market Data'!D128 -> 8926.5 | E142: ='Market Data'!E128 -> 8800 | F142: ='Market Data'!F128 -> 8868 | H142: 124 | I142: =IF($H142<($J$6+1),"",PFE(OFFSET($F142,0,0,-$J$6))) -> -0.1119386427 | K142: Short | AP142: =IF(NOT($AS142=$AS143),ROW(),"") ->  | AQ142: =IF(NOT(AS142=AS143),AS143,"") ->  | AR142: =INDEX($AB$15:$AM$15,MATCH($AS142,$AB$11:$AM$11,0)) ->  | AS142: =LEFT(AT142,4) -> 2000 | AT142: =LEFT(B142,6) -> 200006
B143: ='Market Data'!B129 -> 20000627 | C143: ='Market Data'!C129 -> 8873 | D143: ='Market Data'!D129 -> 8901 | E143: ='Market Data'!E129 -> 8795 | F143: ='Market Data'!F129 -> 8876.5 | H143: 125 | I143: =IF($H143<($J$6+1),"",PFE(OFFSET($F143,0,0,-$J$6))) -> -0.08664906762 | K143: Short | AP143: =IF(NOT($AS143=$AS144),ROW(),"") ->  | AQ143: =IF(NOT(AS143=AS144),AS144,"") ->  | AR143: =INDEX($AB$15:$AM$15,MATCH($AS143,$AB$11:$AM$11,0)) ->  | AS143: =LEFT(AT143,4) -> 2000 | AT143: =LEFT(B143,6) -> 200006
B144: ='Market Data'!B130 -> 20000628 | C144: ='Market Data'!C130 -> 8901 | D144: ='Market Data'!D130 -> 8904.5 | E144: ='Market Data'!E130 -> 8835 | F144: ='Market Data'!F130 -> 8893 | H144: 126 | I144: =IF($H144<($J$6+1),"",PFE(OFFSET($F144,0,0,-$J$6))) -> -0.09902579021 | K144: Short | AP144: =IF(NOT($AS144=$AS145),ROW(),"") ->  | AQ144: =IF(NOT(AS144=AS145),AS145,"") ->  | AR144: =INDEX($AB$15:$AM$15,MATCH($AS144,$AB$11:$AM$11,0)) ->  | AS144: =LEFT(AT144,4) -> 2000 | AT144: =LEFT(B144,6) -> 200006
B145: ='Market Data'!B131 -> 20000629 | C145: ='Market Data'!C131 -> 8883 | D145: ='Market Data'!D131 -> 8883 | E145: ='Market Data'!E131 -> 8671 | F145: ='Market Data'!F131 -> 8705 | H145: 127 | I145: =IF($H145<($J$6+1),"",PFE(OFFSET($F145,0,0,-$J$6))) -> -0.128126293 | K145: Short | AP145: =IF(NOT($AS145=$AS146),ROW(),"") ->  | AQ145: =IF(NOT(AS145=AS146),AS146,"") ->  | AR145: =INDEX($AB$15:$AM$15,MATCH($AS145,$AB$11:$AM$11,0)) ->  | AS145: =LEFT(AT145,4) -> 2000 | AT145: =LEFT(B145,6) -> 200006
B146: ='Market Data'!B132 -> 20000630 | C146: ='Market Data'!C132 -> 8738 | D146: ='Market Data'!D132 -> 8783 | E146: ='Market Data'!E132 -> 8696.5 | F146: ='Market Data'!F132 -> 8713 | H146: 128 | I146: =IF($H146<($J$6+1),"",PFE(OFFSET($F146,0,0,-$J$6))) -> -0.1633161461 | K146: Short | AP146: =IF(NOT($AS146=$AS147),ROW(),"") ->  | AQ146: =IF(NOT(AS146=AS147),AS147,"") ->  | AR146: =INDEX($AB$15:$AM$15,MATCH($AS146,$AB$11:$AM$11,0)) ->  | AS146: =LEFT(AT146,4) -> 2000 | AT146: =LEFT(B146,6) -> 200006
B147: ='Market Data'!B133 -> 20000703 | C147: ='Market Data'!C133 -> 8733 | D147: ='Market Data'!D133 -> 8791.5 | E147: ='Market Data'!E133 -> 8664 | F147: ='Market Data'!F133 -> 8791.5 | H147: 129 | I147: =IF($H147<($J$6+1),"",PFE(OFFSET($F147,0,0,-$J$6))) -> -0.1530121781 | K147: Short | L147: =IF(AND($K147="Long",$K146<>"Long"),$F147,NA()) ->  | M147: =IF(AND($K147="Short",$K146<>"Short"),$F147,NA()) ->  | AP147: =IF(NOT($AS147=$AS148),ROW(),"") ->  | AQ147: =IF(NOT(AS147=AS148),AS148,"") ->  | AR147: =INDEX($AB$15:$AM$15,MATCH($AS147,$AB$11:$AM$11,0)) ->  | AS147: =LEFT(AT147,4) -> 2000 | AT147: =LEFT(B147,6) -> 200007
B148: ='Market Data'!B134 -> 20000704 | C148: ='Market Data'!C134 -> 8748 | D148: ='Market Data'!D134 -> 8806 | E148: ='Market Data'!E134 -> 8730.5 | F148: ='Market Data'!F134 -> 8773 | H148: =ROW()-ROW(H$18) -> 130 | I148: =IF($H148<($J$6+1),"",PFE(OFFSET($F148,0,0,-$J$6))) -> -0.1565866213 | K148: =IF($I148="","",IF($I148>$J$4,"Long",IF($I148<$J$5,"Short",""))) -> Short | AP148: =IF(NOT($AS148=$AS149),ROW(),"") ->  | AQ148: =IF(NOT(AS148=AS149),AS149,"") ->  | AR148: =INDEX($AB$15:$AM$15,MATCH($AS148,$AB$11:$AM$11,0)) ->  | AS148: =LEFT(AT148,4) -> 2000 | AT148: =LEFT(B148,6) -> 200007
B149: ='Market Data'!B135 -> 20000705 | C149: ='Market Data'!C135 -> 8782 | D149: ='Market Data'!D135 -> 8917.5 | E149: ='Market Data'!E135 -> 8768 | F149: ='Market Data'!F135 -> 8799 | H149: 131 | I149: =IF($H149<($J$6+1),"",PFE(OFFSET($F149,0,0,-$J$6))) -> -0.1660832911 | K149: Short | AP149: =IF(NOT($AS149=$AS150),ROW(),"") ->  | AQ149: =IF(NOT(AS149=AS150),AS150,"") ->  | AR149: =INDEX($AB$15:$AM$15,MATCH($AS149,$AB$11:$AM$11,0)) ->  | AS149: =LEFT(AT149,4) -> 2000 | AT149: =LEFT(B149,6) -> 200007
B150: ='Market Data'!B136 -> 20000706 | C150: ='Market Data'!C136 -> 8778 | D150: ='Market Data'!D136 -> 8805.5 | E150: ='Market Data'!E136 -> 8718 | F150: ='Market Data'!F136 -> 8783 | H150: 132 | I150: =IF($H150<($J$6+1),"",PFE(OFFSET($F150,0,0,-$J$6))) -> -0.1581041029 | K150: Short | AP150: =IF(NOT($AS150=$AS151),ROW(),"") ->  | AQ150: =IF(NOT(AS150=AS151),AS151,"") ->  | AR150: =INDEX($AB$15:$AM$15,MATCH($AS150,$AB$11:$AM$11,0)) ->  | AS150: =LEFT(AT150,4) -> 2000 | AT150: =LEFT(B150,6) -> 200007
B151: ='Market Data'!B137 -> 20000707 | C151: ='Market Data'!C137 -> 8804.5 | D151: ='Market Data'!D137 -> 8879.5 | E151: ='Market Data'!E137 -> 8733 | F151: ='Market Data'!F137 -> 8871 | H151: 133 | I151: =IF($H151<($J$6+1),"",PFE(OFFSET($F151,0,0,-$J$6))) -> -0.1421533704 | K151: Short | AP151: =IF(NOT($AS151=$AS152),ROW(),"") ->  | AQ151: =IF(NOT(AS151=AS152),AS152,"") ->  | AR151: =INDEX($AB$15:$AM$15,MATCH($AS151,$AB$11:$AM$11,0)) ->  | AS151: =LEFT(AT151,4) -> 2000 | AT151: =LEFT(B151,6) -> 200007
B152: ='Market Data'!B138 -> 20000710 | C152: ='Market Data'!C138 -> 8887.5 | D152: ='Market Data'!D138 -> 8951 | E152: ='Market Data'!E138 -> 8851 | F152: ='Market Data'!F138 -> 8889 | H152: 134 | I152: =IF($H152<($J$6+1),"",PFE(OFFSET($F152,0,0,-$J$6))) -> -0.1427992374 | K152: Short | AP152: =IF(NOT($AS152=$AS153),ROW(),"") ->  | AQ152: =IF(NOT(AS152=AS153),AS153,"") ->  | AR152: =INDEX($AB$15:$AM$15,MATCH($AS152,$AB$11:$AM$11,0)) ->  | AS152: =LEFT(AT152,4) -> 2000 | AT152: =LEFT(B152,6) -> 200007
B153: ='Market Data'!B139 -> 20000711 | C153: ='Market Data'!C139 -> 8873 | D153: ='Market Data'!D139 -> 8884.5 | E153: ='Market Data'!E139 -> 8776.5 | F153: ='Market Data'!F139 -> 8819 | H153: 135 | I153: =IF($H153<($J$6+1),"",PFE(OFFSET($F153,0,0,-$J$6))) -> -0.1145608159 | K153: Short | AP153: =IF(NOT($AS153=$AS154),ROW(),"") ->  | AQ153: =IF(NOT(AS153=AS154),AS154,"") ->  | AR153: =INDEX($AB$15:$AM$15,MATCH($AS153,$AB$11:$AM$11,0)) ->  | AS153: =LEFT(AT153,4) -> 2000 | AT153: =LEFT(B153,6) -> 200007
B154: ='Market Data'!B140 -> 20000712 | C154: ='Market Data'!C140 -> 8849.5 | D154: ='Market Data'!D140 -> 8922 | E154: ='Market Data'!E140 -> 8836 | F154: ='Market Data'!F140 -> 8888.5 | H154: 136 | I154: =IF($H154<($J$6+1),"",PFE(OFFSET($F154,0,0,-$J$6))) -> -0.09911096838 | K154: Short | AP154: =IF(NOT($AS154=$AS155),ROW(),"") ->  | AQ154: =IF(NOT(AS154=AS155),AS155,"") ->  | AR154: =INDEX($AB$15:$AM$15,MATCH($AS154,$AB$11:$AM$11,0)) ->  | AS154: =LEFT(AT154,4) -> 2000 | AT154: =LEFT(B154,6) -> 200007
B155: ='Market Data'!B141 -> 20000713 | C155: ='Market Data'!C141 -> 8884 | D155: ='Market Data'!D141 -> 9011.5 | E155: ='Market Data'!E141 -> 8823 | F155: ='Market Data'!F141 -> 9007 | H155: 137 | I155: =IF($H155<($J$6+1),"",PFE(OFFSET($F155,0,0,-$J$6))) -> -0.05140340547 | K155: Short | AP155: =IF(NOT($AS155=$AS156),ROW(),"") ->  | AQ155: =IF(NOT(AS155=AS156),AS156,"") ->  | AR155: =INDEX($AB$15:$AM$15,MATCH($AS155,$AB$11:$AM$11,0)) ->  | AS155: =LEFT(AT155,4) -> 2000 | AT155: =LEFT(B155,6) -> 200007
B156: ='Market Data'!B142 -> 20000714 | C156: ='Market Data'!C142 -> 9014 | D156: ='Market Data'!D142 -> 9161 | E156: ='Market Data'!E142 -> 8985 | F156: ='Market Data'!F142 -> 9142 | H156: 138 | I156: =IF($H156<($J$6+1),"",PFE(OFFSET($F156,0,0,-$J$6))) -> -0.05375554276 | K156: Short | AP156: =IF(NOT($AS156=$AS157),ROW(),"") ->  | AQ156: =IF(NOT(AS156=AS157),AS157,"") ->  | AR156: =INDEX($AB$15:$AM$15,MATCH($AS156,$AB$11:$AM$11,0)) ->  | AS156: =LEFT(AT156,4) -> 2000 | AT156: =LEFT(B156,6) -> 200007
B157: ='Market Data'!B143 -> 20000717 | C157: ='Market Data'!C143 -> 9168.5 | D157: ='Market Data'!D143 -> 9243 | E157: ='Market Data'!E143 -> 9140.5 | F157: ='Market Data'!F143 -> 9236 | H157: 139 | I157: =IF($H157<($J$6+1),"",PFE(OFFSET($F157,0,0,-$J$6))) -> -0.05904767221 | K157: Short | AP157: =IF(NOT($AS157=$AS158),ROW(),"") ->  | AQ157: =IF(NOT(AS157=AS158),AS158,"") ->  | AR157: =INDEX($AB$15:$AM$15,MATCH($AS157,$AB$11:$AM$11,0)) ->  | AS157: =LEFT(AT157,4) -> 2000 | AT157: =LEFT(B157,6) -> 200007
B158: ='Market Data'!B144 -> 20000718 | C158: ='Market Data'!C144 -> 9208 | D158: ='Market Data'!D144 -> 9273 | E158: ='Market Data'!E144 -> 9173 | F158: ='Market Data'!F144 -> 9207 | H158: 140 | I158: =IF($H158<($J$6+1),"",PFE(OFFSET($F158,0,0,-$J$6))) -> -0.08524619464 | K158: Short | AP158: =IF(NOT($AS158=$AS159),ROW(),"") ->  | AQ158: =IF(NOT(AS158=AS159),AS159,"") ->  | AR158: =INDEX($AB$15:$AM$15,MATCH($AS158,$AB$11:$AM$11,0)) ->  | AS158: =LEFT(AT158,4) -> 2000 | AT158: =LEFT(B158,6) -> 200007
B159: ='Market Data'!B145 -> 20000719 | C159: ='Market Data'!C145 -> 9207 | D159: ='Market Data'!D145 -> 9213.5 | E159: ='Market Data'!E145 -> 9137 | F159: ='Market Data'!F145 -> 9178 | H159: 141 | I159: =IF($H159<($J$6+1),"",PFE(OFFSET($F159,0,0,-$J$6))) -> -0.08084604169 | K159: Short | AP159: =IF(NOT($AS159=$AS160),ROW(),"") ->  | AQ159: =IF(NOT(AS159=AS160),AS160,"") ->  | AR159: =INDEX($AB$15:$AM$15,MATCH($AS159,$AB$11:$AM$11,0)) ->  | AS159: =LEFT(AT159,4) -> 2000 | AT159: =LEFT(B159,6) -> 200007
B160: ='Market Data'!B146 -> 20000720 | C160: ='Market Data'!C146 -> 9148 | D160: ='Market Data'!D146 -> 9308 | E160: ='Market Data'!E146 -> 9143 | F160: ='Market Data'!F146 -> 9303 | H160: 142 | I160: =IF($H160<($J$6+1),"",PFE(OFFSET($F160,0,0,-$J$6))) -> -0.05958790724 | K160: Short | AP160: =IF(NOT($AS160=$AS161),ROW(),"") ->  | AQ160: =IF(NOT(AS160=AS161),AS161,"") ->  | AR160: =INDEX($AB$15:$AM$15,MATCH($AS160,$AB$11:$AM$11,0)) ->  | AS160: =LEFT(AT160,4) -> 2000 | AT160: =LEFT(B160,6) -> 200007
B161: ='Market Data'!B147 -> 20000721 | C161: ='Market Data'!C147 -> 9294 | D161: ='Market Data'!D147 -> 9312.5 | E161: ='Market Data'!E147 -> 9188 | F161: ='Market Data'!F147 -> 9197.5 | H161: 143 | I161: =IF($H161<($J$6+1),"",PFE(OFFSET($F161,0,0,-$J$6))) -> -0.06758174559 | K161: Short | AP161: =IF(NOT($AS161=$AS162),ROW(),"") ->  | AQ161: =IF(NOT(AS161=AS162),AS162,"") ->  | AR161: =INDEX($AB$15:$AM$15,MATCH($AS161,$AB$11:$AM$11,0)) ->  | AS161: =LEFT(AT161,4) -> 2000 | AT161: =LEFT(B161,6) -> 200007
B162: ='Market Data'!B148 -> 20000724 | C162: ='Market Data'!C148 -> 9168.5 | D162: ='Market Data'!D148 -> 9243.5 | E162: ='Market Data'!E148 -> 9120 | F162: ='Market Data'!F148 -> 9122 | H162: 144 | I162: =IF($H162<($J$6+1),"",PFE(OFFSET($F162,0,0,-$J$6))) -> -0.1019434331 | K162: Short | AP162: =IF(NOT($AS162=$AS163),ROW(),"") ->  | AQ162: =IF(NOT(AS162=AS163),AS163,"") ->  | AR162: =INDEX($AB$15:$AM$15,MATCH($AS162,$AB$11:$AM$11,0)) ->  | AS162: =LEFT(AT162,4) -> 2000 | AT162: =LEFT(B162,6) -> 200007
B163: ='Market Data'!B149 -> 20000725 | C163: ='Market Data'!C149 -> 9114 | D163: ='Market Data'!D149 -> 9170 | E163: ='Market Data'!E149 -> 9105.5 | F163: ='Market Data'!F149 -> 9148 | H163: 145 | I163: =IF($H163<($J$6+1),"",PFE(OFFSET($F163,0,0,-$J$6))) -> -0.09702517746 | K163: Short | AP163: =IF(NOT($AS163=$AS164),ROW(),"") ->  | AQ163: =IF(NOT(AS163=AS164),AS164,"") ->  | AR163: =INDEX($AB$15:$AM$15,MATCH($AS163,$AB$11:$AM$11,0)) ->  | AS163: =LEFT(AT163,4) -> 2000 | AT163: =LEFT(B163,6) -> 200007
B164: ='Market Data'!B150 -> 20000726 | C164: ='Market Data'!C150 -> 9159 | D164: ='Market Data'!D150 -> 9168 | E164: ='Market Data'!E150 -> 9061.5 | F164: ='Market Data'!F150 -> 9083 | H164: 146 | I164: =IF($H164<($J$6+1),"",PFE(OFFSET($F164,0,0,-$J$6))) -> -0.109894375 | K164: Short | AP164: =IF(NOT($AS164=$AS165),ROW(),"") ->  | AQ164: =IF(NOT(AS164=AS165),AS165,"") ->  | AR164: =INDEX($AB$15:$AM$15,MATCH($AS164,$AB$11:$AM$11,0)) ->  | AS164: =LEFT(AT164,4) -> 2000 | AT164: =LEFT(B164,6) -> 200007
B165: ='Market Data'!B151 -> 20000727 | C165: ='Market Data'!C151 -> 9082 | D165: ='Market Data'!D151 -> 9141 | E165: ='Market Data'!E151 -> 8975.5 | F165: ='Market Data'!F151 -> 8990.5 | H165: 147 | I165: =IF($H165<($J$6+1),"",PFE(OFFSET($F165,0,0,-$J$6))) -> -0.1171307692 | K165: Short | AP165: =IF(NOT($AS165=$AS166),ROW(),"") ->  | AQ165: =IF(NOT(AS165=AS166),AS166,"") ->  | AR165: =INDEX($AB$15:$AM$15,MATCH($AS165,$AB$11:$AM$11,0)) ->  | AS165: =LEFT(AT165,4) -> 2000 | AT165: =LEFT(B165,6) -> 200007
B166: ='Market Data'!B152 -> 20000728 | C166: ='Market Data'!C152 -> 8994 | D166: ='Market Data'!D152 -> 9034 | E166: ='Market Data'!E152 -> 8878 | F166: ='Market Data'!F152 -> 8933 | H166: 148 | I166: =IF($H166<($J$6+1),"",PFE(OFFSET($F166,0,0,-$J$6))) -> -0.09318348964 | K166: Short | AP166: =IF(NOT($AS166=$AS167),ROW(),"") ->  | AQ166: =IF(NOT(AS166=AS167),AS167,"") ->  | AR166: =INDEX($AB$15:$AM$15,MATCH($AS166,$AB$11:$AM$11,0)) ->  | AS166: =LEFT(AT166,4) -> 2000 | AT166: =LEFT(B166,6) -> 200007
B167: ='Market Data'!B153 -> 20000731 | C167: ='Market Data'!C153 -> 8933 | D167: ='Market Data'!D153 -> 9060 | E167: ='Market Data'!E153 -> 8914 | F167: ='Market Data'!F153 -> 9035 | H167: 149 | I167: =IF($H167<($J$6+1),"",PFE(OFFSET($F167,0,0,-$J$6))) -> -0.06395065603 | K167: Short | AP167: =IF(NOT($AS167=$AS168),ROW(),"") ->  | AQ167: =IF(NOT(AS167=AS168),AS168,"") ->  | AR167: =INDEX($AB$15:$AM$15,MATCH($AS167,$AB$11:$AM$11,0)) ->  | AS167: =LEFT(AT167,4) -> 2000 | AT167: =LEFT(B167,6) -> 200007
B168: ='Market Data'!B154 -> 20000801 | C168: ='Market Data'!C154 -> 9034 | D168: ='Market Data'!D154 -> 9039 | E168: ='Market Data'!E154 -> 8898.5 | F168: ='Market Data'!F154 -> 8957 | H168: 150 | I168: =IF($H168<($J$6+1),"",PFE(OFFSET($F168,0,0,-$J$6))) -> -0.05663443866 | K168: Short | AP168: =IF(NOT($AS168=$AS169),ROW(),"") ->  | AQ168: =IF(NOT(AS168=AS169),AS169,"") ->  | AR168: =INDEX($AB$15:$AM$15,MATCH($AS168,$AB$11:$AM$11,0)) ->  | AS168: =LEFT(AT168,4) -> 2000 | AT168: =LEFT(B168,6) -> 200008
B169: ='Market Data'!B155 -> 20000802 | C169: ='Market Data'!C155 -> 8978 | D169: ='Market Data'!D155 -> 9004 | E169: ='Market Data'!E155 -> 8872 | F169: ='Market Data'!F155 -> 8926 | H169: 151 | I169: =IF($H169<($J$6+1),"",PFE(OFFSET($F169,0,0,-$J$6))) -> -0.07827751699 | K169: Short | AP169: =IF(NOT($AS169=$AS170),ROW(),"") ->  | AQ169: =IF(NOT(AS169=AS170),AS170,"") ->  | AR169: =INDEX($AB$15:$AM$15,MATCH($AS169,$AB$11:$AM$11,0)) ->  | AS169: =LEFT(AT169,4) -> 2000 | AT169: =LEFT(B169,6) -> 200008
B170: ='Market Data'!B156 -> 20000803 | C170: ='Market Data'!C156 -> 8879 | D170: ='Market Data'!D156 -> 8898.5 | E170: ='Market Data'!E156 -> 8757 | F170: ='Market Data'!F156 -> 8803 | H170: 152 | I170: =IF($H170<($J$6+1),"",PFE(OFFSET($F170,0,0,-$J$6))) -> -0.06222899528 | K170: Short | AP170: =IF(NOT($AS170=$AS171),ROW(),"") ->  | AQ170: =IF(NOT(AS170=AS171),AS171,"") ->  | AR170: =INDEX($AB$15:$AM$15,MATCH($AS170,$AB$11:$AM$11,0)) ->  | AS170: =LEFT(AT170,4) -> 2000 | AT170: =LEFT(B170,6) -> 200008
B171: ='Market Data'!B157 -> 20000804 | C171: ='Market Data'!C157 -> 8834 | D171: ='Market Data'!D157 -> 8908 | E171: ='Market Data'!E157 -> 8805 | F171: ='Market Data'!F157 -> 8823 | H171: 153 | I171: =IF($H171<($J$6+1),"",PFE(OFFSET($F171,0,0,-$J$6))) -> -0.08221609093 | K171: Short | AP171: =IF(NOT($AS171=$AS172),ROW(),"") ->  | AQ171: =IF(NOT(AS171=AS172),AS172,"") ->  | AR171: =INDEX($AB$15:$AM$15,MATCH($AS171,$AB$11:$AM$11,0)) ->  | AS171: =LEFT(AT171,4) -> 2000 | AT171: =LEFT(B171,6) -> 200008
B172: ='Market Data'!B158 -> 20000807 | C172: ='Market Data'!C158 -> 8848 | D172: ='Market Data'!D158 -> 8937 | E172: ='Market Data'!E158 -> 8837 | F172: ='Market Data'!F158 -> 8933 | H172: 154 | I172: =IF($H172<($J$6+1),"",PFE(OFFSET($F172,0,0,-$J$6))) -> -0.07407681789 | K172: Short | AP172: =IF(NOT($AS172=$AS173),ROW(),"") ->  | AQ172: =IF(NOT(AS172=AS173),AS173,"") ->  | AR172: =INDEX($AB$15:$AM$15,MATCH($AS172,$AB$11:$AM$11,0)) ->  | AS172: =LEFT(AT172,4) -> 2000 | AT172: =LEFT(B172,6) -> 200008
B173: ='Market Data'!B159 -> 20000808 | C173: ='Market Data'!C159 -> 8918 | D173: ='Market Data'!D159 -> 8992.5 | E173: ='Market Data'!E159 -> 8883 | F173: ='Market Data'!F159 -> 8944 | H173: 155 | I173: =IF($H173<($J$6+1),"",PFE(OFFSET($F173,0,0,-$J$6))) -> -0.07517024099 | K173: Short | AP173: =IF(NOT($AS173=$AS174),ROW(),"") ->  | AQ173: =IF(NOT(AS173=AS174),AS174,"") ->  | AR173: =INDEX($AB$15:$AM$15,MATCH($AS173,$AB$11:$AM$11,0)) ->  | AS173: =LEFT(AT173,4) -> 2000 | AT173: =LEFT(B173,6) -> 200008
B174: ='Market Data'!B160 -> 20000809 | C174: ='Market Data'!C160 -> 8972 | D174: ='Market Data'!D160 -> 9063.5 | E174: ='Market Data'!E160 -> 8971 | F174: ='Market Data'!F160 -> 9038 | H174: 156 | I174: =IF($H174<($J$6+1),"",PFE(OFFSET($F174,0,0,-$J$6))) -> -0.04662668133 | K174: Short | AP174: =IF(NOT($AS174=$AS175),ROW(),"") ->  | AQ174: =IF(NOT(AS174=AS175),AS175,"") ->  | AR174: =INDEX($AB$15:$AM$15,MATCH($AS174,$AB$11:$AM$11,0)) ->  | AS174: =LEFT(AT174,4) -> 2000 | AT174: =LEFT(B174,6) -> 200008
B175: ='Market Data'!B161 -> 20000810 | C175: ='Market Data'!C161 -> 9013 | D175: ='Market Data'!D161 -> 9108.5 | E175: ='Market Data'!E161 -> 9010 | F175: ='Market Data'!F161 -> 9069.5 | H175: 157 | I175: =IF($H175<($J$6+1),"",PFE(OFFSET($F175,0,0,-$J$6))) -> -0.03806211732 | K175: Short | AP175: =IF(NOT($AS175=$AS176),ROW(),"") ->  | AQ175: =IF(NOT(AS175=AS176),AS176,"") ->  | AR175: =INDEX($AB$15:$AM$15,MATCH($AS175,$AB$11:$AM$11,0)) ->  | AS175: =LEFT(AT175,4) -> 2000 | AT175: =LEFT(B175,6) -> 200008
B176: ='Market Data'!B162 -> 20000811 | C176: ='Market Data'!C162 -> 9063 | D176: ='Market Data'!D162 -> 9125 | E176: ='Market Data'!E162 -> 9019 | F176: ='Market Data'!F162 -> 9114 | H176: 158 | I176: =IF($H176<($J$6+1),"",PFE(OFFSET($F176,0,0,-$J$6))) -> -0.03491417817 | K176: Short | AP176: =IF(NOT($AS176=$AS177),ROW(),"") ->  | AQ176: =IF(NOT(AS176=AS177),AS177,"") ->  | AR176: =INDEX($AB$15:$AM$15,MATCH($AS176,$AB$11:$AM$11,0)) ->  | AS176: =LEFT(AT176,4) -> 2000 | AT176: =LEFT(B176,6) -> 200008
B177: ='Market Data'!B163 -> 20000814 | C177: ='Market Data'!C163 -> 9129 | D177: ='Market Data'!D163 -> 9162 | E177: ='Market Data'!E163 -> 9090 | F177: ='Market Data'!F163 -> 9111 | H177: 159 | I177: =IF($H177<($J$6+1),"",PFE(OFFSET($F177,0,0,-$J$6))) -> 0.01527413129 | K177: Long | L177: 9111 | AP177: =IF(NOT($AS177=$AS178),ROW(),"") ->  | AQ177: =IF(NOT(AS177=AS178),AS178,"") ->  | AR177: =INDEX($AB$15:$AM$15,MATCH($AS177,$AB$11:$AM$11,0)) ->  | AS177: =LEFT(AT177,4) -> 2000 | AT177: =LEFT(B177,6) -> 200008
B178: ='Market Data'!B164 -> 20000815 | C178: ='Market Data'!C164 -> 9157 | D178: ='Market Data'!D164 -> 9167.5 | E178: ='Market Data'!E164 -> 9071 | F178: ='Market Data'!F164 -> 9083 | H178: 160 | I178: =IF($H178<($J$6+1),"",PFE(OFFSET($F178,0,0,-$J$6))) -> 0.01477778248 | K178: Long | AP178: =IF(NOT($AS178=$AS179),ROW(),"") ->  | AQ178: =IF(NOT(AS178=AS179),AS179,"") ->  | AR178: =INDEX($AB$15:$AM$15,MATCH($AS178,$AB$11:$AM$11,0)) ->  | AS178: =LEFT(AT178,4) -> 2000 | AT178: =LEFT(B178,6) -> 200008
B179: ='Market Data'!B165 -> 20000816 | C179: ='Market Data'!C165 -> 9103 | D179: ='Market Data'!D165 -> 9156 | E179: ='Market Data'!E165 -> 9082.5 | F179: ='Market Data'!F165 -> 9119 | H179: 161 | I179: =IF($H179<($J$6+1),"",PFE(OFFSET($F179,0,0,-$J$6))) -> 0.01439194629 | K179: Long | AP179: =IF(NOT($AS179=$AS180),ROW(),"") ->  | AQ179: =IF(NOT(AS179=AS180),AS180,"") ->  | AR179: =INDEX($AB$15:$AM$15,MATCH($AS179,$AB$11:$AM$11,0)) ->  | AS179: =LEFT(AT179,4) -> 2000 | AT179: =LEFT(B179,6) -> 200008
B180: ='Market Data'!B166 -> 20000817 | C180: ='Market Data'!C166 -> 9118 | D180: ='Market Data'!D166 -> 9126 | E180: ='Market Data'!E166 -> 8998 | F180: ='Market Data'!F166 -> 9060 | H180: 162 | I180: =IF($H180<($J$6+1),"",PFE(OFFSET($F180,0,0,-$J$6))) -> -0.01384387965 | K180: Short | M180: 9060 | AP180: =IF(NOT($AS180=$AS181),ROW(),"") ->  | AQ180: =IF(NOT(AS180=AS181),AS181,"") ->  | AR180: =INDEX($AB$15:$AM$15,MATCH($AS180,$AB$11:$AM$11,0)) ->  | AS180: =LEFT(AT180,4) -> 2000 | AT180: =LEFT(B180,6) -> 200008
B181: ='Market Data'!B167 -> 20000818 | C181: ='Market Data'!C167 -> 9063 | D181: ='Market Data'!D167 -> 9112 | E181: ='Market Data'!E167 -> 9007 | F181: ='Market Data'!F167 -> 9010.5 | H181: 163 | I181: =IF($H181<($J$6+1),"",PFE(OFFSET($F181,0,0,-$J$6))) -> -0.01608289458 | K181: Short | AP181: =IF(NOT($AS181=$AS182),ROW(),"") ->  | AQ181: =IF(NOT(AS181=AS182),AS182,"") ->  | AR181: =INDEX($AB$15:$AM$15,MATCH($AS181,$AB$11:$AM$11,0)) ->  | AS181: =LEFT(AT181,4) -> 2000 | AT181: =LEFT(B181,6) -> 200008
B182: ='Market Data'!B168 -> 20000821 | C182: ='Market Data'!C168 -> 9038 | D182: ='Market Data'!D168 -> 9038 | E182: ='Market Data'!E168 -> 8933.5 | F182: ='Market Data'!F168 -> 8976 | H182: 164 | I182: =IF($H182<($J$6+1),"",PFE(OFFSET($F182,0,0,-$J$6))) -> -0.0342806341 | K182: Short | AP182: =IF(NOT($AS182=$AS183),ROW(),"") ->  | AQ182: =IF(NOT(AS182=AS183),AS183,"") ->  | AR182: =INDEX($AB$15:$AM$15,MATCH($AS182,$AB$11:$AM$11,0)) ->  | AS182: =LEFT(AT182,4) -> 2000 | AT182: =LEFT(B182,6) -> 200008
B183: ='Market Data'!B169 -> 20000822 | C183: ='Market Data'!C169 -> 8998 | D183: ='Market Data'!D169 -> 9074 | E183: ='Market Data'!E169 -> 8991.5 | F183: ='Market Data'!F169 -> 9037 | H183: 165 | I183: =IF($H183<($J$6+1),"",PFE(OFFSET($F183,0,0,-$J$6))) -> -0.03696248309 | K183: Short | AP183: =IF(NOT($AS183=$AS184),ROW(),"") ->  | AQ183: =IF(NOT(AS183=AS184),AS184,"") ->  | AR183: =INDEX($AB$15:$AM$15,MATCH($AS183,$AB$11:$AM$11,0)) ->  | AS183: =LEFT(AT183,4) -> 2000 | AT183: =LEFT(B183,6) -> 200008
B184: ='Market Data'!B170 -> 20000823 | C184: ='Market Data'!C170 -> 9043 | D184: ='Market Data'!D170 -> 9043 | E184: ='Market Data'!E170 -> 8938 | F184: ='Market Data'!F170 -> 9002 | H184: 166 | I184: =IF($H184<($J$6+1),"",PFE(OFFSET($F184,0,0,-$J$6))) -> -0.01753475136 | K184: Short | AP184: =IF(NOT($AS184=$AS185),ROW(),"") ->  | AQ184: =IF(NOT(AS184=AS185),AS185,"") ->  | AR184: =INDEX($AB$15:$AM$15,MATCH($AS184,$AB$11:$AM$11,0)) ->  | AS184: =LEFT(AT184,4) -> 2000 | AT184: =LEFT(B184,6) -> 200008
B185: ='Market Data'!B171 -> 20000824 | C185: ='Market Data'!C171 -> 9058 | D185: ='Market Data'!D171 -> 9063.5 | E185: ='Market Data'!E171 -> 8994 | F185: ='Market Data'!F171 -> 8998 | H185: 167 | I185: =IF($H185<($J$6+1),"",PFE(OFFSET($F185,0,0,-$J$6))) -> -0.05599090177 | K185: Short | AP185: =IF(NOT($AS185=$AS186),ROW(),"") ->  | AQ185: =IF(NOT(AS185=AS186),AS186,"") ->  | AR185: =INDEX($AB$15:$AM$15,MATCH($AS185,$AB$11:$AM$11,0)) ->  | AS185: =LEFT(AT185,4) -> 2000 | AT185: =LEFT(B185,6) -> 200008
B186: ='Market Data'!B172 -> 20000825 | C186: ='Market Data'!C172 -> 9024 | D186: ='Market Data'!D172 -> 9120 | E186: ='Market Data'!E172 -> 9015 | F186: ='Market Data'!F172 -> 9108 | H186: 168 | I186: =IF($H186<($J$6+1),"",PFE(OFFSET($F186,0,0,-$J$6))) -> -0.05761099684 | K186: Short | AP186: =IF(NOT($AS186=$AS187),ROW(),"") ->  | AQ186: =IF(NOT(AS186=AS187),AS187,"") ->  | AR186: =INDEX($AB$15:$AM$15,MATCH($AS186,$AB$11:$AM$11,0)) ->  | AS186: =LEFT(AT186,4) -> 2000 | AT186: =LEFT(B186,6) -> 200008
B187: ='Market Data'!B173 -> 20000828 | C187: ='Market Data'!C173 -> 9119 | D187: ='Market Data'!D173 -> 9182 | E187: ='Market Data'!E173 -> 9088.5 | F187: ='Market Data'!F173 -> 9126 | H187: 169 | I187: =IF($H187<($J$6+1),"",PFE(OFFSET($F187,0,0,-$J$6))) -> -0.02342996487 | K187: Short | AP187: =IF(NOT($AS187=$AS188),ROW(),"") ->  | AQ187: =IF(NOT(AS187=AS188),AS188,"") ->  | AR187: =INDEX($AB$15:$AM$15,MATCH($AS187,$AB$11:$AM$11,0)) ->  | AS187: =LEFT(AT187,4) -> 2000 | AT187: =LEFT(B187,6) -> 200008
B188: ='Market Data'!B174 -> 20000829 | C188: ='Market Data'!C174 -> 9105.5 | D188: ='Market Data'!D174 -> 9109.5 | E188: ='Market Data'!E174 -> 9049 | F188: ='Market Data'!F174 -> 9068 | H188: 170 | I188: =IF($H188<($J$6+1),"",PFE(OFFSET($F188,0,0,-$J$6))) -> -0.03668625987 | K188: Short | AP188: =IF(NOT($AS188=$AS189),ROW(),"") ->  | AQ188: =IF(NOT(AS188=AS189),AS189,"") ->  | AR188: =INDEX($AB$15:$AM$15,MATCH($AS188,$AB$11:$AM$11,0)) ->  | AS188: =LEFT(AT188,4) -> 2000 | AT188: =LEFT(B188,6) -> 200008
B189: ='Market Data'!B175 -> 20000830 | C189: ='Market Data'!C175 -> 9055 | D189: ='Market Data'!D175 -> 9057 | E189: ='Market Data'!E175 -> 8954 | F189: ='Market Data'!F175 -> 8959 | H189: 171 | I189: =IF($H189<($J$6+1),"",PFE(OFFSET($F189,0,0,-$J$6))) -> -0.07606871844 | K189: Short | AP189: =IF(NOT($AS189=$AS190),ROW(),"") ->  | AQ189: =IF(NOT(AS189=AS190),AS190,"") ->  | AR189: =INDEX($AB$15:$AM$15,MATCH($AS189,$AB$11:$AM$11,0)) ->  | AS189: =LEFT(AT189,4) -> 2000 | AT189: =LEFT(B189,6) -> 200008
B190: ='Market Data'!B176 -> 20000831 | C190: ='Market Data'!C176 -> 8976 | D190: ='Market Data'!D176 -> 9031 | E190: ='Market Data'!E176 -> 8943 | F190: ='Market Data'!F176 -> 9023 | H190: 172 | I190: =IF($H190<($J$6+1),"",PFE(OFFSET($F190,0,0,-$J$6))) -> -0.04703945032 | K190: Short | AP190: =IF(NOT($AS190=$AS191),ROW(),"") ->  | AQ190: =IF(NOT(AS190=AS191),AS191,"") ->  | AR190: =INDEX($AB$15:$AM$15,MATCH($AS190,$AB$11:$AM$11,0)) ->  | AS190: =LEFT(AT190,4) -> 2000 | AT190: =LEFT(B190,6) -> 200008
B191: ='Market Data'!B177 -> 20000901 | C191: ='Market Data'!C177 -> 9005 | D191: ='Market Data'!D177 -> 9175.5 | E191: ='Market Data'!E177 -> 9005 | F191: ='Market Data'!F177 -> 9133.5 | H191: 173 | I191: =IF($H191<($J$6+1),"",PFE(OFFSET($F191,0,0,-$J$6))) -> 0.0154045795 | K191: Long | L191: 9133.5 | AP191: =IF(NOT($AS191=$AS192),ROW(),"") ->  | AQ191: =IF(NOT(AS191=AS192),AS192,"") ->  | AR191: =INDEX($AB$15:$AM$15,MATCH($AS191,$AB$11:$AM$11,0)) ->  | AS191: =LEFT(AT191,4) -> 2000 | AT191: =LEFT(B191,6) -> 200009
B192: ='Market Data'!B178 -> 20000904 | C192: ='Market Data'!C178 -> 9138 | D192: ='Market Data'!D178 -> 9231 | E192: ='Market Data'!E178 -> 9137 | F192: ='Market Data'!F178 -> 9222 | H192: 174 | I192: =IF($H192<($J$6+1),"",PFE(OFFSET($F192,0,0,-$J$6))) -> 0.04626157824 | K192: Long | AP192: =IF(NOT($AS192=$AS193),ROW(),"") ->  | AQ192: =IF(NOT(AS192=AS193),AS193,"") ->  | AR192: =INDEX($AB$15:$AM$15,MATCH($AS192,$AB$11:$AM$11,0)) ->  | AS192: =LEFT(AT192,4) -> 2000 | AT192: =LEFT(B192,6) -> 200009
B193: ='Market Data'!B179 -> 20000905 | C193: ='Market Data'!C179 -> 9221.5 | D193: ='Market Data'!D179 -> 9221.5 | E193: ='Market Data'!E179 -> 9146 | F193: ='Market Data'!F179 -> 9169 | H193: 175 | I193: =IF($H193<($J$6+1),"",PFE(OFFSET($F193,0,0,-$J$6))) -> 0.01675172698 | K193: Long | AP193: =IF(NOT($AS193=$AS194),ROW(),"") ->  | AQ193: =IF(NOT(AS193=AS194),AS194,"") ->  | AR193: =INDEX($AB$15:$AM$15,MATCH($AS193,$AB$11:$AM$11,0)) ->  | AS193: =LEFT(AT193,4) -> 2000 | AT193: =LEFT(B193,6) -> 200009
B194: ='Market Data'!B180 -> 20000906 | C194: ='Market Data'!C180 -> 9163 | D194: ='Market Data'!D180 -> 9209 | E194: ='Market Data'!E180 -> 9088 | F194: ='Market Data'!F180 -> 9091 | H194: 176 | I194: =IF($H194<($J$6+1),"",PFE(OFFSET($F194,0,0,-$J$6))) -> -0.01671833333 | K194: Short | M194: 9091 | AP194: =IF(NOT($AS194=$AS195),ROW(),"") ->  | AQ194: =IF(NOT(AS194=AS195),AS195,"") ->  | AR194: =INDEX($AB$15:$AM$15,MATCH($AS194,$AB$11:$AM$11,0)) ->  | AS194: =LEFT(AT194,4) -> 2000 | AT194: =LEFT(B194,6) -> 200009
B195: ='Market Data'!B181 -> 20000907 | C195: ='Market Data'!C181 -> 9070 | D195: ='Market Data'!D181 -> 9157 | E195: ='Market Data'!E181 -> 9059.5 | F195: ='Market Data'!F181 -> 9143 | H195: 177 | I195: =IF($H195<($J$6+1),"",PFE(OFFSET($F195,0,0,-$J$6))) -> 0.02132772426 | K195: Long | L195: 9143 | AP195: =IF(NOT($AS195=$AS196),ROW(),"") ->  | AQ195: =IF(NOT(AS195=AS196),AS196,"") ->  | AR195: =INDEX($AB$15:$AM$15,MATCH($AS195,$AB$11:$AM$11,0)) ->  | AS195: =LEFT(AT195,4) -> 2000 | AT195: =LEFT(B195,6) -> 200009
B196: ='Market Data'!B182 -> 20000908 | C196: ='Market Data'!C182 -> 9151.5 | D196: ='Market Data'!D182 -> 9163 | E196: ='Market Data'!E182 -> 9019 | F196: ='Market Data'!F182 -> 9029.5 | H196: 178 | I196: =IF($H196<($J$6+1),"",PFE(OFFSET($F196,0,0,-$J$6))) -> -0.0441206045 | K196: Short | M196: 9029.5 | AP196: =IF(NOT($AS196=$AS197),ROW(),"") ->  | AQ196: =IF(NOT(AS196=AS197),AS197,"") ->  | AR196: =INDEX($AB$15:$AM$15,MATCH($AS196,$AB$11:$AM$11,0)) ->  | AS196: =LEFT(AT196,4) -> 2000 | AT196: =LEFT(B196,6) -> 200009
B197: ='Market Data'!B183 -> 20000911 | C197: ='Market Data'!C183 -> 9022 | D197: ='Market Data'!D183 -> 9041 | E197: ='Market Data'!E183 -> 8964.5 | F197: ='Market Data'!F183 -> 8987.5 | H197: 179 | I197: =IF($H197<($J$6+1),"",PFE(OFFSET($F197,0,0,-$J$6))) -> -0.02318516049 | K197: Short | AP197: =IF(NOT($AS197=$AS198),ROW(),"") ->  | AQ197: =IF(NOT(AS197=AS198),AS198,"") ->  | AR197: =INDEX($AB$15:$AM$15,MATCH($AS197,$AB$11:$AM$11,0)) ->  | AS197: =LEFT(AT197,4) -> 2000 | AT197: =LEFT(B197,6) -> 200009
B198: ='Market Data'!B184 -> 20000912 | C198: ='Market Data'!C184 -> 8948 | D198: ='Market Data'!D184 -> 8970 | E198: ='Market Data'!E184 -> 8896 | F198: ='Market Data'!F184 -> 8908.5 | H198: 180 | I198: =IF($H198<($J$6+1),"",PFE(OFFSET($F198,0,0,-$J$6))) -> -0.0267567172 | K198: Short | AP198: =IF(NOT($AS198=$AS199),ROW(),"") ->  | AQ198: =IF(NOT(AS198=AS199),AS199,"") ->  | AR198: =INDEX($AB$15:$AM$15,MATCH($AS198,$AB$11:$AM$11,0)) ->  | AS198: =LEFT(AT198,4) -> 2000 | AT198: =LEFT(B198,6) -> 200009
B199: ='Market Data'!B185 -> 20000913 | C199: ='Market Data'!C185 -> 8919.5 | D199: ='Market Data'!D185 -> 8930 | E199: ='Market Data'!E185 -> 8757 | F199: ='Market Data'!F185 -> 8773 | H199: 181 | I199: =IF($H199<($J$6+1),"",PFE(OFFSET($F199,0,0,-$J$6))) -> -0.02265083504 | K199: Short | AP199: =IF(NOT($AS199=$AS200),ROW(),"") ->  | AQ199: =IF(NOT(AS199=AS200),AS200,"") ->  | AR199: =INDEX($AB$15:$AM$15,MATCH($AS199,$AB$11:$AM$11,0)) ->  | AS199: =LEFT(AT199,4) -> 2000 | AT199: =LEFT(B199,6) -> 200009
B200: ='Market Data'!B186 -> 20000914 | C200: ='Market Data'!C186 -> 8788.5 | D200: ='Market Data'!D186 -> 8859 | E200: ='Market Data'!E186 -> 8762 | F200: ='Market Data'!F186 -> 8811.5 | H200: 182 | I200: =IF($H200<($J$6+1),"",PFE(OFFSET($F200,0,0,-$J$6))) -> 0.01735771963 | K200: Long | L200: 8811.5 | AP200: =IF(NOT($AS200=$AS201),ROW(),"") ->  | AQ200: =IF(NOT(AS200=AS201),AS201,"") ->  | AR200: =INDEX($AB$15:$AM$15,MATCH($AS200,$AB$11:$AM$11,0)) ->  | AS200: =LEFT(AT200,4) -> 2000 | AT200: =LEFT(B200,6) -> 200009
B201: ='Market Data'!B187 -> 20000915 | C201: ='Market Data'!C187 -> 8794.5 | D201: ='Market Data'!D187 -> 8837.5 | E201: ='Market Data'!E187 -> 8727.5 | F201: ='Market Data'!F187 -> 8776.5 | H201: 183 | I201: =IF($H201<($J$6+1),"",PFE(OFFSET($F201,0,0,-$J$6))) -> -0.01641585847 | K201: Short | M201: 8776.5 | AP201: =IF(NOT($AS201=$AS202),ROW(),"") ->  | AQ201: =IF(NOT(AS201=AS202),AS202,"") ->  | AR201: =INDEX($AB$15:$AM$15,MATCH($AS201,$AB$11:$AM$11,0)) ->  | AS201: =LEFT(AT201,4) -> 2000 | AT201: =LEFT(B201,6) -> 200009
B202: ='Market Data'!B188 -> 20000918 | C202: ='Market Data'!C188 -> 8704.5 | D202: ='Market Data'!D188 -> 8736.5 | E202: ='Market Data'!E188 -> 8625.5 | F202: ='Market Data'!F188 -> 8640 | H202: 184 | I202: =IF($H202<($J$6+1),"",PFE(OFFSET($F202,0,0,-$J$6))) -> -0.02072935639 | K202: Short | AP202: =IF(NOT($AS202=$AS203),ROW(),"") ->  | AQ202: =IF(NOT(AS202=AS203),AS203,"") ->  | AR202: =INDEX($AB$15:$AM$15,MATCH($AS202,$AB$11:$AM$11,0)) ->  | AS202: =LEFT(AT202,4) -> 2000 | AT202: =LEFT(B202,6) -> 200009
B203: ='Market Data'!B189 -> 20000919 | C203: ='Market Data'!C189 -> 8629.5 | D203: ='Market Data'!D189 -> 8685 | E203: ='Market Data'!E189 -> 8601 | F203: ='Market Data'!F189 -> 8683.5 | H203: 185 | I203: =IF($H203<($J$6+1),"",PFE(OFFSET($F203,0,0,-$J$6))) -> -0.02888549379 | K203: Short | AP203: =IF(NOT($AS203=$AS204),ROW(),"") ->  | AQ203: =IF(NOT(AS203=AS204),AS204,"") ->  | AR203: =INDEX($AB$15:$AM$15,MATCH($AS203,$AB$11:$AM$11,0)) ->  | AS203: =LEFT(AT203,4) -> 2000 | AT203: =LEFT(B203,6) -> 200009
B204: ='Market Data'!B190 -> 20000920 | C204: ='Market Data'!C190 -> 8710.5 | D204: ='Market Data'!D190 -> 8719 | E204: ='Market Data'!E190 -> 8475.5 | F204: ='Market Data'!F190 -> 8498 | H204: 186 | I204: =IF($H204<($J$6+1),"",PFE(OFFSET($F204,0,0,-$J$6))) -> -0.05934319401 | K204: Short | AP204: =IF(NOT($AS204=$AS205),ROW(),"") ->  | AQ204: =IF(NOT(AS204=AS205),AS205,"") ->  | AR204: =INDEX($AB$15:$AM$15,MATCH($AS204,$AB$11:$AM$11,0)) ->  | AS204: =LEFT(AT204,4) -> 2000 | AT204: =LEFT(B204,6) -> 200009
... 921 more rows
